{"text_format":"1","workbook":"xlsx","n_sheets":32,"sheets":["INICIO","Introducción e instrucciones","Características epidemiológicas","LAM","Truenat","TB-LAMP","Xpert MTB RIF Ultra","Microscopía ZN","Baciloscopia LED","Xpert MTB XDR","LPA 1.ª línea","LPA 2.ª línea","Prueba MAX MDR-TB","FluoroType MTBDR Ver 2.0","MTB y MTB-RIF-INH de Cobas®","RT MTB y MTB RIF-INH de Abbott","Proces+cultivo (sól. y líq.)","Identificación rápida","Prueba de resistencia LJ - 1.ª","Prueba de resistencia LJ - 2.ª","Prueba de resistencia MGIT - 1ª","Prueba de resistencia MGIT - 2ª","Limpieza y bioseguridad","Mantenimiento y reparaciones","Human resources","QA","OPERATION","RESUMEN DE PRESUPUESTO","RESUMEN DE ARTÍCULOS","Contraportada","LPA and Tips","Lab items list"],"not_rendered":{"charts":0,"images":2,"macros":1,"external_links":0,"defined_names":98,"comments":2,"pivot_tables":0},"unopened":[],"bounds":{"document_bytes":16777216,"sheet_cells":100000,"rows_first":2000,"rows_last":500,"rows_between":2000,"halvings":0,"cell_chars":16384,"cell_head_chars":4096},"cells_cut":0,"cells_raw":0,"read":"whole","date_system":"1900"}

{"sheet":"INICIO","index":0,"n_rows":51,"n_cols":1,"rows_kept":51,"cut":false,"hidden":false,"merged":[[41,0,42,16]]}
[]
[]
[]
[]
[]
[]
[]
[]
[]
[]
[]
[]
[]
[]
[]
[]
[]
[]
[]
[]
[]
[]
[]
[]
[]
[]
[]
[]
[]
[]
[]
[]
[]
[]
[]
[]
[]
[]
[]
[]
[]
["Herramienta de planificación y presupuestación para las pruebas de la tuberculosis y de la tuberculosis farmacorresistente"]
[]
["Herramienta de cálculo, versión 2"]
[]
[]
[]
[]
[]
["OPS/CDE/HT/22-0011"]
["© Organización Panamericana de la Salud, 2022. Algunos derechos reservados. Esta obra está disponible en virtud de la licencia CC BY-NC-SA 3.0 IGO."]

{"sheet":"Introducción e instrucciones","index":1,"n_rows":40,"n_cols":15,"rows_kept":40,"cut":false,"hidden":false,"merged":[[38,0,38,3],[39,0,41,0],[0,0,0,11],[2,0,2,10],[4,0,4,1],[31,0,33,0],[31,1,33,1],[35,0,37,0],[27,0,29,0],[27,1,29,1]]}
["Herramienta de presupuestación del material fungible para el diagnóstico de la tuberculosis, versión 2.0"]
[]
["Esta herramienta ha sido diseñada para facilitar el cálculo sistemático de las cantidades y los costos de los productos para los países que planean encargar productos de diagnóstico e insumos de laboratorio del catálogo del Servicio Farmacéutico Mundial (GDF). Para usar la herramienta, siga los pasos que se indican a continuación."]
[]
["Paso 1: Seleccione las pruebas o el material fungible para los que quiera una proyección (selecciónelos en la lista desplegable)."]
["LAM","Sí","<=Elija aquí"]
["Prueba Truenat","Sí","<=Elija aquí"]
["TB-LAMP","Sí","<=Elija aquí"]
["Prueba Xpert MTB/RIF Ultra","Sí","<=Elija aquí"]
["Microscopía de Ziehl-Neelsen","Sí","<=Elija aquí",null,null,null,null,null,null,null,null,null,null,"Sí","No"]
["Microscopía de fluorescencia con diodos emisores de luz","Sí","<=Elija aquí"]
["Prueba Xpert MTB/XDR","Sí","<=Elija aquí"]
["LPA para medicamentos de primera línea","Sí","<=Elija aquí"]
["LPA para medicamentos de segunda línea","Sí","<=Elija aquí"]
["Prueba MAX MDR-TB","Sí","<=Elija aquí"]
["FluoroType MTBDR Ver 2.0","Sí","<=Elija aquí"]
["MTB y MTB-RIF/INH de Cobas®","Sí","<=Elija aquí"]
["RT MTB y MTB RIF/INH de Abbott","Sí","<=Elija aquí"]
["Procesamiento y cultivo en medios sólidos y líquidos","Sí","<=Elija aquí"]
["Identificación de micobacterias","Sí","<=Elija aquí"]
["Prueba de Lowenstein-Jensen de la resistencia a medicamentos de primera línea","Sí","<=Elija aquí"]
["Prueba de Lowenstein-Jensen de la resistencia a medicamentos de segunda línea","Sí","<=Elija aquí"]
["Prueba de la resistencia a medicamentos de primera línea con tubo indicador del crecimiento de micobacterias (MGIT)","Sí","<=Elija aquí"]
["Prueba de la resistencia a medicamentos de segunda línea con tubo indicador del crecimiento de micobacterias (MGIT)","Sí","<=Elija aquí"]
["Bioseguridad y limpieza","Sí","<=Elija aquí"]
["Mantenimiento y reparaciones","Sí","<=Elija aquí"]
[]
["Paso 2 : Indique el año para el que desee la proyección."]
[]
[]
[]
["Paso 3 : Defina el período abarcado por la proyección (en meses)."]
[]
[]
[]
["Paso 4 : Compile la información epidemiológica."]
[]
[]
[]
["Paso 5 : Use el método de proyección basado en el consumo o la morbilidad para cada prueba de diagnóstico seleccionada."]

{"sheet":"Características epidemiológicas","index":2,"n_rows":32,"n_cols":5,"rows_kept":32,"cut":false,"hidden":false,"merged":[[0,0,0,4],[2,0,2,4],[1,0,1,4],[31,0,33,1],[18,0,18,4],[24,0,24,5],[14,0,14,4]]}
["Características epidemiológicas para el cálculo de proyecciones basadas en la morbilidad"]
["Los valores en rojo deben introducirse o ajustarse de acuerdo con los datos y las prácticas reales del país, cuando sea posible."]
["Características epidemiológicas de la TB"]
["Pulmonar, con confirmación bacteriológica","Casos nuevos:",0,"Recaídas:",0]
["Pulmonar, con diagnóstico clínico","Casos nuevos:",0,"Recaídas:",0]
["Extrapulmonar","Casos nuevos:",0,"Recaídas:",0]
["Total de casos nuevos notificados",null,{"$f":"SUM(C4:C6)","v":0},"Total de recaídas notificadas",{"$f":"SUM(E4:E6)","v":0}]
["Casos tratados anteriormente, excluidas las recaídas",0]
["Total de casos notificados",{"$f":"SUM(C4:C6,E4:E6,B8)","v":0}]
["Casos de tuberculosis en niños (%)",0,null,"Casos de tuberculosis en adultos (%):",0]
["Casos de tuberculosis en personas VIH-positivas (%)",0,null,"Casos VIH-negativos o cuya situación con respecto al VIH no se conoce (%):",0]
["Número de personas VIH-positivas que reciben atención",0]
["Número de casos nuevos VIH-positivos notificados (al año)",0]
["Número de casos de tuberculosis RR/MDR que se prevé que se detectarán durante el año",0]
["Premisas fundamentales"]
["Porcentaje de casos de tuberculosis monorresistente a la isoniazida que son recaídas o que han sido tratados anteriormente",0]
["Proporción de personas con signos y síntomas de TB que tienen antecedentes de tratamiento eficaz: casos de recaída notificados",0,null,"Proporción de contactos por caso notificado de tuberculosis resistente a la rifampicina",0]
["Proporción de personas con signos y síntomas de TB: 1 caso notificado confirmado bacteriológicamente (o con frotis positivo)",0]
["Supuestos sobre el VIH"]
["Número promedio de veces al año que se somete a cada persona con la infección por el VIH a un examen clínico para la detección de la tuberculosis",0,null,"Porcentaje de personas con la infección por el VIH que tenían signos y síntomas de TB cuando se les hizo el examen",0]
[null,null,null,"Porcentaje de personas con la infección por el VIH gravamente enfermas o con CD4 < 200 que tenían signos y síntomas de TB cuando se les hizo el examen",0]
[null,null,null,"Porcentaje de personas con la infección por el VIH gravemente enfermas o con CD4 < 200",0.15]
[null,null,null,"Porcentaje de personas con la infección por el VIH gravamente enfermas o con CD4 < 100 que tenían signos y síntomas de TB cuando se les hizo el examen",0.3]
[null,null,null,"Porcentaje de personas con la infección por el VIH gravemente enfermas o con CD4 < 100",0.1]
["Supuestos relacionados con los niños"]
["Proporción de niños con signos y síntomas de TB: casos notificados de niños con TB",0]
[]
[]
[]
[]
[]
["Paso 4: Navegue hasta las hojas que figuran a continuación y use proyecciones basadas en el consumo o en la morbilidad para cada prueba de diagnóstico seleccionada."]

{"sheet":"LAM","index":3,"n_rows":27,"n_cols":17,"rows_kept":27,"cut":false,"hidden":false,"merged":[[0,0,0,7],[1,1,1,7],[13,1,13,2],[3,1,3,2],[3,4,3,6],[8,4,8,5]]}
["LAM: Se proponen dos métodos para calcular el número previsto de pruebas que se realizarán durante el período."]
[null,"Los valores en rojo deben introducirse o ajustarse de acuerdo con los datos y las prácticas reales del país, cuando sea posible."]
[]
[null,"Método 1: Proyección basada en el consumo. El número previsto de pruebas se basa en el número de pruebas utilizadas por mes, en promedio.",null,null,"Método 2: Proyección basada en la morbilidad. El número estimado de pruebas se basa en datos epidemiológicos (casos notificados) y algoritmos planificados. La suma calculada es el objetivo que se debe alcanzar cuando se usan algoritmos de acuerdo con la cobertura y los supuestos indicados."]
[null,"Número promedio de pruebas LAM realizadas por mes",0,null,"Población de pacientes","Cobertura de las pruebas","Número de pruebas LAM para el período"]
[null,"Número de pruebas LAM realizadas durante el período",{"$f":"C5*Months","v":0},null,"Personas con infección por el VIH que tienen signos y síntomas de TB",0,{"$f":"ROUND(('Características epidemiológicas'!B12*F6*'Características epidemiológicas'!B20*'Características epidemiológicas'!E20),-2)","v":0}]
[null,null,null,null,"Personas con infección por el VIH gravemente enfermas o con CD4 < 200",0,{"$f":"ROUND(('Características epidemiológicas'!B12+'Características epidemiológicas'!B13)*F7*'Características epidemiológicas'!B20*'Características epidemiológicas'!E21,-2)","v":0}]
[null,null,null,null,"Personas con la infección por el VIH gravemente enfermas o con CD4 < 100",1,{"$f":"ROUND(('Características epidemiológicas'!B12+'Características epidemiológicas'!B13)*F8*'Características epidemiológicas'!B20*'Características epidemiológicas'!E23*'Características epidemiológicas'!E24,-2)","v":0}]
[null,null,null,null,"Número total de LAM para el período",null,{"$f":"SUM(G6:G8)","v":0},null,null,null,null,null,null,null,null,{"$f":"'Características epidemiológicas'!E11*'Características epidemiológicas'!E10*'Características epidemiológicas'!C4","v":0},"Adultos VIH+ y Bac+"]
[]
[]
[]
[null,null,null,null,null,null,null,null,null,null,null,null,null,null,null,{"$f":"'Características epidemiológicas'!C7*'Características epidemiológicas'!B10","v":0},"Niños"]
[null,"Cantidades de productos LAM que se deben encargar"]
[null,"Número total de pruebas LAM realizadas durante el período (calculado con el método de proyección 1 o 2 o un valor intermedio)",0]
[null,"Suministro actual",0]
[null,"Número total de pruebas LAM requeridas durante el período",{"$f":"C15","v":0}]
[null,"Número total de pruebas LAM que se deben encargar",{"$f":"C15-C16","v":0}]
[]
["Código GDF","ARTÍCULOS","Unidades por paquete","Necesarias por prueba","Número de paquetes que se deben encargar","Costo por unidad (US$)","Detalles del cálculo"]
[106749,"Pruebas de determinación del antígeno LAM",25,1,{"$f":"ROUNDUP((D21/C21*C18),0)","v":0},92.5]
[106525,"Recipientes de esputo",1000,1,{"$f":"ROUNDUP((D22/C22*C18),0)","v":0},83.3,"Para recolectar orina"]
[106388,"Puntas de filtro para pipeta estériles, 5-100 μL",960,1,{"$f":"ROUNDUP((D23/C23*C18),0)","v":0},61,"Para administrar 60 μL, adecuadas para pipetas de un canal; varían de 20 a 200 μL"]
[]
[null,"Resumen","Costo (US$)"]
[null,"Costo total de los productos para pruebas LAM",{"$f":"SUMPRODUCT(E21:E23,F21:F23)","v":0}]
[null,"Costo por muestra analizada",{"$f":"IF(C18=0,\"\",(C26/C18))","v":""}]

{"sheet":"Truenat","index":4,"n_rows":31,"n_cols":37,"rows_kept":31,"cut":false,"hidden":false,"merged":[[11,4,11,5],[16,1,16,2],[0,1,0,6],[1,1,1,6],[4,1,4,2],[4,4,4,6]]}
[null,"Prueba Truenat: Se proponen dos métodos para calcular el número previsto de pruebas que se realizarán durante el período."]
[null,"Los valores en rojo deben introducirse o ajustarse de acuerdo con los datos y las prácticas reales del país, cuando sea posible."]
[null,"Número de pruebas realizadas el año pasado",0]
[]
[null,"Método 1: Proyección basada en el consumo. El número previsto de pruebas se basa en el uso diario promedio de cada módulo.",null,null,"Método 2: Proyección basada en la morbilidad. El número estimado de pruebas se basa en datos epidemiológicos (casos notificados) y algoritmos planificados. La suma calculada es el objetivo que se debe alcanzar cuando se usan algoritmos de acuerdo con la cobertura y los supuestos indicados. La cobertura predeterminada que se indica a continuación corresponde a un algoritmo de Truenat para todos (cobertura de 100% de todos los grupos de pacientes)"]
[null,"Número de analizadores Truelab (modelo Uno)",0,null,"Población de pacientes","Cobertura de las pruebas","Número de pruebas Truenat requeridas para el período"]
[null,"Número de analizadores Truelab (modelo Duo)",0,null,"Personas con infección por el VIH que tienen signos y síntomas de TB",0,{"$f":"ROUND((F7*'Características epidemiológicas'!B12*'Características epidemiológicas'!B20*'Características epidemiológicas'!E20),-2)","v":0}]
[null,"Número de analizadores Truelab (modelo Quattro)",0,null,"Niños con signos y síntomas de TB",0,{"$f":"ROUND(F8*'Características epidemiológicas'!B9*'Características epidemiológicas'!B10*'Características epidemiológicas'!B26, -2)","v":0}]
[null,"Número total de puertos con chips",{"$f":"(C6*1)+(C7*2)+(C8*4)","v":0},null,"Personas en riesgo de tuberculosis farmacorresistente",0,{"$f":"ROUND(F9*('Características epidemiológicas'!E7*'Características epidemiológicas'!B17)+'Características epidemiológicas'!B8+('Características epidemiológicas'!B14*'Características epidemiológicas'!E17), -2)","v":0},null,null,null,null,null,null,null,null,null,null,null,null,null,null,null,null,null,null,null,"Número de dispositivos Truepep",1,null,null,null,"Número de dispositivos Truepep",1,null,null,"Número de dispositivos Truepep",2]
[null,"Número de días laborables por año",0,null,"Adultos VIH-negativos que no habían tratados previamente y que presentan signos y síntomas de TB",0,{"$f":"ROUND(F10*'Características epidemiológicas'!E11*'Características epidemiológicas'!E10*'Características epidemiológicas'!C4*'Características epidemiológicas'!B18,-2)","v":0},null,null,null,null,null,null,null,null,null,null,null,{"$f":"'Características epidemiológicas'!B9*'Características epidemiológicas'!B10","v":0},"Niños",null,null,null,null,null,null,"Número de analizadores Truelab (modelo Uno)",1,null,null,null,"Número de analizadores Truelab (modelo Duo)",1,null,null,"Número de analizadores Truelab (modelo Quattro)",1]
[null,"Número promedio de puertos con chips utilizados por día",0,null,"Casos nuevos de TB con frotis positivo a quienes se les administró la prueba Truenat para detectar la resistencia a la rifampicina (excluidos aquellos a quienes se les administró esta prueba para el diagnóstico inicial)",0,{"$f":"ROUND('Características epidemiológicas'!C7-(('Características epidemiológicas'!B9*'Características epidemiológicas'!B10)+('Características epidemiológicas'!E7+'Características epidemiológicas'!B8+'Características epidemiológicas'!B14)+('Características epidemiológicas'!E11*'Características epidemiológicas'!E10*'Características epidemiológicas'!C4)+('Características epidemiológicas'!C7*'Características epidemiológicas'!B10)),-2)*F11","v":0},null,null,null,null,null,null,null,null,null,null,null,{"$f":"'Características epidemiológicas'!E7+'Características epidemiológicas'!B8+'Características epidemiológicas'!B14","v":0},"Recaídas de tuberculosis resistente a la rifampicina y multirresistente",null,null,null,null,null,null,null,{"$f":"IF(AB9=1,IF(AB10=1,(8),0),0)","v":8},null,null,null,null,{"$f":"IF(AG9=1,IF(AG10=1,(17),0),0)","v":17},null,null,null,{"$f":"IF(AK9=2,IF(AK10=1,(33),0),0)","v":33}]
[null,"Número de pruebas Truenat requeridas para el período",{"$f":"C9*C10*C11","v":0},null,"Número total de cartuchos para pruebas Truenat necesarios para el período",null,{"$f":"SUM(G7:G11)","v":0},null,null,null,null,null,null,null,null,null,null,null,{"$f":"'Características epidemiológicas'!E11*'Características epidemiológicas'!E10*'Características epidemiológicas'!C4","v":0},"Adultos VIH+ y Bac+"]
[]
[]
[]
[null,null,null,null,null,null,null,null,null,null,null,null,null,null,null,null,null,null,{"$f":"'Características epidemiológicas'!C7*'Características epidemiológicas'!B10","v":0},"Niños"]
[null,"Cantidades de productos Truenat que se deben encargar"]
[null,"Número de pruebas Truenat requeridas para el período (calculado con el método de proyección 1 o 2 o un valor intermedio)",0]
[null,"Porcentaje de \"no válido\", \"error\" o \"ningún resultado\"",0]
[null,"Suministro actual",0]
[null,"Número total de pruebas Truenat requeridas para el período",0]
[null,"Número total de pruebas Truenat que se deben encargar",{"$f":"((C18*C19)+C18)-C20","v":0}]
[null,"Free Truenat MTB Rif",{"$f":"(C22/100)*20","v":0}]
[]
[]
["Código GDF","Artículo","Unidades por paquete","Número de paquetes que se deben encargar","Costo por unidad (US$)","Observaciones"]
[106697,"Truenat MTB Plus",50,{"$f":"ROUNDUP((C22/C27),0)","v":0},450,"Viene también en paquetes de 5 y 20 unidades"]
[106700,"Truenat MTB Rif",50,0,400,"Pruebas adicionales Truenat MTB Rif; vienen también en paquetes de 5 y 20 unidades"]
[]
[null,"Resumen","Costo (US$)"]
[null,"Costo total de los productos Truenat",{"$f":"SUMPRODUCT(D27:D28,E27:E28)","v":0}]

{"sheet":"TB-LAMP","index":5,"n_rows":29,"n_cols":19,"rows_kept":29,"cut":false,"hidden":false,"merged":[[28,3,28,6],[0,0,0,8],[1,1,1,6],[3,1,3,2],[3,4,3,6],[11,3,13,4]]}
["TB-LAMP: Se proponen dos métodos para calcular el número previsto de pruebas que se realizarán durante el período."]
[null,"Los valores en rojo deben introducirse o ajustarse de acuerdo con los datos y las prácticas reales del país, cuando sea posible."]
[]
[null,"Método 1: Proyección basada en el consumo. El número previsto de pruebas se basa en el número de pruebas realizadas el año pasado.",null,null,"Método 2: Proyección basada en la morbilidad. El número estimado de pruebas se basa en datos epidemiológicos (casos notificados) y algoritmos planificados. La suma calculada es el objetivo que se debe alcanzar cuando se usan algoritmos de acuerdo con la cobertura y los supuestos indicados."]
[null,"Número promedio de pruebas TB-LAMP realizadas por mes",0,null,"Población de pacientes","Cobertura de las pruebas","Número de pruebas TB-LAMP requeridas para el período"]
[null,"Número de pruebas TB-LAMP requeridas para el período",{"$f":"C5*Months","v":0},null,"Niños con signos y síntomas de TB",0,{"$f":"ROUND(('Características epidemiológicas'!B12*'Características epidemiológicas'!B20*'Características epidemiológicas'!E20)+('Características epidemiológicas'!B9*'Características epidemiológicas'!B10*'Características epidemiológicas'!B26)+('Características epidemiológicas'!E7*'Características epidemiológicas'!B17)+'Características epidemiológicas'!B8+('Características epidemiológicas'!B14*'Características epidemiológicas'!E17)+('Características epidemiológicas'!E11*'Características epidemiológicas'!E10*'Características epidemiológicas'!C4*'Características epidemiológicas'!B18)+('Características epidemiológicas'!C7-(('Características epidemiológicas'!B9*'Características epidemiológicas'!B10)+('Características epidemiológicas'!E7+'Características epidemiológicas'!B8+'Características epidemiológicas'!B14)+('Características epidemiológicas'!E11*'Características epidemiológicas'!E10*'Características epidemiológicas'!C4)+('Características epidemiológicas'!C7*'Características epidemiológicas'!B10))),-2)*F6","v":0}]
[]
[]
[]
[]
[]
[null,"Número de lotes utilizados por día",0,"Ponga el número apropiado según el consumo anterior. El número predeterminado se basa en pruebas de máxima eficiencia (14 muestras por lote y cinco ciclos de pruebas por día)"]
[null,"Número de muestras por lote",0]
[null,"Número de controles por lote",0,null,null,null,null,null,null,null,null,null,null,null,null,null,null,null,{"$f":"SUM(S7:S9)","v":0}]
[null,"Número de pruebas TB-LAMP requeridas para el período (calculado con el método de proyección 1 o 2 o un valor intermedio)",0]
[null,"Tamaño promedio de un lote",{"$f":"C13+C14","v":0}]
[null,"Número de lotes necesarios para el período",{"$f":"IF(C13=0,0,(C15/C13))","v":0}]
[null,"Suministro actual",0]
[null,"Número total de pruebas TB-LAMP requeridas para el período (muestras y controles)",{"$f":"(C17*C16)","v":0}]
[null,"Número total de pruebas TB-LAMP que se deben encargar (muestras y controles)",{"$f":"(IF(C18=0,(C17*C16),(C17*C16)-C18))","v":0}]
[]
["Código GDF","Artículo","Unidades por paquete","Necesarias por prueba","Número de paquetes que se deben encargar","Costo por unidad (US$)","Detalles del cálculo"]
[106634,"Kits de detección Loopamp MTBC (2 x 48 pruebas)",96,1.1399999999999999,{"$f":"ROUNDUP((D23/C23*C20),0)","v":0},219,"Un kit de detección con 96 pruebas contiene suficientes reactivos para 6 ciclos de 84 muestras de pacientes más 6 controles negativos y 6 positivos."]
[106635,"Kit de extracción de ADN Loopamp PURE (90 pruebas)",90,1.07,{"$f":"ROUNDUP((D24/C24*C20),0)","v":0},275,"Un kit de extracción con 90 pruebas contiene suficientes reactivos para 6 ciclos de 84 muestras de pacientes más 6 controles negativos y 6 positivos."]
[106643,"Pipette-60 Set para TB-LAMP (4 x 96 pruebas)",384,1,{"$f":"ROUNDUP((D25/C25*C20),0)","v":0},42]
[]
[null,"Resumen","Costo (US$)"]
[null,"Costo total de los productos para pruebas TB-LAMP",{"$f":"SUMPRODUCT(E23:E25,F23:F25)","v":0}]
[null,"Costo por muestra analizada",{"$f":"IF(C20=0,\"\",(C28/C20))","v":""},"El costo de los reactivos y el material fungible por muestra depende del tamaño del lote del ciclo. Si se trabaja solo con la máxima eficiencia (14 muestras por lote y cinco ciclos de pruebas por día), el costo es de US$ 6 por muestra."]

{"sheet":"Xpert MTB RIF Ultra","index":6,"n_rows":30,"n_cols":20,"rows_kept":30,"cut":false,"hidden":false,"merged":[[0,0,0,7],[1,1,1,7],[16,1,16,2],[4,4,4,6],[4,1,4,2],[11,4,11,5]]}
["Prueba Xpert MTB/RIF: Se proponen dos métodos para calcular el número previsto de pruebas que se realizarán durante el período."]
[null,"Los valores en rojo deben introducirse o ajustarse de acuerdo con los datos y las prácticas reales del país, cuando sea posible."]
[null,"Número de pruebas realizadas el año pasado",0]
[]
[null,"Método 1: Proyección basada en el consumo. El número previsto de pruebas se basa en el uso diario promedio de cada módulo.",null,null,"Método 2: Proyección basada en la morbilidad. El número estimado de pruebas se basa en datos epidemiológicos (casos notificados) y algoritmos planificados. La suma calculada es el objetivo que se debe alcanzar cuando se usan algoritmos de acuerdo con la cobertura y los supuestos indicados. La cobertura predeterminada que se indica a continuación corresponde a un algoritmo de Xpert para todos (cobertura de 100% de todos los grupos de pacientes)"]
[null,"Número de módulos de instrumentos que hay en el país",0,null,"Población de pacientes","Cobertura de las pruebas","Número de pruebas Xpert MTB/RIF requeridas para el período"]
[null,"Número de días laborables por año",0,null,"Personas con infección por el VIH que tienen signos y síntomas de TB",0,{"$f":"ROUND((F7*'Características epidemiológicas'!B12*'Características epidemiológicas'!B20*'Características epidemiológicas'!E20),-2)","v":0}]
[null,"Número promedio de pruebas Xpert MTB/RIF realizadas por módulo al día",0,null,"Niños con signos y síntomas de TB",0,{"$f":"ROUND(F8*'Características epidemiológicas'!B9*'Características epidemiológicas'!B10*'Características epidemiológicas'!B26, -2)","v":0}]
[null,"Número de pruebas Xpert MTB/RIF Ultra requeridas para el período",{"$f":"C6*C7*C8","v":0},null,"Personas en riesgo de tuberculosis farmacorresistente",0,{"$f":"ROUND(F9*('Características epidemiológicas'!E7*'Características epidemiológicas'!B17)+'Características epidemiológicas'!B8+('Características epidemiológicas'!B14*'Características epidemiológicas'!E17), -2)","v":0}]
[null,null,null,null,"Adultos VIH-negativos que no habían tratados previamente y que presentan signos y síntomas de TB",0,{"$f":"ROUND(F10*'Características epidemiológicas'!E11*'Características epidemiológicas'!E10*'Características epidemiológicas'!C4*'Características epidemiológicas'!B18,-2)","v":0},null,null,null,null,null,null,null,null,null,null,null,{"$f":"'Características epidemiológicas'!B9*'Características epidemiológicas'!B10","v":0},"Niños"]
[null,null,null,null,"Casos nuevos de TB con frotis positivo a quienes se les administró la prueba Xpert para detectar la resistencia a la rifampicina (excluidos aquellos a quienes se les administró esta prueba para el diagnóstico inicial)",0,{"$f":"ROUND('Características epidemiológicas'!C7-(('Características epidemiológicas'!B9*'Características epidemiológicas'!B10)+('Características epidemiológicas'!E7+'Características epidemiológicas'!B8+'Características epidemiológicas'!B14)+('Características epidemiológicas'!E11*'Características epidemiológicas'!E10*'Características epidemiológicas'!C4)+('Características epidemiológicas'!C7*'Características epidemiológicas'!B10)),-2)*F11","v":0},null,null,null,null,null,null,null,null,null,null,null,{"$f":"'Características epidemiológicas'!E7+'Características epidemiológicas'!B8+'Características epidemiológicas'!B14","v":0},"Recaídas de tuberculosis resistente a la rifampicina y multirresistente"]
[null,null,null,null,"Número total de cartuchos Xpert MTB/RIF Ultra necesarios para el período",null,{"$f":"SUM(G7:G11)","v":0},null,null,null,null,null,null,null,null,null,null,null,{"$f":"'Características epidemiológicas'!E11*'Características epidemiológicas'!E10*'Características epidemiológicas'!C4","v":0},"Adultos VIH+ y Bac+"]
[]
[]
[]
[null,null,null,null,null,null,null,null,null,null,null,null,null,null,null,null,null,null,{"$f":"'Características epidemiológicas'!C7*'Características epidemiológicas'!B10","v":0},"Niños"]
[null,"Cantidades de productos Xpert MTB/RIF Ultra que se deben encargar"]
[null,"Número de cartuchos Xpert MTB/RIF necesarios para el período (calculado con el método de proyección 1 o 2 o un valor intermedio)",0]
[null,"Porcentaje de \"no válido\", \"error\" o \"ningún resultado\"",0]
[null,"Suministro actual",0]
[null,"Número total de cartuchos Xpert MTB/RIF necesarios para el período",{"$f":"((C18*C19)+C18)","v":0}]
[null,"Número total de cartuchos Xpert MTB/RIF que se deben encargar",{"$f":"((C18*C19)+C18)-C20","v":0}]
[]
["Código GDF","Artículo","Unidades por paquete","Número de paquetes que se deben encargar","Costo por unidad (US$)","Detalles del cálculo"]
["CGXMTB-RIF-50","Cartuchos Xpert MTB/RIF",50,{"$f":"ROUNDUP((C22/C25),0)","v":0},499]
[106340,"Tubos de plástico estéril para centrífuga, 50 ml",500,0,45,"Si usa recipientes de esputo normales, ponga \"0\" para \"Número de paquetes que se deben encargar\""]
[106525,"Recipientes de esputo, paquete de 1000",1000,{"$f":"ROUNDUP(((C22*1.1)/C27),0)","v":0},83.3]
[]
[null,"Resumen","Costo (US$)"]
[null,"Costo total de los productos Xpert MTB Rif Ultra",{"$f":"SUMPRODUCT(D25:D27,E25:E27)","v":0}]

{"sheet":"Microscopía ZN","index":7,"n_rows":57,"n_cols":24,"rows_kept":57,"cut":false,"hidden":false,"merged":[[3,1,3,2],[3,4,3,6],[1,1,1,8],[0,0,0,10],[4,3,4,6]]}
["Microscopía de frotis con tinción de Ziehl-Neelsen (ZN): Se proponen dos métodos para calcular el número previsto de pruebas que se realizarán durante el período."]
[null,"Los valores en rojo deben introducirse o ajustarse de acuerdo con los datos y las prácticas reales del país, cuando sea posible."]
[]
[null,"Método 1: Proyección basada en el consumo. El número previsto de pruebas se basa en el número de pruebas realizadas el año pasado."]
[null,"Número de frotis realizados para el diagnóstico o el seguimiento del tratamiento",0,"Los países que están reemplazando la microscopía con una prueba molecular rápida pueden prever menos frotis para el diagnóstico."]
[null,"Número de frotis de cultivos",{"$f":"'Proces+cultivo (sól. y líq.)'!F21*'Proces+cultivo (sól. y líq.)'!F19","v":0}]
[null,"Suministro actual",0]
[null,"Número de pruebas de Ziehl-Neelsen requeridas para el período",{"$f":"SUM(C5:C6)","v":0}]
[null,"Número de pruebas de Ziehl-Neelsen que se deben encargar",{"$f":"SUM(C5:C6)-C7","v":0}]
[]
[]
[null,"Compra de pruebas","Kit","<=Elija aquí"]
[]
[]
[null,null,null,null,null,null,null,null,null,null,null,null,null,null,null,null,null,null,null,null,null,null,"Kit","Materiales fungibles separados"]
[]
[]
[]
[]
[]
["Código GDF","Artículos","Unidad","Unidades por paquete","Necesarias por prueba","Número de paquetes","Costo por unidad (US$)","Detalles del cálculo"]
[106522,"Solución para la tinción de Ziehl-Neelsen (ZN), 1 litro (solución de carbol fucsina fuerte a 1% para tinción de ZN): 6; solución decolorante, 1 litro (solución decolorante lista para usar en portaobjetos teñidos con ZN con 3,0% de HCl/alcohol): 6; solución de contratinción para la tinción de ZN, 1 litro (azul de metileno a 0,1%, solución de contratinción para la tinción de ZN): 6; 50 x 20 portaobjetos para microscopio: 1; 100 x papeles de filtro: 1; 10 x lápices: 1;  2 x rotuladores resistentes al agua: 1; 500 x bolsas de plástico de 200 mm de ancho x 300 mm de largo: 1; 1000 x aplicadores de madera: 2; 400 x pares de guantes de nitrilo (100 pequeños, 200 medianos, 100 grandes): 1; 30 x 150 cajas de toallas de papel: 1; papel para limpiar lentes - 100 papeles: 1; aceite de inmersión, 100 ml: 1; alcohol desnaturalizado a 96%, 0,5 litros: 5; desinfectante de cloro estable, 50 tabletas: 5.","kit",1000,{"$f":"D22*1/1000","v":1},{"$f":"IF(W15=C12,ROUNDUP((E22/D22)*C9,0),0)","v":0},268,"1 kit para 1000 pruebas"]
[]
[]
[null,"Resumen","Costo (US$)"]
[null,"Costo total de la microscopía",{"$f":"F22*G22","v":0}]
[null,"Costo por frotis",{"$f":"IF(C8=0,\"-\",C26/C8)","v":"-"}]
[]
[]
[]
["Código GDF","Artículo","Unidades por paquete","Número de paquetes","Costo por unidad (US$)","Presupuesto","Detalles del cálculo"]
[106601,"Fucsina básica, 100 g (frasco)",100,{"$f":"IF(X15=C12,ROUNDUP((C9*0.003)/C32,0),0)","v":0},154.25,{"$f":"D32*E32","v":0},"Carbol fucsina: 5 ml por portaobjetos, incluye +10%"]
[106602,"Azul de metileno, 10 x 10 g (frascos)",100,{"$f":"IF(X15=C12,ROUNDUP((C9*0.02)/C33,0),0)","v":0},161.5,0,"Azul de metileno: 5 ml por portaobjetos, incluye +10%"]
[106599,"Cristales de fenol, incoloros, 500 g",500,{"$f":"IF(X15=C12,ROUNDUP((C9*0.03)/C34,0),0)","v":0},96.05,0,"incluye +10%"]
[106597,"Etanol, 99%, 1 litro (botella), para soluciones para tinción",1000,{"$f":"IF(X15=C12,ROUNDUP((C9*0.55)/C35,0),0)","v":0},8.35,0,"incluye +10%"]
[106597,"Etanol, 99%, 1 litro (botella), para decolorante",1000,{"$f":"IF(X15=C12,ROUNDUP((C9*7.2)/C36,0),0)","v":0},8.35,0,"Decolorante: 7 ml por portaobjetos, incluye +10%"]
[106603,"Ácido clorhídrico, 1 litro (botella)",1000,{"$f":"IF(X15=C12,ROUNDUP((C9*0.8)/C37,0),0)","v":0},18.100000000000001,0,"incluye +10%"]
[null,"Número total de reactivos",null,{"$f":"SUM(F32:F37)","v":0}]
[null,"Costo de los reactivos por frotis",null,{"$f":"IF(C9=0,\"-\",D38/C9)","v":"-"}]
[]
[]
["Código GDF","Artículo","Unidades por paquete","Número de paquetes","Costo por unidad (US$)","Presupuesto","Detalles del cálculo"]
[106655,"Aplicadores de madera, 150 mm",1000,{"$f":"IF(X15=C12,ROUNDUP((C9*1.1)/C43,0),0)","v":0},2.5099999999999998,{"$f":"D43*E43","v":0},"incluye +10%"]
[106609,"Portaobjetos para microscopio, vidrio sódico-cálcico, paquete de 1000",1000,{"$f":"IF(X15=C12,ROUNDUP((C9*1.1)/C44,0),0)","v":0},10.4,0,"incluye +10%"]
[106627,"Aceite de inmersión, 100 ml",100,{"$f":"IF(X15=C12,ROUNDUP((C9*0.11)/C45,0),0)","v":0},9.24,0,"incluye +10%"]
[106656,"Papel para limpiar lentes",150,{"$f":"IF(X15=C12,ROUNDUP((C9*0.33)/C46,0),0)","v":0},0.56999999999999995,0,"incluye +10%"]
[106354,"Papel de filtro redondo, 150 mm",100,{"$f":"IF(X15=C12,ROUNDUP((C9*0.011)/C47,0),0)","v":0},24,0,"incluye +10%"]
[106597,"Etanol, 99%, 1 litro (botella), para quemadores de alcohol",1000,{"$f":"IF(X15=C12,ROUNDUP((C9*0.001)/C48,0),0)","v":0},8.35,0]
[106355,"Rotulador (resistente al agua)",1,{"$f":"IF(X15=C12,ROUNDUP((C9*0.001)/C49,0),0)","v":0},2.0499999999999998,0]
[106525,"Recipientes de esputo, paquete de 1000",1000,{"$f":"IF(X15=C12,ROUNDUP((C9*1.1)/C50,0),0)","v":0},83.3,0,"incluye +10%"]
[null,"Total para reactivos",null,{"$f":"SUMPRODUCT(D43:D50,E43:E50)","v":0}]
[null,"Costo de los reactivos por frotis",null,{"$f":"IF(C9=0,\"-\",D51/C9)","v":"-"}]
[]
[]
[null,"Resumen","Costo (US$)"]
[null,"Costo total de la microscopía",{"$f":"D51+D38","v":0}]
[null,"Costo por frotis",{"$f":"IF(C9=0,\"-\",C56/C9)","v":"-"}]

{"sheet":"Baciloscopia LED","index":8,"n_rows":56,"n_cols":24,"rows_kept":56,"cut":false,"hidden":false,"merged":[[3,1,3,2],[3,4,3,6],[0,0,0,10],[1,1,1,8],[4,3,4,6]]}
["Baciloscopia con diodos emisores de luz (LED)"]
[null,"Los valores en rojo deben introducirse o ajustarse de acuerdo con los datos y las prácticas reales del país, cuando sea posible."]
[]
[null,"Método 1: Proyección basada en el consumo. El número previsto de pruebas se basa en el número de pruebas realizadas el año pasado."]
[null,"Número de frotis para el diagnóstico o el seguimiento del tratamiento",0,"Los países que están reemplazando la microscopía con una prueba molecular rápida pueden prever menos frotis para el diagnóstico."]
[null,"Número de frotis de cultivos",0]
[null,"Suministro actual",0]
[null,"Número de pruebas con LED requeridas para el período",{"$f":"SUM(C5:C6)","v":0}]
[null,"Número de pruebas con LED requeridas para el período",{"$f":"SUM(C5:C6)-C7","v":0}]
[]
[]
[null,"Compra de pruebas","Kit","<=Elija aquí"]
[]
[]
[null,null,null,null,null,null,null,null,null,null,null,null,null,null,null,null,null,null,null,null,null,null,"Kit","Materiales fungibles separados"]
[]
[]
[]
[]
[]
["Código GDF","Artículo","Unidad","Unidades por paquete","Necesarias por prueba","Número de paquetes","Costo por unidad (US$)","Detalles del cálculo"]
[106523,"Solución para tinción de auramina, reactivos (juego de tres componentes: 200 g de cristales de fenol incoloros C6H6O, 1 litro de etanol para soluciones de tinción C2H6O y 5 g de auramina O C17H22ClN3 para preparar solución para de tinción de auramina): 1 juego; solución decolorante de auramina, 1 litro (solución decolorante lista para usar con 0,5% de HCl/alcohol): 6; solución de contratinción de auramina, 1 litro (azul de metileno a 0,3%, solución de contratinción para la tinción de auramina O): 6; 50 x 20 portaobjetos de microscopio: 1: 100 x papeles de filtro: 1; 10 x lápices: 1; 2 x rotuladores resistentes al agua: 1; 500 x bolsas de plástico de 200 mm de ancho x 300 mm de largo: 1, 1000 x aplicadores de madera: 1; 400 x pares de guantes de nitrilo (100 pequeños, 200 medianos, 100 grandes): 1; cajas de 30 rollos de toallas de papel de 150 hojas: 1; papel para limpiar lentes: 100 papeles: 1; aceite de inmersión, 100 ml: 1; alcohol desnaturalizado a 96%, 0,5 litros: 1; desinfectante de cloro estable, 50 tabletas: 5.","kit",1000,{"$f":"D22*1/1000","v":1},{"$f":"IF(W15=C12,ROUNDUP((E22/D22)*C9,0),0)","v":0},200.5,"1 kit para 1000 pruebas"]
[]
[]
[null,"Resumen","Costo (US$)"]
[null,"Costo total de la microscopía",{"$f":"F22*G22","v":0}]
[null,"Costo por frotis",{"$f":"IF(C9=0,\"-\",(C26/C9))","v":"-"}]
[]
[]
[]
["Código GDF","Artículo","Unidades por paquete","Número de paquetes","Costo por unidad (US$)","Presupuesto","Detalles del cálculo"]
[106602,"Azul de metileno, 10 x 10 g (frascos)",100,{"$f":"IF(X15=C12,ROUNDUP((C9*0.02)/C32,0),0)","v":0},161.5,{"$f":"D32*E32","v":0},"Azul de metileno: 5 ml por portaobjetos, incluye +10%"]
[106599,"Cristales de fenol, incoloros, 500 g",500,{"$f":"IF(X15=C12,ROUNDUP((C9*0.03)/C33,0),0)","v":0},96.05,{"$f":"D33*E33","v":0},"incluye +10%"]
[106276,"Auramine O, polvo, 25 g",25,{"$f":"IF(X15=C12,ROUNDUP((C9*0.003)/C34,0),0)","v":0},38.4,0,"incluye +10%"]
[106597,"Etanol, 99%, 1 litro (botella), para decolorante",1000,{"$f":"IF(X15=C12,ROUNDUP((C9*0.55)/C35,0),0)","v":0},8.35,0,"Decolorante: 7 ml por portaobjetos, incluye +10%"]
[106603,"Ácido clorhídrico, 1 litro (botella)",1000,{"$f":"IF(X15=C12,ROUNDUP((C9*0.8)/C36,0),0)","v":0},18.100000000000001,{"$f":"D36*E36","v":0},"incluye +10%"]
[null,"Total para reactivos",null,{"$f":"SUM(F32:F36)","v":0}]
[null,"Costo de los reactivos por frotis",null,{"$f":"IF(C9=0,\"-\",D37/C9)","v":"-"}]
[]
[]
["Código GDF","Artículo","Unidades por paquete","Número de paquetes","Costo por unidad (US$)","Presupuesto","Detalles del cálculo"]
[106655,"Aplicadores de madera, 150 mm",1000,{"$f":"IF(X15=C12,ROUNDUP((C9*1.1)/C42,0),0)","v":0},2.5099999999999998,{"$f":"D42*E42","v":0},"incluye +10%"]
[106609,"Portaobjetos para microscopio, vidrio sódico-cálcico, paquete de 1000",1000,{"$f":"IF(X15=C12,ROUNDUP((C9*1.1)/C43,0),0)","v":0},10.4,0,"incluye +10%"]
[106627,"Aceite de inmersión, 100 ml",100,{"$f":"IF(X15=C12,ROUNDUP((C9*0.11)/C44,0),0)","v":0},9.24,0,"incluye +10%"]
[106656,"Papel para limpiar lentes",150,{"$f":"IF(X15=C12,ROUNDUP((C9*0.33)/C45,0),0)","v":0},0.56999999999999995,0,"incluye +10%"]
[106354,"Papel de filtro redondo, 150 mm",100,{"$f":"IF(X15=C12,ROUNDUP((C9*0.011)/C46,0),0)","v":0},24,0,"incluye +10%"]
[106597,"Etanol, 99%, 1 litro (botella), para quemadores de alcohol",1000,{"$f":"IF(X15=C12,ROUNDUP((C9*0.001)/C47,0),0)","v":0},8.35,0]
[106355,"Rotulador (resistente al agua)",1,{"$f":"IF(X15=C12,ROUNDUP((C9*0.001)/C48,0),0)","v":0},2.0499999999999998,0]
[106525,"Recipientes de esputo, paquete de 1000",1000,{"$f":"IF(X15=C12,ROUNDUP((C9*1.1)/C49,0),0)","v":0},83.3,0,"incluye +10%"]
[null,"Total para reactivos",null,{"$f":"SUMPRODUCT(D42:D49,E42:E49)","v":0}]
[null,"Costo de los reactivos por frotis",null,{"$f":"IF(C9=0,\"-\",D50/C9)","v":"-"}]
[]
[]
[null,"Resumen","Costo (US$)"]
[null,"Costo total de la microscopía",{"$f":"D50+D37","v":0}]
[null,"Costo por frotis",{"$f":"IF(C9=0,\"-\",(C55/C9))","v":"-"}]

{"sheet":"Xpert MTB XDR","index":9,"n_rows":26,"n_cols":7,"rows_kept":26,"cut":false,"hidden":false,"merged":[[23,2,23,3],[0,0,0,9],[1,1,1,9],[2,1,2,2],[2,4,2,6],[6,4,6,5]]}
["Prueba Xpert MTB/XDR: Se proponen dos métodos para calcular el número previsto de pruebas que se realizarán durante el período."]
[null,"Los valores en rojo deben introducirse o ajustarse de acuerdo con los datos y las prácticas reales del país, cuando sea posible."]
[null,"Método 1: Proyección basada en el consumo. El número previsto de pruebas se basa en el número de pruebas realizadas el año pasado.",null,null,"Método 2: Proyección basada en la morbilidad. El número estimado de pruebas se basa en datos epidemiológicos (casos notificados) y algoritmos planificados. La suma calculada es el objetivo que se debe alcanzar cuando se usan algoritmos de acuerdo con la cobertura y los supuestos indicados."]
[null,"Número promedio de pruebas Xpert MTB/XDR realizadas por mes",0,null,"Población de pacientes","Cobertura de las pruebas","Número de pruebas Xpert MTB/XDR requeridas para el período"]
[null,"Número de pruebas Xpert MTB/XDR requeridas para el período",{"$f":"C4*Months","v":0},null,"Número de casos de tuberculosis resistente a la rifampicina y multirresistente que se prevé que se detectarán durante el año",0,{"$f":"'Características epidemiológicas'!$B$14*F5","v":0}]
[null,null,null,null,"Personas con tuberculosis monorresistente a la isoniazida detectada (para detectar la resistencia a las fluoroquinolonas)",0,{"$f":"('Características epidemiológicas'!$E$7+'Características epidemiológicas'!$B$8)*F6*'Características epidemiológicas'!B16","v":0}]
[null,null,null,null,"Número total de pruebas Xpert MTB/XDR requeridas para el período",null,{"$f":"SUM(G5:G6)","v":0}]
[]
[]
[]
[]
[null,"Número de cartuchos Xpert MTB/XDR necesarios para el período (con el método de previsión 1 o 2 o un valor intermedio)",0]
[null,"Porcentaje de \"no válido\", \"error\" o \"ningún resultado\"",0]
[null,"Suministro actual",0]
[null,"Número total de cartuchos Xpert MTB/XDR necesarios para el período",{"$f":"((C12*C13)+C12)","v":0}]
[null,"Número total de cartuchos Xpert MTB/XDR que se deben encargar",{"$f":"((C12*C13)+C12)-C14","v":0}]
[]
["Código GDF","Artículo","Unidades por paquete","Número de paquetes que se deben encargar","Costo por unidad (US$)","Detalles del cálculo"]
[null,"Cartuchos Xpert MTB/XDR",10,{"$f":"ROUNDUP((C16/C19),0)","v":0},198]
[106340,"Tubos de plástico estéril para centrífuga, 50 ml",500,0,45,"Si usa recipientes de esputo normales, ponga \"0\" para \"Número de paquetes que se deben encargar\""]
[106525,"Recipientes de esputo, paquete de 1000",1000,{"$f":"ROUNDUP(((C16*1.1)/C21),0)","v":0},83.3]
[]
[]
[null,null,"Resumen",null,"Costo (US$)"]
[null,null,"Total para Xpert MTB/XDR",null,{"$f":"SUMPRODUCT(D19:D21*E19:E21)","v":0}]
[null,null,"Total por prueba Xpert MTB/XDR",null,{"$f":"IF(C16=0,\"-\",(E25/C16))","v":"-"}]

{"sheet":"LPA 1.ª línea","index":10,"n_rows":57,"n_cols":25,"rows_kept":57,"cut":false,"hidden":false,"merged":[[14,2,14,3],[16,2,16,3],[30,7,31,7],[2,1,2,2],[2,4,2,6],[5,4,5,5],[13,4,13,5],[12,2,12,3],[54,2,54,3],[20,21,20,27],[21,2,21,3],[23,2,23,3],[16,4,16,5],[22,2,22,3],[24,2,24,3],[0,0,0,9],[1,1,1,9],[26,2,26,3],[17,2,17,3],[18,2,18,3],[12,4,12,5],[14,4,14,5],[17,4,17,5],[18,4,18,5],[15,2,15,3],[15,4,15,5],[13,2,13,3],[19,2,19,3],[19,5,23,5],[20,2,20,3],[25,2,25,3]]}
["LPA para medicamentos de primera línea: Se proponen dos métodos para calcular el número previsto de pruebas que se realizarán durante el período."]
[null,"Los valores en rojo deben introducirse o ajustarse de acuerdo con los datos y las prácticas reales del país, cuando sea posible."]
[null,"Método 1: Proyección basada en el consumo. El número previsto de pruebas se basa en el número de pruebas realizadas el año pasado.",null,null,"Método 2: Proyección basada en la morbilidad. El número estimado de pruebas se basa en datos epidemiológicos (casos notificados) y algoritmos planificados. La suma calculada es el objetivo que se debe alcanzar cuando se usan algoritmos de acuerdo con la cobertura y los supuestos indicados."]
[null,"Número promedio de pruebas LPA para medicamentos de primera línea realizadas por mes",0,null,"Población de pacientes","Cobertura de las pruebas","Número de pruebas LPA para medicamentos de primera línea requeridas para el período"]
[null,"Número de pruebas LPA para medicamentos de primera línea requeridas para el período",{"$f":"C4*Months","v":0},null,"Casos nuevos de TB con frotis positivo a quienes se les administró la prueba para detectar la resistencia a la rifampicina y a la isoniazida (excluidos aquellos a quienes se les administró esta prueba para el diagnóstico inicial)",0,{"$f":"ROUND('Características epidemiológicas'!C7-(('Características epidemiológicas'!B9*'Características epidemiológicas'!B10)+('Características epidemiológicas'!E7+'Características epidemiológicas'!B8+'Características epidemiológicas'!B14)+('Características epidemiológicas'!E11*'Características epidemiológicas'!E10*'Características epidemiológicas'!C4)+('Características epidemiológicas'!C7*'Características epidemiológicas'!B10)),-2)*F5","v":0}]
[null,null,null,null,"Número total de pruebas LPA para medicamentos de primera línea requeridas para el período",null,{"$f":"SUM(G5:G5)","v":0}]
[]
[]
[]
[]
[null,"Pruebas LPA para medicamentos de primera línea utilizadas","GenoType MTBDRplus","<=Elija aquí"]
[]
[null,"Número de lotes utilizados por semana",0,null,"Ponga el número apropiado según el consumo anterior. El número predeterminado se basa en el uso óptimo de la prueba"]
[null,"Número de muestras por lote",0,null,"Ponga el número apropiado según el consumo anterior. El número predeterminado se basa en el uso óptimo de la prueba"]
[null,"Número de controles por lote",0,null,"Ponga el número apropiado según el consumo anterior. El número predeterminado se basa en el uso óptimo de la prueba"]
[null,"Número de pruebas LPA para medicamentos de primera línea para el período (calculado con el método de proyección 1 o 2 o un valor intermedio)",0]
[null,"Tamaño promedio de un lote",{"$f":"C14+C15","v":0}]
[null,"Número de lotes necesarios para el período",{"$f":"IF(C14=0,0,C16/C14)","v":0}]
[null,"Número de pruebas que se deben realizar (muestras y controles)",{"$f":"IF(C17=0,0,C18*C17)","v":0}]
[null,"Repeticiones estimadas (%)",0]
[null,"Número de pruebas adicionales por lote para compensar el error de pipeteo",1,null,null,null,null,null,null,null,null,null,null,null,null,null,null,null,null,null,null,"No borrar"]
[null,"Equipo para LPA utilizado en el laboratorio","GT-Blot 48",null,"<=Elija aquí",null,null,null,null,null,null,null,null,null,null,null,null,null,null,null,null,null,"GT-Blot 48","TwinCubator"]
[null,"Extracción de ADN con o sin GenoLyse","Con GenoLyse",null,"<=Elija aquí"]
[null,"Para la extracción de ADN","Tubos de reacción estándares, 2 ml",null,"<=Elija aquí",null,null,null,null,null,null,null,null,null,null,null,null,null,null,null,null,null,"Tubos de reacción estándares, 2 ml","Tubos de reacción estándares, 1,5 ml"]
[null,"Suministro actual",0]
[null,"Número total de pruebas que se realizarán durante el período",{"$f":"ROUNDUP(C19+(C19*repet)+C21*C18,0)","v":0},null,null,null,null,null,null,null,null,null,null,null,null,null,null,null,null,null,null,null,"MULTIBLOT NS-4800"]
[null,"Número total de pruebas que se deben encargar",{"$f":"IF(C25=0,(ROUNDUP(C19+(C19*repet)+C21*C18,0)),(ROUNDUP(C19+(C19*repet)+C21*C18,0))-C25)","v":0},null,null,null,null,null,null,null,null,null,null,null,null,null,null,null,null,null,null,null,"GenoType MTBDRplus"]
[null,null,null,null,null,null,null,null,null,null,null,null,null,null,null,null,null,null,null,null,null,null,"Genoscholar NTM+MDRTB II"]
[null,"Código GDF","Artículo","Unidades por paquete","Número de paquetes","Costo por unidad (US$)","Detalles del cálculo","Opción"]
[null,106682,"Genoscholar NTM+MDRTB II",20,{"$f":"IF(C11=W28,ROUNDUP(C27/unit_pack,0),0)","v":0},320,null,null,null,null,null,null,null,null,null,null,null,null,null,null,null,null,"Con GenoLyse","Sin GenoLyse"]
[null,106512,"GenoType MTBDRplus (kit para 96 pruebas), Versión 2.0 (30496A)",96,{"$f":"IF(C11=W27,ROUNDUP(C27/unit_pack,0),0)","v":0},720,null,"Dos métodos: se divide en partes alícuotas un vial por lote o agua de grado molecular. Seleccionar de la lista desplegable"]
[null,106477,"GenoLyse (96 pruebas), Versión 1.0 (51610)",96,{"$f":"IF($C$23=$W$30,ROUNDUP(C27/D32,0),0)","v":0},50]
[null,106254,"Agua de grado molecular, 10 x 1,7 ml",17,{"$f":"IF(H33=X33,ROUNDUP(C18*0.505/unit_pack,0),IF(C14*0.505<=1.8,ROUNDUP(C18/10,0),ROUNDUP(C14*0.505,0)))","v":0},201.85,"Se necesitan 505 μl por lote, un vial por lote o alícuota","1 vial por lote","<=Elija aquí",null,null,null,null,null,null,null,null,null,null,null,null,null,"1 vial por lote","Alícuota"]
[null,106385,"Tubos para PCR, 0,2 ml, con tapa fija, estériles, libres de ADNasa y ARNasa, 1000 por paquete",1000,{"$f":"ROUNDUP((kit_ordered*D31*1.05)/unit_pack,0)","v":0},45.8,"1 tubo por prueba + 5% extra"]
[null,106422,"Tubos para microcentrífuga, 2 ml",500,{"$f":"IF(C24=W24,ROUNDUP(kit_ordered*D31*2/unit_pack,0),0)","v":0},49.55,"2 tubos por prueba + 5% extra"]
[null,106421,"Tubos para microcentrífuga, 1,5 ml",{"$f":"IF(B36=106350,1000,500)","v":500},{"$f":"IF(C24=X24,ROUNDUP(kit_ordered*D31*2/unit_pack,0),0)","v":0},91.95,"2 tubos por prueba + 5% extra",null,null,null,null,null,null,null,null,null,null,null,null,null,null,null,"Tubos de reacción estándares, 1,5 ml","Tubos de reacción estándares, 2 ml"]
[null,106383,"Crioviales estériles, 2 ml; se pueden abrir y cerrar con una sola mano",1000,{"$f":"ROUNDUP(kit_ordered*D31/unit_pack,0)","v":0},261.39999999999998,"Los crioviales son necesarios para el almacenamiento, 1 tubo por prueba + 5% extra",null,null,null,null,null,null,null,null,null,null,null,null,null,null,null,null,null,{"$f":"C27+(C27*5)/100","v":0}]
[null,106554,"Puntas de filtro estériles, 0,1-10 μl",960,{"$f":"ROUNDUP((kit_ordered*D31*2.05)/unit_pack,0)","v":0},115.7,"2 puntas por prueba + 5% extra para añadir sobrenadante a los tubos para PCR y n x 5 μL de ADN"]
[null,106389,"Puntas de filtro estériles, 20-200 μl",960,{"$f":"ROUNDUP((kit_ordered*D31*(2+1)+C18*(3+IF($C$22=$W$22,0,2)))*1.05/unit_pack,0)","v":0},61,"2 puntas por prueba para la extracción de ADN, 2 puntas por lote para la amplificación, 1 punta por lote para agregar solución de desnaturalización, 1 punta por prueba para agregar amplicones de ADN; si se usa TwinCubator, 2 puntas para sustrato y conjugado + 5% extra"]
[null,106390,"Puntas de filtro estériles, 100-1000 μl",960,{"$f":"ROUNDUP(kit_ordered*D31*1.05/unit_pack,0)","v":0},88.5,"1 punta por lote para mezcla maestra + 5% extra"]
[null,106412,"Puntas largas de 1 ml con filtro",800,{"$f":"ROUNDUP((kit_ordered*D31*2+IF($C$22=$W$22,0,kit_ordered*D31*2+IF(H42=X42,0,C18*8)))*1.05/unit_pack,0)","v":0},90,"2 puntas para agregar o desechar muestras descontaminadas, solo para TwinCubator: 2 puntas por lote para agregar amortiguador de hibridación y solución de lavado astringente + 8 puntas por lote para agregar enjuague (3), agua (3), sustrato (1), conjugado (1)","Seleccione a continuación si usa Combitips o no"]
[null,106398,"Puntas dispensadoras, 12,5 ml",100,{"$f":"IF(AND(H42=X42,$C$22=$X$22),ROUNDUP(C18*8*1.05/unit_pack,0),0)","v":0},50,"Alternativa en vez de puntas largas de 1 ml: 8 puntas por lote para agregar enjuage (3), agua (3), sustrato (1), conjugado (1) + 5% extra","Se usan Combitips","<=Elija aquí",null,null,null,null,null,null,null,null,null,null,null,null,null,null,"Se usan Combitips","No se usan Combitips"]
[null,106434,"Pipetas Pasteur no estériles, 3 ml",500,{"$f":"ROUNDUP((kit_ordered*$D$31*(2)+C18*5)*1.05/unit_pack,0)","v":0},9.9,"2 pipetas por muestra para extraer el amortiguador de hibridación y la solución de lavado astringente y 5 pipetas por lote para extraer enjuague, agua, sustrato y conjugado + 5% extra"]
[null,106556,"Pinzas de plástico estéril para laboratorio",50,{"$f":"ROUNDUP(C18*2/unit_pack,0)","v":0},7.45,"2 por lote"]
[null,106355,"Rotulador indeleble",1,{"$f":"ROUNDUP(kit_ordered/3/unit_pack,0)","v":0},2.0499999999999998,"1 rotulador para 3 kits"]
[null,106384,"Tubos de plástico estéril para centrífuga, 15 ml",500,{"$f":"ROUNDUP(C18*4/unit_pack,0)","v":0},48.95,"4 tubos por lote (conjugado y sustrato para dilución + amortiguador de hibridación + solución de lavado astringente)"]
[null,106340,"Tubos de plástico estéril para centrífuga, 50 ml",500,{"$f":"ROUNDUP(C18*IF($C$22=$W$22,5,3)/unit_pack,0)","v":0},45,"3 tubos por lote; 5 tubos si se usa GT-Blot 48 (descontaminación)"]
[null,106444,"Bolsas de plástico de 30 litros",200,{"$f":"ROUNDUP(Months*22*4/unit_pack,0)","v":0},98.6,"4 por día laborable"]
[null,106415,"Papel de filtro cuadrado, 580 mm",100,{"$f":"ROUNDUP(Months*22*8/unit_pack,0)","v":0},111.4,"8 por día laborable"]
[null,106439,"Juego de reactivos GT-Blot 48",1,{"$f":"IF($C$22=$W$22,ROUNDUP(kit_ordered/3/unit_pack,0),0)","v":0},0,"1 kit para 3 kits para pruebas LPA si se usa GT-Blot 48"]
[null,106438,"Bandeja GT-Blot 48 para 96 tiras (negra)",1,{"$f":"IF($C$22=$W$22,ROUNDUP(C18/10*1.2/unit_pack,0),0)","v":0},2.9,"1 bandeja para 10 lotes + 20%"]
[null,106755,"Toallas de papel",200,{"$f":"ROUNDUP(12*22*40/unit_pack,0)","v":53},1.45,"40 por día"]
[null,106333,"Etanol o isopropanol, 5 litros",5,{"$f":"ROUNDUP(Months*4.33*1/unit_pack,0)","v":0},32.15,"1 litro por semana"]
[]
[null,null,"Resumen",null,"Costo (US$)"]
[null,null,"Total para la prueba LPA para medicamentos de primera línea, MTBDRplus V2",null,{"$f":"SUMPRODUCT(E31:E53*F31:F53)","v":76.849999999999994}]
[null,null,"Total por prueba LPA para medicamentos de primera línea, MTBDRplus V2",null,{"$f":"IF(C27=0,\"-\",E56/C27)","v":"-"}]

{"sheet":"LPA 2.ª línea","index":11,"n_rows":56,"n_cols":26,"rows_kept":56,"cut":false,"hidden":false,"merged":[[12,2,12,3],[12,4,12,5],[0,1,0,6],[1,1,1,6],[2,1,2,2],[2,4,2,6],[6,4,6,5],[13,2,13,3],[13,4,13,5],[14,2,14,3],[14,4,14,5],[15,2,15,3],[15,4,15,5],[20,22,20,28],[21,2,21,3],[23,2,23,3],[16,2,16,3],[16,4,16,5],[17,2,17,3],[17,4,17,5],[18,2,18,3],[18,4,18,5],[25,2,25,3],[26,2,26,3],[29,7,30,7],[22,2,22,3],[19,2,19,3],[19,5,23,5],[20,2,20,3],[24,2,24,3]]}
[null,"LPA para medicamentos de segunda línea: Se proponen dos métodos para calcular el número previsto de pruebas que se realizarán durante el período."]
[null,"Los valores en rojo deben introducirse o ajustarse de acuerdo con los datos y las prácticas reales del país, cuando sea posible."]
[null,"Método 1: Proyección basada en el consumo. El número previsto de pruebas se basa en el uso diario promedio de cada módulo.",null,null,"Método 2: Proyección basada en la morbilidad. El número estimado de pruebas se basa en datos epidemiológicos (casos notificados) y algoritmos planificados. La suma calculada es el objetivo que se debe alcanzar cuando se usan algoritmos de acuerdo con la cobertura y los supuestos indicados."]
[null,"Número promedio de pruebas LPA para medicamentos de segunda línea realizadas por mes",0,null,"Población de pacientes","Cobertura de las pruebas","Número de pruebas LPA para medicamentos de primera línea para el período"]
[null,"Número de pruebas LPA para medicamentos de segunda línea requeridas para el período",{"$f":"C4*Months","v":0},null,"Número de casos de tuberculosis resistente a la rifampicina y multirresistente que se prevé que se detectarán durante el año",0,{"$f":"'Características epidemiológicas'!$B$14*F5","v":0}]
[null,null,null,null,"Personas con tuberculosis monorresistente a la isoniazida detectada (para detectar la resistencia a las fluoroquinolonas)",0,{"$f":"('Características epidemiológicas'!$E$7+'Características epidemiológicas'!$B$8)*F6*'Características epidemiológicas'!B16","v":0}]
[null,null,null,null,"Número total de pruebas LPA para medicamentos de segunda línea requeridas para el período",null,{"$f":"SUM(G5:G6)","v":0}]
[]
[]
[]
[]
[]
[null,"Número de lotes por semana",0,null,"Ponga el número apropiado según el consumo anterior. El número predeterminado se basa en el uso óptimo de la prueba"]
[null,"Número de muestras por lote",0,null,"Ponga el número apropiado según el consumo anterior. El número predeterminado se basa en el uso óptimo de la prueba"]
[null,"Número de controles por lote",0,null,"Ponga el número apropiado según el consumo anterior. El número predeterminado se basa en el uso óptimo de la prueba"]
[null,"Número de pruebas LPA para medicamentos de segunda línea requeridas para el período (con el método de proyección 1 o 2 o un valor intermedio)",0]
[null,"Número promedio de muestras por lote",{"$f":"C14+C15","v":0}]
[null,"Número de lotes para el período",{"$f":"IF(C14=0,0,C16/C14)","v":0}]
[null,"Número de pruebas (muestras y controles)",{"$f":"C18*C17","v":0}]
[null,"Repeticiones estimadas (%)",0]
[null,"Número de pruebas adicionales por lote para compensar el error de pipeteo",1,null,null,null,null,null,null,null,null,null,null,null,null,null,null,null,null,null,null,null,"No borrar"]
[null,"Equipo para LPA utilizado en el laboratorio","GT-Blot 48",null,"<=Elija aquí",null,null,null,null,null,null,null,null,null,null,null,null,null,null,null,null,null,null,"GT-Blot 48","TwinCubator"]
[null,"Extracción de ADN con o sin GenoLyse","Con GenoLyse",null,"<=Elija aquí"]
[null,"Para la extracción de ADN","Tubos de reacción estándares, 2 ml",null,"<=Elija aquí",null,null,null,null,null,null,null,null,null,null,null,null,null,null,null,null,null,null,"Tubos de reacción estándares, 2 ml","Tubos de reacción estándares, 1,5 ml"]
[null,"Suministro actual"]
[null,"Número total de pruebas que se realizarán durante el período",{"$f":"ROUNDUP(C19+(C19*repet)+C21*C18,0)","v":0},null,null,null,null,null,null,null,null,null,null,null,null,null,null,null,null,null,null,null,null,"Con GenoLyse","Sin GenoLyse"]
[null,"Número total de pruebas que se deben encargar",{"$f":"IF(C25=0,(ROUNDUP(C19+(C19*repet)+C21*C18,0)),((ROUNDUP(C19+(C19*repet)+C21*C18,0))-C25))","v":0}]
[]
[null,"Código GDF","Artículo","Unidades por paquete","Número de paquetes","Costo por unidad (US$)","Detalles del cálculo","Options"]
[null,106513,"GenoType MTBDRsl (kit para 96 pruebas), Versión 2.0 (30496A)",96,{"$f":"ROUNDUP(C27/unit_pack,0)","v":0},720,null,"Dos métodos: se divide en partes alícuotas un vial por lote o agua de grado molecular. Seleccionar de la lista desplegable"]
[null,106477,"GenoLyse (96 pruebas), Versión 1.0 (51610)",96,{"$f":"IF($C$23=$X$26,ROUNDUP(C27/D31,0),0)","v":0},50]
[null,106254,"Agua de grado molecular, 10 x 1,7 ml",17,{"$f":"IF(H32=Y32,ROUNDUP(C18*0.505/unit_pack,0),IF(C14*0.505<=1.8,ROUNDUP(C18/10,0),ROUNDUP(C14*0.505,0)))","v":0},201.85,"Se necesitan 505 μl por lote, un vial por lote o alícuota","Alícuota","<=Elija aquí",null,null,null,null,null,null,null,null,null,null,null,null,null,null,"1 vial por lote","Alícuota"]
[null,106385,"Tubos para PCR, 0,2 ml, con tapa fija, estériles, libres de ADNasa y ARNasa, 1000 por paquete",1000,{"$f":"ROUNDUP((kit_ordered*D30*1.05)/unit_pack,0)","v":0},45.8,"1 tubo por prueba + 5% extra"]
[null,106422,"Tubos para microcentrífuga, 2 ml",500,{"$f":"IF(C24=X24,ROUNDUP(kit_ordered*D30*2/unit_pack,0),0)","v":0},49.55,"2 tubos por prueba + 5% extra"]
[null,106421,"Tubos para microcentrífuga, 1,5 ml",{"$f":"IF(B35=106350,1000,500)","v":500},{"$f":"IF(C24=Y24,ROUNDUP(kit_ordered*D30*2/unit_pack,0),0)","v":0},91.95,"2 tubos por prueba + 5% extra",null,null,null,null,null,null,null,null,null,null,null,null,null,null,null,null,"Tubos de reacción estándares, 1,5 ml","Tubos de reacción estándares, 2 ml"]
[null,106383,"Crioviales estériles, 2 ml; se pueden abrir y cerrar con una sola mano",1000,{"$f":"IF(H36=Z36,0,ROUNDUP(kit_ordered*D30/unit_pack,0))","v":0},261.39999999999998,"Los crioviales son necesarios para el almacenamiento, 1 tubo por prueba + 5% extra",null,null,null,null,null,null,null,null,null,null,null,null,null,null,null,null,null,null,{"$f":"total_test+(total_test*5)/100","v":0}]
[null,106554,"Puntas de filtro estériles, 0,1-10 μl",960,{"$f":"ROUNDUP(E35*D35/D37,0)","v":0},115.7,"1 punta por vial"]
[null,106389,"Puntas de filtro estériles, 20-200 μl",960,{"$f":"ROUNDUP((kit_ordered*D30*2.05)/unit_pack,0)","v":0},61,"2 puntas por prueba + 5% extra para añadir sobrenadante a los tubos para PCR y n x 5 μL de ADN"]
[null,106390,"Puntas de filtro estériles, 100-1000 μl",960,{"$f":"ROUNDUP((kit_ordered*D30*(2+1)+C18*(3+IF($C$22=$X$22,0,2)))*1.05/unit_pack,0)","v":0},88.5,"2 puntas por prueba para extracción de ADN, 2 puntas por lote para amplificación, 1 punta por lote para agregar solución de desnaturalización, 1 punta por prueba para agregar amplicones de ADN; si se usa TwinCubator, 2 puntas para sustrato y conjugado + 5% extra"]
[null,106412,"Puntas largas de 1 ml con filtro",800,{"$f":"ROUNDUP(kit_ordered*D30*1.05/unit_pack,0)","v":0},90,"1 punta por lote para mezcla maestra + 5% extra"]
[null,106398,"Puntas dispensadoras, 12,5 ml",100,{"$f":"ROUNDUP((kit_ordered*D30*2+IF($C$22=$X$22,0,kit_ordered*D30*2+IF(H42=Y42,0,C18*8)))*1.05/unit_pack,0)","v":0},50,"2 puntas para agregar o desechar muestras descontaminadas; solo para TwinCubator: 2 puntas por lote para agregar amortiguador de hibridación y solución de lavado astringente + 8 puntas por lote para agregar enjuague (3), agua (3), sustrato (1), conjugado (1)","Seleccione a continuación si usa Combitips o no"]
[null,106434,"Pipetas Pasteur no estériles, 3 ml",500,{"$f":"IF(AND(H42=Y42,$C$22=$Y$22),ROUNDUP(C18*8*1.05/unit_pack,0),0)","v":0},9.9,"Alternativa en vez de puntas largas de 1 ml: 8 puntas por lote para agregar enjuage (3), agua (3), sustrato (1), conjugado (1) + 5% extra","No se usan Combitips",null,null,null,null,null,null,null,null,null,null,null,null,null,null,null,null,"Se usan Combitips","No se usan Combitips"]
[null,106556,"Pinzas de plástico estéril para laboratorio",50,{"$f":"ROUNDUP((kit_ordered*$D$30*(2)+C18*5)*1.05/unit_pack,0)","v":0},7.45,"2 pipetas por muestra para extraer el amortiguador de hibridación y la solución de lavado astringente y 5 pipetas por lote para extraer enjuague, agua, sustrato y conjugado + 5% extra"]
[null,106355,"Rotulador indeleble",1,{"$f":"ROUNDUP(C18*2/unit_pack,0)","v":0},2.0499999999999998,"2 por lote"]
[null,106384,"Tubos de plástico estéril para centrífuga, 15 ml",500,{"$f":"ROUNDUP(kit_ordered/3/unit_pack,0)","v":0},48.95,"1 rotulador para 3 kits"]
[null,106340,"Tubos de plástico estéril para centrífuga, 50 ml",500,{"$f":"ROUNDUP(C18*4/unit_pack,0)","v":0},45,"4 tubos por lote (conjugado y sustrato para dilución + amortiguador de hibridación + solución de lavado astringente)"]
[null,106444,"Bolsas de plástico de 30 litros",200,{"$f":"ROUNDUP(C18*IF($C$22=$X$22,5,3)/unit_pack,0)","v":0},98.6,"3 tubos por lote; 5 tubos si se usa GT-Blot 48 (descontaminación)"]
[null,106415,"Papel de filtro cuadrado, 580 mm",100,{"$f":"ROUNDUP(Months*22*4/unit_pack,0)","v":0},111.4,"4 por día laborable"]
[null,106439,"Juego de reactivos GT-Blot 48",1,{"$f":"ROUNDUP(Months*22*8/unit_pack,0)","v":0},0,"8 por día laborable"]
[null,106438,"Bandeja GT-Blot 48 para 96 tiras (negra)",1,{"$f":"IF($C$22=$X$22,ROUNDUP(kit_ordered/3/unit_pack,0),0)","v":0},2.9,"1 kit para 3 kits para pruebas LPA si se usa GT-Blot 48"]
[null,106755,"Toallas de papel",200,{"$f":"IF($C$22=$X$22,ROUNDUP(C18/10*1.2/unit_pack,0),0)","v":0},1.45,"1 bandeja para 10 lotes + 20%"]
[null,106333,"Etanol o isopropanol, 5 litros",5,{"$f":"ROUNDUP(Months*4.33*1/unit_pack,0)","v":0},32.15,"40 por día"]
[]
[null,null,"Resumen",null,"Costo (US$)"]
[null,null,"Total para pruebas LPA para medicamentos de primera línea, MTBDRplus V2",null,{"$f":"SUMPRODUCT(E30:E52*F30:F52)","v":0}]
[null,null,"Total por prueba LPA para medicamentos de primera línea, MTBDRplus V2",null,{"$f":"IF(C27=0,\"-\",E55/C27)","v":"-"}]

{"sheet":"Prueba MAX MDR-TB","index":12,"n_rows":43,"n_cols":21,"rows_kept":43,"cut":false,"hidden":false,"merged":[[21,20,21,26],[23,2,23,3],[40,2,40,3],[18,2,18,3],[18,4,18,5],[19,2,19,3],[19,4,19,5],[20,2,20,3],[20,5,21,5],[21,2,21,3],[27,6,28,6],[22,2,22,3],[24,2,24,3],[15,2,15,3],[15,4,15,5],[16,2,16,3],[16,4,16,5],[17,2,17,3],[17,4,17,5],[14,2,14,3],[14,4,14,5],[0,0,0,8],[1,1,1,8],[2,1,2,2],[2,4,2,6],[9,4,9,5]]}
["Prueba MAX MDR-TB: Se proponen dos métodos para calcular el número previsto de pruebas que se realizarán durante el período."]
[null,"Los valores en rojo deben introducirse o ajustarse de acuerdo con los datos y las prácticas reales del país, cuando sea posible."]
[null,"Método 1: Proyección basada en el consumo. El número previsto de pruebas se basa en el número de pruebas realizadas el año pasado.",null,null,"Método 2: Proyección basada en la morbilidad. El número estimado de pruebas se basa en datos epidemiológicos (casos notificados) y algoritmos planificados. La suma calculada es el objetivo que se debe alcanzar cuando se usan algoritmos de acuerdo con la cobertura y los supuestos indicados."]
[null,"Número promedio de pruebas MAX MDR-TB realizadas por mes",0,null,"Población de pacientes","Cobertura de las pruebas","Número de pruebas MAX MDR-TB requeridas para el período"]
[null,"Número de pruebas MAX MDR-TB requeridas para el período",{"$f":"C4*Months","v":0},null,"Personas con infección por el VIH que tienen signos y síntomas de TB",0,{"$f":"ROUND((F5*'Características epidemiológicas'!B12*'Características epidemiológicas'!B20*'Características epidemiológicas'!E20),-2)","v":0}]
[null,null,null,null,"Niños con signos y síntomas de TB",0,{"$f":"ROUND(F6*'Características epidemiológicas'!B9*'Características epidemiológicas'!B10*'Características epidemiológicas'!B26, -2)","v":0}]
[null,null,null,null,"Personas en riesgo de tuberculosis farmacorresistente",0,{"$f":"ROUND(F7*('Características epidemiológicas'!E7*'Características epidemiológicas'!B17)+'Características epidemiológicas'!B8+('Características epidemiológicas'!B14*'Características epidemiológicas'!E17), -2)","v":0}]
[null,null,null,null,"Adultos VIH-negativos que no habían tratados previamente y que presentan signos y síntomas de TB",0,{"$f":"ROUND(F8*'Características epidemiológicas'!E11*'Características epidemiológicas'!E10*'Características epidemiológicas'!C4*'Características epidemiológicas'!B18,-2)","v":0}]
[null,null,null,null,"Casos nuevos de TB con frotis positivo a quienes se les administró la prueba Xpert para detectar la resistencia a la rifampicina (excluidos aquellos a quienes se les administró esta prueba para el diagnóstico inicial)",0,{"$f":"ROUND('Características epidemiológicas'!C7-(('Características epidemiológicas'!B9*'Características epidemiológicas'!B10)+('Características epidemiológicas'!E7+'Características epidemiológicas'!B8+'Características epidemiológicas'!B14)+('Características epidemiológicas'!E11*'Características epidemiológicas'!E10*'Características epidemiológicas'!C4)+('Características epidemiológicas'!C7*'Características epidemiológicas'!B10)),-2)*F9","v":0}]
[null,null,null,null,"Número total de kits para pruebas MAX MDR-TB requeridos para el período",null,{"$f":"SUM(G5:G9)","v":0}]
[]
[]
[]
[]
[null,"Número de muestras por lote",0]
[null,"Número de controles por lote",0]
[null,"Número de pruebas MAX MDR-TB requeridas para el período (con el método de proyección 1 o 2 o un valor intermedio)",0]
[null,"Tamaño promedio de un lote",{"$f":"C15+C16","v":0}]
[null,"Número de lotes necesarios para el período",{"$f":"IF(C15=0,\"0\",C17/C15)","v":"0"}]
[null,"Número de pruebas (muestras y controles)",{"$f":"IF(C18=0,\"0\",C19*C18)","v":"0"}]
[null,"Repeticiones estimadas (%)",0]
[null,"Número de pruebas adicionales por lote para compensar el error de pipeteo",1,null,null,null,null,null,null,null,null,null,null,null,null,null,null,null,null,null,"No borrar"]
[null,"Suministro actual",0]
[null,"Número total de pruebas que se realizarán durante el período",{"$f":"ROUNDUP(C20+(C20*repet)+C22*C19,0)","v":0}]
[null,"Número total de pruebas que se deben encargar",{"$f":"IF(C23=0,(ROUNDUP(C20+(C20*repet)+C22*C19,0)),(ROUNDUP(C20+(C20*repet)+C22*C19,0)-C23))","v":0}]
[]
[null,"Código GDF","Artículo","Unidades por paquete","Número de paquetes","Costo por unidad (US$)","Detalles del cálculo"]
[null,null,"Kit BD MAX MDR-TB",24,{"$f":"ROUNDUP(C25/unit_pack,0)","v":0},0,"Ponga el costo por unidad de acuerdo con el mecanismo de compras actual"]
[null,null,"Kit BD MAX STR",24,{"$f":"ROUNDUP(C25/unit_pack,0)","v":0},0]
[null,106384,"Tubos de plástico estéril para centrífuga, 15 ml",500,{"$f":"ROUNDUP(kit_ordered*D28*1.05/unit_pack,0)","v":0},48.95,"1 tubo por prueba + 5% extra"]
[null,106422,"Tubos para microcentrífuga, 2 ml",500,{"$f":"ROUNDUP(C19*2*1.05/unit_pack,0)","v":0},49.55,"2 tubos por lote + 5% extra"]
[null,106554,"Puntas de filtro estériles, 0,1-10 μl",960,{"$f":"ROUNDUP((kit_ordered*D28*4*1.05)/unit_pack,0)","v":0},115.7,"4 puntas por prueba + 5% extra"]
[null,106389,"Puntas de filtro estériles, 20-200 μl",960,{"$f":"ROUNDUP((kit_ordered*D28*4*1.05)/unit_pack,0)","v":0},61,"4 puntas por prueba + 5% extra"]
[null,106390,"Puntas de filtro estériles, 100-1000 μl",960,{"$f":"ROUNDUP((kit_ordered*D28*4*1.05)/unit_pack,0)","v":0},88.5,"4 puntas por prueba + 5% extra"]
[null,106444,"Bolsas de plástico de 30 litros",200,{"$f":"ROUNDUP(Months*22*4/unit_pack,0)","v":0},98.6,"4 por día laborable"]
[null,106415,"Papel de filtro cuadrado, 580 mm",100,{"$f":"ROUNDUP(Months*22*8/unit_pack,0)","v":0},111.4,"8 por día laborable"]
[null,106755,"Toallas de papel",200,{"$f":"ROUNDUP(12*22*40/unit_pack,0)","v":53},1.45,"40 por día"]
[null,106333,"Etanol o isopropanol, 5 litros",5,{"$f":"ROUNDUP(Months*4.33*1/unit_pack,0)","v":0},32.15,"1 litro por semana"]
[]
[]
[null,null,"Resumen",null,"Costo (US$)"]
[null,null,"Total para las pruebas MAX MDR-TB",null,{"$f":"SUMPRODUCT(E28:E38*F28:F38)","v":76.849999999999994}]
[null,null,"Total por prueba MAX MDR-TB",null,{"$f":"IF(total_test=0,\"-\",(E42/total_test))","v":"-"}]

{"sheet":"FluoroType MTBDR Ver 2.0","index":13,"n_rows":45,"n_cols":22,"rows_kept":45,"cut":false,"hidden":false,"merged":[[21,21,21,27],[23,2,23,3],[42,2,42,3],[18,2,18,3],[18,4,18,5],[19,2,19,3],[19,4,19,5],[20,2,20,3],[20,5,21,5],[21,2,21,3],[25,2,25,3],[29,6,31,6],[22,2,22,3],[24,2,24,3],[15,2,15,3],[15,4,15,5],[16,2,16,3],[16,4,16,5],[17,2,17,3],[17,4,17,5],[14,2,14,3],[14,4,14,5],[0,0,0,9],[1,1,1,9],[2,1,2,2],[2,4,2,6]]}
["Prueba FluoroType® MTBDR Ver 2.0: Se proponen dos métodos para calcular el número previsto de pruebas que se realizarán durante el período."]
[null,"Los valores en rojo deben introducirse o ajustarse de acuerdo con los datos y las prácticas reales del país, cuando sea posible."]
[null,"Método 1: Proyección basada en el consumo. El número previsto de pruebas se basa en el número de pruebas realizadas el año pasado.",null,null,"Método 2: Proyección basada en la morbilidad. El número estimado de pruebas se basa en datos epidemiológicos (casos notificados) y algoritmos planificados. La suma calculada es el objetivo que se debe alcanzar cuando se usan algoritmos de acuerdo con la cobertura y los supuestos indicados."]
[null,"Número promedio de pruebas FluoroType® MTBDR Ver 2.0 realizadas por mes",0,null,"Población de pacientes","Cobertura de las pruebas","Número de pruebas FluoroType® MTBDR Ver 2.0 requeridas para el período"]
[null,"Número de pruebas FluoroType® MTBDR Ver 2.0 requeridas para el período",{"$f":"C4*Months","v":0},null,"Personas con infección por el VIH que tienen signos y síntomas de TB",0,{"$f":"ROUND((F5*'Características epidemiológicas'!B12*'Características epidemiológicas'!B20*'Características epidemiológicas'!E20),-2)","v":0}]
[null,null,null,null,"Niños con signos y síntomas de TB",0,{"$f":"ROUND(F6*'Características epidemiológicas'!B9*'Características epidemiológicas'!B10*'Características epidemiológicas'!B26, -2)","v":0}]
[null,null,null,null,"Personas en riesgo de tuberculosis farmacorresistente",0,{"$f":"ROUND(F7*('Características epidemiológicas'!E7*'Características epidemiológicas'!B17)+'Características epidemiológicas'!B8+('Características epidemiológicas'!B14*'Características epidemiológicas'!E17), -2)","v":0}]
[null,null,null,null,"Adultos VIH-negativos que no habían tratados previamente y que presentan signos y síntomas de TB",0,{"$f":"ROUND(F8*'Características epidemiológicas'!E11*'Características epidemiológicas'!E10*'Características epidemiológicas'!C4*'Características epidemiológicas'!B18,-2)","v":0}]
[null,null,null,null,"Casos nuevos de TB con frotis positivo a quienes se les administró la prueba Xpert para detectar la resistencia a la rifampicina (excluidos aquellos a quienes se les administró esta prueba para el diagnóstico inicial)",0,{"$f":"ROUND('Características epidemiológicas'!C7-(('Características epidemiológicas'!B9*'Características epidemiológicas'!B10)+('Características epidemiológicas'!E7+'Características epidemiológicas'!B8+'Características epidemiológicas'!B14)+('Características epidemiológicas'!E11*'Características epidemiológicas'!E10*'Características epidemiológicas'!C4)+('Características epidemiológicas'!C7*'Características epidemiológicas'!B10)),-2)*F9","v":0}]
[null,null,null,null,"Número de pruebas FluoroType® MTBDR Ver 2.0 requeridas para el período",null,{"$f":"SUM(G5:G9)","v":0}]
[]
[]
[]
[]
[null,"Número de muestras por lote",0]
[null,"Número de controles por lote",0]
[null,"Número de pruebas FluoroType® MTBDR Ver 2.0 requeridas para el período (con el método de proyección 1 o 2 o un valor intermedio)",0]
[null,"Número promedio de muestras por lote",{"$f":"C15+C16","v":0}]
[null,"Número de lotes necesarios para el período",{"$f":"IF(C15=0,\"0\",C17/C15)","v":"0"}]
[null,"Número de pruebas (muestras y controles)",{"$f":"C19*C18","v":0}]
[null,"Repeticiones estimadas (%)",0]
[null,"Número de pruebas adicionales por lote para compensar el error de pipeteo",1,null,null,null,null,null,null,null,null,null,null,null,null,null,null,null,null,null,null,"No borrar"]
[null,"Suministro actual",0]
[null,"Número total de pruebas que se realizarán durante el período",null,null,null,null,null,null,null,null,null,null,null,null,null,null,null,null,null,null,null,"Kit de extracción FluoroLyse"]
[null,"Número total de pruebas que se deben encargar",{"$f":"IF(C23=0,(ROUNDUP(C20+(C20*repet)+C22*C19,0)),(ROUNDUP(C20+(C20*repet)+C22*C19,0))-C23)","v":0}]
[null,"Para la extracción de ADN","Kit de extracción FluoroLyse",null,"<=Elija aquí",null,null,null,null,null,null,null,null,null,null,null,null,null,null,null,null,"Kit GXT para la extracción de ADN y ARN"]
[]
[]
[null,"Código GDF","Artículo","Unidades por paquete","Número de paquetes","Costo por unidad (US$)","Detalles del cálculo","Options"]
[null,null,"Prueba FluoroType MTBDR",96,{"$f":"ROUNDUP(C25/unit_pack,0)","v":0},0,"Ponga el costo por unidad de acuerdo con el mecanismo de compras actual"]
[null,null,"Kit GXT para la extracción de ADN y ARN",96,{"$f":"IF($C$26=$V$26,ROUNDUP(C25/unit_pack,0),0)","v":0},0]
[null,null,"Kit de extracción FluoroLyse",96,{"$f":"IF($C$26=$V$24,ROUNDUP(C25/unit_pack,0),0)","v":0},0]
[null,106384,"Tubos de plástico estéril para centrífuga, 15 ml",500,{"$f":"ROUNDUP(kit_ordered*D30*1.05/unit_pack,0)","v":0},48.95,"1 tubo por prueba + 5% extra"]
[null,106422,"Tubos para microcentrífuga, 2 ml",500,{"$f":"ROUNDUP(C19*2*1.05/unit_pack,0)","v":0},49.55,"2 tubos por lote + 5% extra"]
[null,106554,"Puntas de filtro estériles, 0,1-10 μl",960,{"$f":"ROUNDUP((kit_ordered*D30*4*1.05)/unit_pack,0)","v":0},115.7,"4 puntas por prueba + 5% extra"]
[null,106389,"Puntas de filtro estériles, 20-200 μl",960,{"$f":"ROUNDUP((kit_ordered*D30*4*1.05)/unit_pack,0)","v":0},61,"4 puntas por prueba + 5% extra"]
[null,106390,"Puntas de filtro estériles, 100-1000 μl",960,{"$f":"ROUNDUP((kit_ordered*D30*4*1.05)/unit_pack,0)","v":0},88.5,"4 puntas por prueba + 5% extra"]
[null,106444,"Bolsas de plástico de 30 litros",200,{"$f":"ROUNDUP(Months*22*4/unit_pack,0)","v":0},98.6,"4 por día laborable"]
[null,106415,"Papel de filtro cuadrado, 580 mm",100,{"$f":"ROUNDUP(Months*22*8/unit_pack,0)","v":0},111.4,"8 por día laborable"]
[null,106755,"Toallas de papel",200,{"$f":"ROUNDUP(12*22*40/unit_pack,0)","v":53},1.45,"40 por día"]
[null,106333,"Etanol o isopropanol, 5 litros",5,{"$f":"ROUNDUP(Months*4.33*1/unit_pack,0)","v":0},32.15,"1 litro por semana"]
[]
[null,null,"Resumen",null,"Costo (US$)"]
[null,null,"Total para FluoroType® MTBDR Ver 2.0",null,{"$f":"SUMPRODUCT(E30:E41*F30:F41)","v":76.849999999999994}]
[null,null,"Total por FluoroType® MTBDR Ver 2.0",null,{"$f":"IF(C25=0,\"-\",E44/C25)","v":"-"}]

{"sheet":"MTB y MTB-RIF-INH de Cobas®","index":14,"n_rows":48,"n_cols":21,"rows_kept":48,"cut":false,"hidden":false,"merged":[[21,20,21,26],[23,2,23,3],[45,2,45,3],[18,2,18,3],[18,4,18,5],[19,2,19,3],[19,4,19,5],[20,2,20,3],[20,5,21,5],[21,2,21,3],[27,6,29,6],[31,6,34,6],[22,2,22,3],[24,2,24,3],[15,2,15,3],[15,4,15,5],[16,2,16,3],[16,4,16,5],[17,2,17,3],[17,4,17,5],[14,2,14,3],[14,4,14,5],[0,0,0,8],[1,1,1,8],[2,1,2,2],[2,4,2,6],[9,4,9,5]]}
["Pruebas MTB y MTB-RIF/INH de Cobas®: Se proponen dos métodos para calcular el número previsto de pruebas que se realizarán durante el período."]
[null,"Los valores en rojo deben introducirse o ajustarse de acuerdo con los datos y las prácticas reales del país, cuando sea posible."]
[null,"Método 1: Proyección basada en el consumo. El número previsto de pruebas se basa en el número de pruebas realizadas el año pasado.",null,null,"Método 2: Proyección basada en la morbilidad. El número estimado de pruebas se basa en datos epidemiológicos (casos notificados) y algoritmos planificados. La suma calculada es el objetivo que se debe alcanzar cuando se usan algoritmos de acuerdo con la cobertura y los supuestos indicados."]
[null,"Número promedio de pruebas MTB de Cobas® realizadas por mes",0,null,"Población de pacientes","Cobertura de las pruebas","Número de pruebas MTB y MTB-RIF/INH de Cobas® realizadas durante el período"]
[null,"Número promedio de pruebas MTB RIF/INH de Cobas® realizadas por mes",0,null,"Personas con infección por el VIH que tienen signos y síntomas de TB",0,{"$f":"ROUND((F5*'Características epidemiológicas'!B12*'Características epidemiológicas'!B20*'Características epidemiológicas'!E20),-2)","v":0}]
[null,"Número de pruebas MTB y MTB-RIF/INH de Cobas® realizadas durante el período",{"$f":"(C4+C5)*Months","v":0},null,"Niños con signos y síntomas de TB",0,{"$f":"ROUND(F6*'Características epidemiológicas'!B9*'Características epidemiológicas'!B10*'Características epidemiológicas'!B26, -2)","v":0}]
[null,null,null,null,"Personas en riesgo de tuberculosis farmacorresistente",0,{"$f":"ROUND(F7*('Características epidemiológicas'!E7*'Características epidemiológicas'!B17)+'Características epidemiológicas'!B8+('Características epidemiológicas'!B14*'Características epidemiológicas'!E17), -2)","v":0}]
[null,null,null,null,"Adultos VIH-negativos que no habían tratados previamente y que presentan signos y síntomas de TB",0,{"$f":"ROUND(F8*'Características epidemiológicas'!E11*'Características epidemiológicas'!E10*'Características epidemiológicas'!C4*'Características epidemiológicas'!B18,-2)","v":0}]
[null,null,null,null,"Casos nuevos de TB con frotis positivo a quienes se les administró la prueba Xpert para detectar la resistencia a la rifampicina (excluidos aquellos a quienes se les administró esta prueba para el diagnóstico inicial)",0,{"$f":"ROUND('Características epidemiológicas'!C7-(('Características epidemiológicas'!B9*'Características epidemiológicas'!B10)+('Características epidemiológicas'!E7+'Características epidemiológicas'!B8+'Características epidemiológicas'!B14)+('Características epidemiológicas'!E11*'Características epidemiológicas'!E10*'Características epidemiológicas'!C4)+('Características epidemiológicas'!C7*'Características epidemiológicas'!B10)),-2)*F9","v":0}]
[null,null,null,null,"Número total de pruebas MTB y MTB-RIF/INH de Cobas® requeridas para el período",null,{"$f":"SUM(G5:G9)","v":0}]
[]
[]
[]
[]
[null,"Número de muestras por lote",0]
[null,"Número de controles por lote",0]
[null,"Número de pruebas MTB y MTB-RIF/INH de Cobas® realizadas durante el período (con el método de previsión 1 o 2 o un valor intermedio)",0]
[null,"Número promedio de muestras por lote",{"$f":"C15+C16","v":0}]
[null,"Número de lotes utilizados durante el período",{"$f":"IF(C15=0,\"0\",C17/C15)","v":"0"}]
[null,"Número de pruebas realizadas (muestras y controles)",{"$f":"C19*C18","v":0}]
[null,"Repeticiones estimadas (%)",0]
[null,"Número de pruebas adicionales por lote para compensar el error de pipeteo",1,null,null,null,null,null,null,null,null,null,null,null,null,null,null,null,null,null,"No borrar"]
[null,"Suministro actual",0]
[null,"Número total de pruebas realizadas durante el período",{"$f":"(ROUNDUP(C20+(C20*repet)+C22*C19,0))","v":0}]
[null,"Número total de pruebas que se deben encargar",{"$f":"(ROUNDUP(C20+(C20*repet)+C22*C19,0))-C23","v":0}]
[]
[null,"Código GDF","Artículo","Unidades por paquete","Número de paquetes","Costo por unidad (US$)","Detalles del cálculo"]
[null,null,"MTB de Cobas®",384,{"$f":"ROUNDUP(C25/unit_pack,0)","v":0},0,"Ponga el costo por unidad de acuerdo con el mecanismo de compras actual."]
[null,null,"Kit de controles positivos de MTB de Cobas®",16,{"$f":"C19/D29","v":0},0]
[null,null,"Kit de amortiguador para controles negativos 6800/8800 de Cobas®",16,{"$f":"C19/D30","v":0},0]
[null,null,"Solución de inactivación microbiana de Cobas®",16,{"$f":"(C25*3.2)/480","v":0},0,"1:4 por muestra. Volumen estimado de la muestra 0,8 = 3,2 amortiguador de inactivación. Ponga el costo por unidad de acuerdo con el mecanismo de compras actual."]
[null,null,"MTB-RIF/INH de Cobas®",72,3,0,"Ponga el costo por unidad de acuerdo con el mecanismo de compras actual."]
[null,null,"Kit de controles positivos de MTB-RIF/INH de Cobas®",16,{"$f":"C19/D29","v":0},0]
[null,null,"Kit de amortiguador para controles negativos 6800/8800 de Cobas®",16,{"$f":"C19/D30","v":0},0]
[null,null,"Solución de inactivación microbiana de Cobas®",16,{"$f":"(C25*3.2)/480","v":0},0]
[null,106384,"Tubos de plástico estéril para centrífuga, 15 ml",500,{"$f":"ROUNDUP(kit_ordered*D28*1.05/unit_pack,0)","v":0},48.95,"1 tubo por prueba + 5% extra"]
[null,106422,"Tubos para microcentrífuga, 2 ml",500,{"$f":"ROUNDUP(C19*2*1.05/unit_pack,0)","v":0},49.55,"2 tubos por lote + 5% extra"]
[null,106554,"Puntas de filtro estériles, 0,1-10 μl",960,{"$f":"ROUNDUP((kit_ordered*D28*4*1.05)/unit_pack,0)","v":0},115.7,"4 puntas por prueba + 5% extra"]
[null,106389,"Puntas de filtro estériles, 20-200 μl",960,{"$f":"ROUNDUP((kit_ordered*D28*4*1.05)/unit_pack,0)","v":0},61,"4 puntas por prueba + 5% extra"]
[null,106390,"Puntas de filtro estériles, 100-1000 μl",960,{"$f":"ROUNDUP((kit_ordered*D28*4*1.05)/unit_pack,0)","v":0},88.5,"4 puntas por prueba + 5% extra"]
[null,106444,"Bolsas de plástico de 30 litros",200,{"$f":"ROUNDUP(Months*22*4/unit_pack,0)","v":0},98.6,"4 por día laborable"]
[null,106415,"Papel de filtro cuadrado, 580 mm",100,{"$f":"ROUNDUP(Months*22*8/unit_pack,0)","v":0},111.4,"8 por día laborable"]
[null,106755,"Toallas de papel",200,{"$f":"ROUNDUP(12*22*40/unit_pack,0)","v":53},1.45,"40 por día"]
[null,106333,"Etanol o isopropanol, 5 litros",5,{"$f":"ROUNDUP(Months*4.33*1/unit_pack,0)","v":0},32.15,"1 litro por semana"]
[]
[null,null,"Resumen",null,"Costo (US$)"]
[null,null,"Total para MTB y MTB-RIF/INH de Cobas®",null,{"$f":"SUMPRODUCT(E28:E44*F28:F44)","v":76.849999999999994}]
[null,null,"Total por prueba MTB y MTB-RIF/INH de Cobas®",null,{"$f":"IF(C25=0,\"-\",E47/C25)","v":"-"}]

{"sheet":"RT MTB y MTB RIF-INH de Abbott","index":15,"n_rows":48,"n_cols":21,"rows_kept":48,"cut":false,"hidden":false,"merged":[[45,2,45,3],[20,2,20,3],[20,5,21,5],[21,2,21,3],[21,20,21,26],[27,6,34,6],[23,2,23,3],[22,2,22,3],[24,2,24,3],[17,2,17,3],[17,4,17,5],[18,2,18,3],[18,4,18,5],[19,2,19,3],[19,4,19,5],[0,0,0,8],[1,1,1,8],[2,1,2,2],[2,4,2,6],[9,4,9,5],[14,2,14,3],[14,4,14,5],[15,2,15,3],[15,4,15,5],[16,2,16,3],[16,4,16,5]]}
["Pruebas MTB y MTB RIF/INH en tiempo real de Abbott: Se proponen dos métodos para calcular el número previsto de pruebas que se realizarán durante el período."]
[null,"Los valores en rojo deben introducirse o ajustarse de acuerdo con los datos y las prácticas reales del país, cuando sea posible."]
[null,"Método 1: Proyección basada en el consumo. El número previsto de pruebas se basa en el número de pruebas realizadas el año pasado.",null,null,"Método 2: Proyección basada en la morbilidad. El número estimado de pruebas se basa en datos epidemiológicos (casos notificados) y algoritmos planificados. La suma calculada es el objetivo que se debe alcanzar cuando se usan algoritmos de acuerdo con la cobertura y los supuestos indicados."]
[null,"Número promedio de pruebas RT MTB de Abbott realizadas por mes",0,null,"Población de pacientes","Cobertura de las pruebas","Número de pruebas MTB y MTB RIF/INH de Abbott requeridas para el período"]
[null,"Número promedio de pruebas Abott RT MTB RIF/INH realizadas por mes",0,null,"Personas con infección por el VIH que tienen signos y síntomas de TB",0,{"$f":"ROUND((F5*'Características epidemiológicas'!B12*'Características epidemiológicas'!B20*'Características epidemiológicas'!E20),-2)","v":0}]
[null,"Número de pruebas MTB y MTB-RIF/INH de Abbott realizadas durante el período",{"$f":"(C4+C5)*Months","v":0},null,"Niños con signos y síntomas de TB",0,{"$f":"ROUND(F6*'Características epidemiológicas'!B9*'Características epidemiológicas'!B10*'Características epidemiológicas'!B26, -2)","v":0}]
[null,null,null,null,"Personas en riesgo de tuberculosis farmacorresistente",0,{"$f":"ROUND(F7*('Características epidemiológicas'!E7*'Características epidemiológicas'!B17)+'Características epidemiológicas'!B8+('Características epidemiológicas'!B14*'Características epidemiológicas'!E17), -2)","v":0}]
[null,null,null,null,"Adultos VIH-negativos que no habían tratados previamente y que presentan signos y síntomas de TB",0,{"$f":"ROUND(F8*'Características epidemiológicas'!E11*'Características epidemiológicas'!E10*'Características epidemiológicas'!C4*'Características epidemiológicas'!B18,-2)","v":0}]
[null,null,null,null,"Casos nuevos de TB con frotis positivo a quienes se les administró la prueba Xpert para detectar la resistencia a la rifampicina (excluidos aquellos a quienes se les administró esta prueba para el diagnóstico inicial)",0,{"$f":"ROUND('Características epidemiológicas'!C7-(('Características epidemiológicas'!B9*'Características epidemiológicas'!B10)+('Características epidemiológicas'!E7+'Características epidemiológicas'!B8+'Características epidemiológicas'!B14)+('Características epidemiológicas'!E11*'Características epidemiológicas'!E10*'Características epidemiológicas'!C4)+('Características epidemiológicas'!C7*'Características epidemiológicas'!B10)),-2)*F9","v":0}]
[null,null,null,null,"Número total de pruebas MTB y MTB-RIF/INH de Abbot requeridas para el período",null,{"$f":"SUM(G5:G9)","v":0}]
[]
[]
[]
[]
[null,"Número de muestras por lote",0]
[null,"Número de controles por lote",0]
[null,"Número de pruebas MTB y MTB-RIF/INH de Abbptt realizadas durante el período (con el método de previsión 1 o 2 o un valor intermedio)",0]
[null,"Número promedio de muestras por lote",{"$f":"C15+C16","v":0}]
[null,"Número de lotes utilizados durante el período",{"$f":"IF(C15=0,0,C17/C15)","v":0}]
[null,"Número de pruebas (muestras y controles)",{"$f":"C19*C18","v":0}]
[null,"Repeticiones estimadas (%)",0]
[null,"Número de pruebas adicionales por lote para compensar el error de pipeteo",1,null,null,null,null,null,null,null,null,null,null,null,null,null,null,null,null,null,"No borrar"]
[null,"Suministro actual",0]
[null,"Número total de pruebas que se realizarán durante el período",{"$f":"ROUNDUP(C20+(C20*repet)+C22*C19,0)","v":0}]
[null,"Número total de pruebas que se deben encargar",{"$f":"IF(C23=0,0,(ROUNDUP(C20+(C20*repet)+C22*C19,0))-C23)","v":0}]
[]
[null,"Código GDF","Artículo","Unidades por paquete","Cantidad de paquetes","Costo por unidad (US$)","Detalles del cálculo"]
[null,null,"Reactivo de inactivación",null,null,null,"Ponga el costo por unidad de acuerdo con el mecanismo de compras actual."]
[null,null,"Kit de ADN del sistema de preparación de muestras de Abbott",192,{"$f":"ROUNDUP(C25/unit_pack,0)","v":0}]
[null,null,"Kit de reactivos de Abbott para la amplificación de M. tuberculosis en tiempo real",96,{"$f":"ROUNDUP(C25/unit_pack,0)","v":0}]
[null,null,"Kit de controles de M. tuberculosis en tiempo real de Abbot",8,{"$f":"C19/D31","v":0}]
[null,null,"Kit de reactivos de Abbott para la amplificación en tiempo real de la resistencia de M. tuberculosis a la rifampicina y la isoniazida",24,{"$f":"ROUNDUP(C25/unit_pack,0)","v":0}]
[null,null,"Kit de controles en tiempo real de Abbot de la resistencia de M. tuberculosis a la rifampicina y la isoniazida",4,{"$f":"ROUNDUP(C19/unit_pack,0)","v":0}]
[null,null,"Placas de reacción óptica de 96 pocillos de Abbott",20,{"$f":"ROUNDUP(C25/unit_pack,0)","v":0}]
[null,null,"Placas de 96 pocillos y soporte de placas de Abbott",32,{"$f":"ROUNDUP(C25/unit_pack,0)","v":0}]
[null,106384,"Tubos de plástico estéril para centrífuga, 15 ml",500,{"$f":"ROUNDUP(kit_ordered*D30*1.05/unit_pack,0)","v":0},48.95,"1 tubo por prueba + 5% extra"]
[null,106422,"Tubos para microcentrífuga, 2 ml",500,{"$f":"ROUNDUP(C19*2*1.05/unit_pack,0)","v":0},49.55,"2 tubos por lote + 5% extra"]
[null,106554,"Puntas de filtro estériles, 0,1-10 μl",960,{"$f":"ROUNDUP((kit_ordered*D30*4*1.05)/unit_pack,0)","v":0},115.7,"4 puntas por prueba + 5% extra"]
[null,106389,"Puntas de filtro estériles, 20-200 μl",960,{"$f":"ROUNDUP((kit_ordered*D30*4*1.05)/unit_pack,0)","v":0},61,"4 puntas por prueba + 5% extra"]
[null,106390,"Puntas de filtro estériles, 100-1000 μl",960,{"$f":"ROUNDUP((kit_ordered*D30*4*1.05)/unit_pack,0)","v":0},88.5,"4 puntas por prueba + 5% extra"]
[null,106444,"Bolsas de plástico de 30 litros",200,{"$f":"ROUNDUP(Months*22*4/unit_pack,0)","v":0},98.6,"4 por día laborable"]
[null,106415,"Papel de filtro cuadrado, 580 mm",100,{"$f":"ROUNDUP(Months*22*8/unit_pack,0)","v":0},111.4,"8 por día laborable"]
[null,106755,"Toallas de papel",200,{"$f":"ROUNDUP(12*22*40/unit_pack,0)","v":53},1.45,"40 por día"]
[null,106333,"Etanol o isopropanol, 5 litros",5,{"$f":"ROUNDUP(Months*4.33*1/unit_pack,0)","v":0},32.15,"1 litro por semana"]
[]
[null,null,"Resumen",null,"Costo (US$)"]
[null,null,"Total para las pruebas MTB y MTB-RIF/INH de Abbott",null,{"$f":"SUMPRODUCT(E30:E44*F30:F44)","v":76.849999999999994}]
[null,null,"Total por prueba MTB y MTB-RIF/INH de Abbott",null,{"$f":"IF(C25=0,\"-\",E47/C25)","v":"-"}]

{"sheet":"Proces+cultivo (sól. y líq.)","index":16,"n_rows":86,"n_cols":33,"rows_kept":86,"cut":false,"hidden":false,"merged":[[79,3,79,4],[69,1,71,1],[64,1,65,1],[35,1,36,1],[38,1,43,1],[60,3,60,5],[2,1,2,2],[2,4,2,6],[6,4,6,5],[1,1,1,8],[0,0,0,8],[15,30,15,36],[32,1,33,7],[62,1,62,7],[46,1,47,7],[48,1,59,1],[19,1,20,1],[19,2,20,2]]}
["Procesamiento y cultivo en medios sólidos y líquidos: Se proponen dos métodos para calcular el número previsto de pruebas que se realizarán durante el período."]
[null,"Los valores en rojo deben introducirse o ajustarse de acuerdo con los datos y las prácticas reales del país, cuando sea posible."]
[null,"Método 1: Proyección basada en el consumo. El número previsto de pruebas se basa en el uso diario promedio de cada módulo.",null,null,"Método 2: Proyección basada en la morbilidad. El número estimado de pruebas se basa en datos epidemiológicos (casos notificados) y algoritmos planificados. La suma calculada es el objetivo que se debe alcanzar cuando se usan algoritmos de acuerdo con la cobertura y los supuestos indicados."]
[null,"Número promedio de muestras procesadas para cultivos por mes",0,null,"Población de pacientes","Cobertura de las pruebas","Número de muestras procesadas para cultivos durante el período"]
[null,"Número de muestras procesadas para cultivos durante el período",{"$f":"C4*Months","v":0},null,"Número de casos de tuberculosis resistente a la rifampicina y multirresistente que se prevé que se detectarán durante el año",0,{"$f":"'Características epidemiológicas'!$B$14*F5","v":0}]
[null,null,null,null,"Personas en riesgo de monorresistencia a la isoniazida",0,{"$f":"('Características epidemiológicas'!$E$7+'Características epidemiológicas'!$B$8)*F6*'Características epidemiológicas'!B16","v":0}]
[null,null,null,null,"Número total de muestras procesadas para cultivos durante el período",null,{"$f":"SUM(G5:G6)","v":0}]
[]
[]
[]
[]
[]
[]
[]
[null,"Prueba de Lowenstein-Jensen (LJ), de elaboración propia o lista para usar","Lista para usar","<=Elija aquí","Cultivo en tubo indicador del crecimiento de micobacterias (MGIT)","SÍ","<=Elija aquí"]
[null,"Número de pruebas procesadas para cultivos durante el período (con el método de proyección 1 o 2 o un valor intermedio)",0,null,"Número de pruebas procesadas para cultivos durante el período (con el método de proyección 1 o 2 o un valor intermedio)",0,null,null,null,null,null,null,null,null,null,null,null,null,null,null,null,null,null,null,null,null,null,null,null,null,"No borrar"]
[null,"Número de cultivos inclinados por muestra",0,null,"Tasa de repetición",0,null,null,null,null,null,null,null,null,null,null,null,null,null,null,null,null,null,null,null,null,null,null,null,null,null,"Petroff","NALC/NaOH"]
[null,"Tasa de repetición",0,null,"Tasa de contaminación",0]
[null,"Tasa de contaminación",0,null,"Cultivos positivos para M. tuberculosis (%)",0]
[null,"Volumen promedio (ml) por muestra que se debe descontaminar",0,null,"Suministro actual",0]
[null,null,null,null,"Número total de muestras requeridas para el período",{"$f":"F16*(1+F17+F18)","v":0},null,null,null,null,null,null,null,null,null,null,null,null,null,null,null,null,null,null,null,null,null,null,null,null,"No","Lista para usar","Elaboración propia"]
[null,"Suministro actual",0,null,"Número total de reactivos que se deben encargar",{"$f":"(IF(AE25=F15,(F16*(1+F17+F18)),0))-F20","v":0}]
[null,"Número total de muestras procesadas durante el período",{"$f":"C16*(1+C18+C19)","v":0},null,null,null,null,null,null,null,null,null,null,null,null,null,null,null,null,null,null,null,null,null,null,null,null,null,null,null,null,"Puntas estériles para dispensador universal, 10 ml","Puntas estériles, libres de ADNasa y ARNasa, 100-1000 μl"]
[null,"Número total de reactivos que se deben encargar",{"$f":"IF(C22=0,C16*(1+C18+C19),((C16*(1+C18+C19)))-C22)","v":0}]
[null,"Número de cultivos inclinados producidos con un lote estándar",{"$f":"IF(C20=0,0,ROUNDUP(1620/C20,0))","v":0},null,null,null,null,null,null,null,null,null,null,null,null,null,null,null,null,null,null,null,null,null,null,null,null,null,null,null,"SÍ","NO"]
[null,"Número de lotes utilizados durante el período",{"$f":"IF(C25=0,0,ROUNDUP(C24/C25,0))","v":0}]
[]
[]
[]
[null,"Método de descontaminación","Petroff","<=Elija aquí"]
[]
[]
[null,"Cultivo en medios sólidos"]
[]
[null,null,"Código GDF","Artículo","Unidades por paquete","Número de paquetes","Costo por unidad (US$)","Detalles del cálculo"]
[null,"Medio de Loewenstein-Jensen, listo para usar",106259,"Medio de LJ para TB, 500 g",1,{"$f":"IF($C$15=$AF$21,ROUNDUP(0.0375*C26/E36,0),0)","v":0},69.55,"Mezcla de LJ lista para usar: 37,5 g por lote"]
[null,null,106268,"Glicerol 99,5, 1 litro",1,{"$f":"IF($C$15=$AF$21,ROUNDUP(0.0375*C26/E37,0),0)","v":0},10.55,"12 ml por lote"]
[]
[null,"Medio de Lowenstein-Jensen elaborado a partir de componentes",106263,"Fosfato de dihidrógeno potásico, peso medio: 136,09, 1 kg",1,{"$f":"IF($C$15=$AG$21,ROUNDUP(0.0024*C26/E39,0),0)","v":0},36.700000000000003,"2.4 g por lote"]
[null,null,106264,"Sulfato de magnesio heptahidratado • 7H2O, peso medio: 246,48. 500 g",0.5,{"$f":"IF($C$15=$AG$21,ROUNDUP(0.00024*C26/E40,0),0)","v":0},8.25,"0,24 g por lote"]
[null,null,106265,"Monihidrato de L-asparagina • H2O, peso medio 150,13, 250 g",0.1,{"$f":"IF($C$15=$AG$21,ROUNDUP(0.0036*C26/E41,0),0)","v":0},21.6,"3.6 g por lote"]
[null,null,106266,"Tricitrato de magnesio nonahidratado • 9 H2O, 500 g",0.1,{"$f":"IF($C$15=$AG$21,ROUNDUP(0.0006*C26/E42,0),0)","v":0},52.5,"0,6 g por lote"]
[null,null,106267,"Oxalato verde de malaquita, 100 g",0.1,{"$f":"IF($C$15=$AG$21,ROUNDUP(0.0004*C26/E43,0),0)","v":0},112.95,"0,4 g por lote"]
[null,null,106268,"Glicerol 99,5, 1 litro",1,{"$f":"IF($C$15=$AG$21,ROUNDUP(0.012*C26/E44,0),0)","v":0},10.55,"12 ml por lote"]
[null,null,null,"Costo total del cultivo en medios sólidos",null,null,{"$f":"SUMPRODUCT(F36:F44*G36:G44)","v":0}]
[]
[null,"Cultivo en medios líquidos"]
[]
[null,"Cultivo en medios líquidos en MGIT",106026,"Tubos BBL MGIT para usar en Bactec MGIT 960 (7ml), 100 tubos por paquete",100,{"$f":"IF(AE25=F15,ROUNDUP(F16*(1+F17+F18)/E49,0),0)","v":0},195,"1 tubo por prueba"]
[null,null,106027,"Kit de suplementos para BACTEC MGIT 960 (100 pruebas, PANTA y OADC combinadas)",100,{"$f":"IF(AE25=F15,ROUNDUP(F16*(1+F17+F18)/E50,0),0)","v":0},70.8,"1 tubo por prueba"]
[null,null,106098,"Tubos de cultivo de vidrio sódico-cálcido, 12 ml, tapones de rosca",100,{"$f":"IF(AE25=F15,ROUNDUP(F16*(1+F17+F18)*0.1/E51,0),0)","v":0},43.6,"10% de recambio por año"]
[null,null,106340,"Tubos de plástico estéril para centrífuga, 50 ml",500,{"$f":"IF(AE25=F15,ROUNDUP(F16*(1+F17+F18)/E52,0),0)","v":0},45,"Lo mismo cuando se procesan 0 tubos o 1 por prueba"]
[null,null,106394,"Pipetas Pasteur de plástico desechables, estériles, envasadas individualmente",500,{"$f":"IF(AE25=F15,ROUNDUP(F22*(1+F19+0.1)/E53,0),0)","v":0},36.85,"Para inoculación + tubo contaminado + tubo con muestra postiva + tasa de repetición + 10% extra"]
[null,null,106714,"Bucles desechables, 10 μL",500,{"$f":"IF(AE25=F15,ROUNDUP(F16*F19*0.3/E54,0),0)","v":0},16.8,"1 por muestra positiva"]
[null,null,106344,"Crioviales estériles, 2 ml",1000,{"$f":"IF(AE25=F15,ROUNDUP(F16*F19*0.3/E55,0),0)","v":0},295.89999999999998,"30% de muestras positivas"]
[null,null,106052,"Caja de cartón para crioviales estériles, 2 ml",1,{"$f":"IF(AE25=F15,ROUNDUP(F16*F19*0.3/81/E56,0),0)","v":0},2.15,"81 colocados en una caja"]
[null,null,106823,"Placas de Petri de plástico",480,null,1.95,"1 placa de Petri para 4 tubos positivos + 20% contatminados"]
[null,null,"106390/106398","Puntas estériles, libres de ADNasa y ARNasa, 100-1000 μl","960 o 100",null,88.5,"Puntas para dispensador: 1 o 2 puntas por día laborable según la carga de trabajo P1000 : 1 punta para 5 tubos"]
[null,null,106407,"Agar de infusión de cerebro y corazón",0.5,{"$f":"IF(AE25=F15,ROUNDUP(Months/12*1,0),0)","v":0},84.65,"1 paquete por año"]
[null,null,106362,"Lámina de plástico",1,{"$f":"IF(AE25=F15,ROUNDUP(Months/12*2,0),0)","v":0},70.400000000000006,"2 rollos por año"]
[null,null,null,"Costo total del cultivo en medios líquidos",null,null,{"$f":"SUMPRODUCT(F49:F60*G49:G60)","v":0}]
[]
[null,"Procesamiento"]
[null,null,"Código GDF","Artículo","Unidades por paquete","Número de paquetes","Costo por unidad (US$)","Detalles del cálculo"]
[null,"Amortiguador de fosfato según Soerensen, 1/15 M, pH 6,8 o ajustable entre 5 y 8,2",106278,"Fosfato de hidrógeno disódico anhidro, peso medio 141,96, 1 kg",1,{"$f":"ROUNDUP((IF(C23=0,F22,C23)*0.04*1.5*0.00474),0)","v":0},27,"4.74 g para 1 litro de amortiguador final + 50% extra. Cálculo para un promedio de 40 ml de mezcla final por muestra"]
[null,null,106263,"Fosfato de dihidrógeno potásico, peso medio: 136,09, 1 kg",1,{"$f":"ROUNDUP((IF(C23=0,F22,C23)*0.04*1.5*0.00454),0)","v":0},36.700000000000003,"4.54 g/l para 1 litro de amortiguador final + 50% extra. Cálculo para un promedio de 40 ml de mezcla final por muestra"]
[]
[null,"Método de descontaminación de Petroff",106281,"Hidróxido de sodio, peso medio: 40,00, pureza ≥ 98%, gránulos, 1 kg",1,{"$f":"IF($C$30=$AF$17,ROUNDUP(IF(C23=0,F22,C23)*(C20/1000)*0.04/E68,0),0)","v":0},13.55,"40 g/l de muestra"]
[]
[null,"Método de descontaminación con NALC/NaOH",106283,"N-acetil-L-cisteína, peso medio: 163,19, pureza ≥ 99%, 100 g",0.1,{"$f":"IF($C$30=$AG$17,ROUNDUP(IF(C23=0,F22,C23)*(C20/1000)*0.005/E70,0),0)","v":0},180.5,"5 g/l de muestra"]
[null,null,106284,"Citrato trisódico dihidratado · 2H2O, peso medio: 294,10, 1 kg",1,{"$f":"IF($C$30=$AG$17,ROUNDUP(IF(C23=0,F22,C23)*(C20/1000)*0.029/2/E71,0),0)","v":0},55.35,"14.5 g/l de amortiguador final"]
[null,null,106281,"Hidróxido de sodio, peso medio: 40,00, pureza ≥ 98%, gránulos, 1 kg",1,{"$f":"IF($C$30=$AG$17,ROUNDUP(IF(C23=0,F22,C23)*(C20/1000)*0.02/E72,0),0)","v":0},13.55,"20 g/l de amortiguador final"]
[]
[null,"Material fungible",106340,"Tubos de plástico estéril para centrífuga, 50 ml",500,{"$f":"ROUNDUP(IF(C23=0,F22,C23)*1.1/E74,0)","v":0},45,"1 tubo por muestra + 10% extra"]
[null,"Material fungible",106434,"Pipetas Pasteur desechables, graduadas, no estériles, 155 mm",500,{"$f":"ROUNDUP(Months/12,0)","v":0},9.9,"1 paquete por año"]
[null,null,null,"Costo total del procesamiento de cultivos",null,null,{"$f":"SUMPRODUCT(F65:F75*G65:G75)","v":0}]
[]
[]
[]
[null,null,null,"Resumen",null,"Costo (US$)"]
[null,null,null,"Costo total del cultivo en medios sólidos",null,{"$f":"G45","v":0}]
[null,null,null,"Costo total del cultivo en medios líquidos",null,{"$f":"G61","v":0}]
[null,null,null,"Costo total del procesamiento de muestras",null,{"$f":"G76","v":0}]
[null,null,null,"Costo de un cultivo en medio de LJ",null,{"$f":"IF(C24=0,\"-\",F81/C24)","v":"-"}]
[null,null,null,"Costo de un cultivo en MGIT",null,{"$f":"IF(F22=0,\"-\",F82/F22)","v":"-"}]
[null,null,null,"Costo del procesamiento de muestras por muestra",null,{"$f":"IF(C24=0,\"-\",F83/C24)","v":"-"}]

{"sheet":"Identificación rápida","index":17,"n_rows":38,"n_cols":21,"rows_kept":38,"cut":false,"hidden":false,"merged":[[2,1,2,2],[12,1,12,2],[13,1,13,2],[1,0,1,7],[0,0,0,7]]}
["Identificación rápida de M. tuberculosis: Para calcular el número previsto de pruebas que se realizarán durante el período se usa el método que se indica a continuación."]
["Los valores en rojo deben introducirse o ajustarse de acuerdo con los datos y las prácticas reales del país, cuando sea posible."]
[null,"Método 1: Proyección basada en el consumo. El número previsto de pruebas se basa en el uso diario promedio de cada módulo."]
[null,"Número promedio de muestras analizadas para la identificación rápida de M. tuberculosis por mes",0]
[null,"Suministro actual",0]
[null,"Número de muestras que deben procesarse para la identificación rápida de M. tuberculosis durante el período",{"$f":"(C4*Months)","v":0}]
[null,"Número de reactivos que se deben encargar para procesar muestras",{"$f":"IF(C5=0,0,(C4*Months)-C5)","v":0}]
[]
[]
[]
[]
[]
[null,"Número de cultivos positivos analizados para la identificación rápida de M. tuberculosis",null,{"$f":"C7","v":0},null,null,null,null,null,null,null,null,null,null,null,null,null,null,null,null,"MPT64"]
[null,"Prueba para la identificación rápida de M. tuberculosis",null,"Capilia TB Neo","<=Elija aquí",null,null,null,null,null,null,null,null,null,null,null,null,null,null,null,"Capilia TB Neo"]
[]
[]
[null,"Código GDF","Artículo","Número por paquete","Número de paquetes","Costo por unidad (US$)"]
[null,106414,"Prueba rápida SD Bioline TB Ag MPT64 para la detección del antígeno MPT 64",25,{"$f":"IF($D$14=$U$13,ROUNDUP((D13/D18),0),0)","v":0},35]
[null,106394,"Pipetas Pasteur de plástico desechables, estériles, envasadas individualmente",500,{"$f":"IF($D$14=$U$13,ROUNDUP((D19/D19),0),0)","v":0},36.85]
[null,106714,"Bucles desechables, 10 μL",500,{"$f":"IF($D$14=$U$13,ROUNDUP((D13/D20),0),0)","v":0},16.8]
[null,106344,"Crioviales estériles, 2 ml",1000,{"$f":"IF($D$14=$U$13,ROUNDUP((D13/D21),0),0)","v":0},295.89999999999998]
[]
[null,null,"Resumen",null,"Costo"]
[null,null,"Total para SD Bioline TB Ag MPT64",null,{"$f":"SUMPRODUCT(E18:E21*F18:F21)","v":0}]
[null,null,"Total por prueba SD Bioline TB Ag MPT64",null,{"$f":"IF(D13=0,0,E24/D13)","v":0}]
[]
[]
[]
[null,"Código GDF","Artículo","Número por paquete","Número de paquetes","Costo por unidad (US$)"]
[null,106611,"Prueba rápida Capilia TB-Neo para la detección del antígeno MPT 64",100,{"$f":"IF($D$14=$U$14,ROUNDUP((D13/D30),0),0)","v":0},100]
[null,106612,"Amortiguador de extracción Capilia TB-Neo (1 x 20 ml)",20,{"$f":"IF($D$14=$U$14,ROUNDUP((D13/D30),0),0)","v":0},8]
[null,106394,"Pipetas Pasteur estériles, 3 ml",500,{"$f":"IF($D$14=$U$14,ROUNDUP((D13/D30),0),0)","v":0},36.85]
[null,106714,"Bucles desechables, 10 μL",500,{"$f":"IF($D$14=$U$14,ROUNDUP((D13/D30),0),0)","v":0},16.8]
[null,106344,"Crioviales estériles, 2 ml",1000,{"$f":"IF($D$14=$U$14,ROUNDUP((D13/D30),0),0)","v":0},295.89999999999998]
[]
[null,null,"Resumen",null,"Costo (US$)"]
[null,null,"Total para Capilia TB-Neo",null,{"$f":"SUMPRODUCT(E30:E34*F30:F34)","v":0}]
[null,null,"Total por prueba Capilia TB-Neo",null,{"$f":"IF(D13=0,\"-\",E37/D13)","v":"-"}]

{"sheet":"Prueba de resistencia LJ - 1.ª","index":18,"n_rows":35,"n_cols":7,"rows_kept":35,"cut":false,"hidden":false,"merged":[[1,0,1,7],[2,0,2,7],[14,3,15,3],[3,1,3,2],[3,4,3,6],[7,4,7,5]]}
[]
["Cultivo en medio de LJ para medicamentos de primera línea: Se proponen dos métodos para calcular el número previsto de pruebas que se realizarán durante el período."]
["Los valores en rojo deben introducirse o ajustarse de acuerdo con los datos y las prácticas reales del país, cuando sea posible."]
[null,"Método 1: Proyección basada en el consumo. El número previsto de pruebas se basa en el uso diario promedio de cada módulo.",null,null,"Método 2: Proyección basada en la morbilidad. El número estimado de pruebas se basa en datos epidemiológicos (casos notificados) y algoritmos planificados. La suma calculada es el objetivo que se debe alcanzar cuando se usan algoritmos de acuerdo con la cobertura y los supuestos indicados."]
[null,"Número promedio de pruebas de LJ para medicamentos de primera línea realizadas por mes",0,null,"Población de pacientes","Cobertura de las pruebas","Número de pruebas de LJ para medicamentos de primera línea requeridas durante el período"]
[null,"Número de pruebas de LJ para medicamentos de primera línea realizadas durante el período",{"$f":"C5*Months","v":0},null,"Número de casos de tuberculosis RR/MDR que se prevé que se detectarán durante el año",0,{"$f":"'Características epidemiológicas'!$B$14*F6","v":0}]
[null,null,null,null,"Personas en riesgo de monorresistencia a la isoniazida",0,{"$f":"('Características epidemiológicas'!$E$7+'Características epidemiológicas'!$B$8)*F7*'Características epidemiológicas'!B16","v":0}]
[null,null,null,null,"Número total de muestras que se deben procesar para cultivos durante el período",null,{"$f":"SUM(G6:G7)","v":0}]
[]
[]
[]
[]
[]
[]
[null,"Número de pruebas de LJ para medicamentos de primera línea realizadas durante el período (con el método de proyección 1 o 2 o un valor intermedio)",0]
[null,"Tasa de repetición prevista de las pruebas de LJ de la resistencia a medicamentos de primera línea (%)",0]
[null,"Suministro actual",0]
[null,"Número total de pruebas que se realizarán durante el período",{"$f":"(C15+(C15*C16)/100)","v":0}]
[null,"Número total de pruebas que se deben encargar",{"$f":"IF(C17=0,0,((C15+(C15*C16)/100))-C17)","v":0}]
[null,null,null,null,"Indique aquí los materiales que necesite para cada prueba de acuerdo con el POE del laboratorio (se deben modificar los valores predeterminados)"]
[]
["Código GDF","Artículo","Unidad","Unidades por paquete","Materiales necesarios por prueba","Número de paquetes","Costo por unidad (US$)"]
[106268,"Glicerol 99,5","ml",1000,0,{"$f":"ROUNDUP((E23/D23)*C19,0)","v":0},10.55]
[106259,"Medio de LJ para TB, 500 g","g",500,0,{"$f":"ROUNDUP((E24/D24)*C19,0)","v":0},69.55]
[106308,"Isoniazida (INH), para uso en laboratorio","g",5,0,{"$f":"ROUNDUP((E25/D25)*C19,0)","v":0},40.5]
[106309,"Rifampicina (RMP), para uso en laboratorio","g",1,0,{"$f":"ROUNDUP((E26/D26)*C19,0)","v":0},131.6]
[106311,"Dihidroestreptomicina (DHSM), para uso en laboratorio","g",5,0,{"$f":"ROUNDUP((E27/D27)*C19,0)","v":0},65.61]
[106310,"Etambutol, para uso en laboratorio","g",25,0,{"$f":"ROUNDUP((E28/D28)*C19,0)","v":0},140.1]
[106394,"Pipetas Pasteur de plástico desechables, estériles, envasadas individualmente","piezas",500,0,{"$f":"ROUNDUP((E29/D29)*C19,0)","v":0},36.85]
[106344,"Crioviales estériles, 2 ml","piezas",1000,0,{"$f":"ROUNDUP((E30/D30)*C19,0)","v":0},295.89999999999998]
[]
[]
[null,"Resumen","Costo (US$)"]
[null,"Total para las pruebas de LJ de la resistencia a medicamentos de primera línea",{"$f":"SUMPRODUCT(F23:F30*G23:G30)","v":0}]
[null,"Costo por prueba de LJ de la resistencia a medicamentos de primera línea",{"$f":"IF(C19=0,\"-\",C34/C19)","v":"-"}]

{"sheet":"Prueba de resistencia LJ - 2.ª","index":19,"n_rows":35,"n_cols":8,"rows_kept":35,"cut":false,"hidden":false,"merged":[[2,1,2,2],[2,4,2,6],[6,4,6,5],[0,0,0,8],[1,0,1,8]]}
["Prueba de LJ de la resistencia a medicamentos de segunda línea: Se proponen dos métodos para calcular el número previsto de pruebas que se realizarán durante el período."]
["Los valores en rojo deben introducirse o ajustarse de acuerdo con los datos y las prácticas reales del país, cuando sea posible."]
[null,"Método 1: Proyección basada en el consumo. El número previsto de pruebas se basa en el uso diario promedio de cada módulo.",null,null,"Método 2: Proyección basada en la morbilidad. El número estimado de pruebas se basa en datos epidemiológicos (casos notificados) y algoritmos planificados. La suma calculada es el objetivo que se debe alcanzar cuando se usan algoritmos de acuerdo con la cobertura y los supuestos indicados."]
[null,"Número promedio de pruebas de LJ para medicamentos de segunda línea realizadas por mes",0,null,"Población de pacientes","Cobertura de las pruebas (%)","Número de pruebas de LJ para medicamentos de primera línea realizadas durante el período"]
[null,"Número total de pruebas de LJ para medicamentos de primera línea que se deben realizar durante el período",{"$f":"C4*Months","v":0},null,"Número de casos de tuberculosis RR/MDR que se prevé que se detectarán durante el año",0,{"$f":"'Características epidemiológicas'!$B$14*F5","v":0}]
[null,null,null,null,"Personas con tuberculosis monorresistente a la isoniazida detectada (para detectar la resistencia a las fluoroquinolonas)",0,{"$f":"('Características epidemiológicas'!$E$7+'Características epidemiológicas'!$B$8)*F6*'Características epidemiológicas'!B16","v":0}]
[null,null,null,null,"Número total de muestras que se deben procesar para cultivos durante el período",null,{"$f":"SUM(G5:G6)","v":0}]
[]
[]
[]
[]
[null,"Número de pruebas de LJ para medicamentos de primera línea realizadas durante el período (con el método de proyección 1 o 2 o un valor intermedio)",0]
[null,"Tasa de repetición prevista de las pruebas de LJ de la resistencia a medicamentos de primera línea (%)",0]
[null,"Suministro actual",0]
[null,"Número total de pruebas que se realizarán durante el período",{"$f":"(C12+((C12*C13)/100))","v":0}]
[null,"Número total de pruebas que se deben encargar",{"$f":"IF(C14=0,0,((C12+((C12*C13)/100)))-C14)","v":0}]
[]
[null,null,null,null,"Indique aquí los materiales que necesite para cada prueba de acuerdo con el POE del laboratorio (se deben modificar los valores predeterminados)"]
[]
["Código GDF","Artículo","Unidad","Unidades por paquete","Materiales necesarios por prueba","Número de paquetes","Costo por unidad (US$)","Detalles del cálculo"]
[106268,"Glicerol 99,5","ml",1000,0,{"$f":"ROUNDUP((E21/D21)*C16,0)","v":0},10.55]
[106259,"Medio de LJ para TB, 500 g","g",500,0,{"$f":"ROUNDUP((E22/D22)*C16,0)","v":0},69.55]
[106560,"Levofloxacina (LFX), para uso en laboratorio","g",1,0,{"$f":"ROUNDUP((E23/D23)*C16,0)","v":0},43.75]
[106316,"Etionamida (ETH), para uso en laboratorio","g",5,0,{"$f":"ROUNDUP((E24/D24)*C16,0)","v":0},135.19999999999999]
[106317,"Kanamicina (KAN), para uso en laboratorio","g",5,0,{"$f":"ROUNDUP((E25/D25)*C16,0)","v":0},171.4]
[106318,"Amikacina (AMI), para uso en laboratorio","g",5,0,{"$f":"ROUNDUP((E26/D26)*C16,0)","v":0},90]
[106319,"Capreomicina (CM), para uso en laboratorio","g",1,0,{"$f":"ROUNDUP((E27/D27)*C16,0)","v":0},274.60000000000002]
[106396,"Puntas dispensadoras, 5 ml","piezas",100,0,{"$f":"ROUNDUP((E28/D28)*C15,0)","v":0},50]
[106394,"Pipetas Pasteur de plástico desechables, estériles, envasadas individualmente","piezas",500,0,{"$f":"ROUNDUP((E29/D29)*C16,0)","v":0},36.85]
[106344,"Crioviales estériles, 2 ml","piezas",1000,0,{"$f":"ROUNDUP((E30/D30)*C16,0)","v":0},295.89999999999998]
[]
[]
[null,"Resumen","Costo (US$)"]
[null,"Total para las pruebas de LJ de la resistencia a medicamentos de segunda línea",{"$f":"SUMPRODUCT(F21:F30,G21:G30)","v":0}]
[null,"Costo por prueba de LJ de la resistencia a medicamentos de segunda línea",{"$f":"IF(C15=0,\"-\",C34/C16)","v":"-"}]

{"sheet":"Prueba de resistencia MGIT - 1ª","index":20,"n_rows":46,"n_cols":7,"rows_kept":46,"cut":false,"hidden":false,"merged":[[30,2,30,4],[37,2,37,4],[11,3,12,3],[17,3,18,3],[10,1,10,3],[16,1,16,3],[2,1,2,2],[2,4,2,6],[6,4,6,5],[0,0,0,7],[1,1,1,7]]}
["Prueba de la resistencia a medicamentos de primera línea con tubo indicador del crecimiento de micobacterias (MGIT): Se proponen dos métodos para calcular el número previsto de pruebas que se realizarán durante el período."]
[null,"Los valores en rojo deben introducirse o ajustarse de acuerdo con los datos y las prácticas reales del país, cuando sea posible."]
[null,"Método 1: Proyección basada en el consumo. El número previsto de pruebas se basa en el uso diario promedio de cada módulo.",null,null,"Método 2: Proyección basada en la morbilidad. El número estimado de pruebas se basa en datos epidemiológicos (casos notificados) y algoritmos planificados. La suma calculada es el objetivo que se debe alcanzar cuando se usan algoritmos de acuerdo con la cobertura y los supuestos indicados."]
[null,"Número promedio de pruebas de farmacorresistencia con tubo indicador del crecimiento de micobacterias (MGIT) realizadas por mes",0,null,"Población de pacientes","Cobertura de las pruebas (%)","Número de pruebas de farmacorresistencia con tubo indicador del crecimiento de micobacterias (MGIT) utilizadas durante el período"]
[null,"Número de pruebas de farmacorresistencia con tubo indicador del crecimiento de micobacterias (MGIT) que se deben realizar durante el período",{"$f":"C4*Months","v":0},null,"Número de casos de tuberculosis RR/MDR que se prevé que se detectarán durante el año",0,{"$f":"'Características epidemiológicas'!$B$14*F5","v":0}]
[null,null,null,null,"Personas en riesgo de monorresistencia a la isoniazida",0,{"$f":"('Características epidemiológicas'!$E$7+'Características epidemiológicas'!$B$8)*F6*'Características epidemiológicas'!B16","v":0}]
[null,null,null,null,"Número total de muestras procesadas para detectar la farmacorresistencia con tubo indicador del crecimiento de micobacterias (MGIT) durante el período",null,{"$f":"SUM(G5:G6)","v":0}]
[]
[]
[]
[null,"SIRE (estreptomicina, isoniazida, rifampicina, etambutol)"]
[null,"Número de cepas que deben ser procesadas con SIRE durante el período (con el método de proyección 1 o 2 o un valor intermedio)",0]
[null,"Tasa de repetición prevista de las pruebas con kit SIRE (%)",0]
[null,"Suministro actual",0]
[null,"Número total de pruebas que se realizarán durante el período, incluidas las repeticiones",{"$f":"C12*(1+C13)","v":0}]
[null,"Número total de pruebas que se deben encargar",{"$f":"(C12*(1+C13)-C14)","v":0}]
[null,"Pirazinamida (PZA)"]
[null,"Número de cepas analizadas para determinar la actividad de la pirazinamida durante el período (con el método de proyección 1 o 2 o un valor intermedio)",0]
[null,"Tasa de repetición prevista de las pruebas para determinar la actividad de la pirazinamida (%)",0]
[null,"Suministro actual",0]
[null,"Número total de pruebas que se realizarán durante el período, incluidas las repeticiones",{"$f":"(C18*(1+C19))","v":0}]
[null,"Número total de pruebas que se deben encargar",{"$f":"(C21)-C20","v":0}]
[]
[null,null,"Pruebas de la resistencia a medicamentos de primera línea y a la pirazinamida en MGIT"]
[null,"Código GDF","Artículo","Unidades por paquete","Número de paquetes","Costo por unidad (US$)","Detalles del cálculo"]
[null,106028,"Kit BACTEC™ MGIT™ 960 SIRE. Un kit es suficiente para 40 pruebas.",40,{"$f":"ROUNDUP(C16/D26,0)","v":0},72.7]
[null,106026,"Tubos BBL MGIT para usar en Bactec MGIT 960 (7ml), 100 tubos por paquete",100,{"$f":"ROUNDUP(C16*5/D27,0)","v":0},195,"5 tubos por prueba"]
[null,106389,"Puntas de filtro estériles, 20-200 μl",960,{"$f":"IF(C16=0,0,ROUNDUP((C16+2)/D28,0))","v":0},61,"1 punta por prueba para agregar medicamento + 1 punta por prueba para diluir GC"]
[null,106390,"Puntas de filtro estériles, 100-1000 μl",960,{"$f":"IF(C16=0,0,ROUNDUP((C16+2)/D29,0))","v":0},88.5,"1 punta por prueba para suplementación + 1 punta por prueba para bacterias"]
[null,106181,"Puntas estériles para dispensador, 10 ml",100,{"$f":"ROUNDUP(IF(C16>1000,2,1.2)*Months*22/D30,0)","v":0},196.65,"1 o 2 puntas por día laborable según la carga de trabajo"]
[null,null,"Total para el kit SIRE para pruebas de sensibilidad a fármacos",null,null,{"$f":"SUMPRODUCT(E26:E30*F26:F30)","v":0}]
[]
[]
[null,106033,"Kit BACTEC™ MGIT™ PZA",50,{"$f":"ROUNDUP(C22/D34,0)","v":0},90.6]
[null,106036,"Tubos para BACTEC™ MGIT™ PZA, 25",25,{"$f":"ROUNDUP((C18*(1+C19)*2)/D35,0)","v":0},53.55,"2 tubos por PZA"]
[null,106389,"Puntas de filtro para pipeta estériles, 1-200 μL",960,{"$f":"ROUNDUP(C18*(1+C19)/D36,0)","v":0},61,"1 punta por prueba"]
[null,106390,"Puntas de filtro estériles, 100-1000 μl",960,{"$f":"ROUNDUP(C18*(1+C19)/D37,0)","v":0},88.5,"1 punta por prueba"]
[null,null,"Total para el kit SIRE para pruebas de sensibilidad a fármacos",null,null,{"$f":"SUMPRODUCT(E34:E37*F34:F37)","v":0}]
[]
[]
[]
[]
[null,null,"Resumen","Costo (US$)"]
[null,null,"Monto total para el kit SIRE para pruebas de sensibilidad a fármacos",{"$f":"F31","v":0}]
[null,null,"Monto total para pruebas de la resistencia a la pirazinamida",{"$f":"F38","v":0}]
[null,null,"Costo total de las pruebas en medios líquidos de la resistencia a medicamentos de primera línea",{"$f":"SUM(D44:D45)","v":0}]

{"sheet":"Prueba de resistencia MGIT - 2ª","index":21,"n_rows":72,"n_cols":21,"rows_kept":72,"cut":false,"hidden":false,"merged":[[13,3,14,3],[29,3,29,5],[48,3,48,5],[69,1,69,2],[58,1,58,2],[59,1,59,2],[60,1,60,2],[71,1,71,2],[61,1,61,2],[65,1,65,2],[66,1,66,2],[67,1,67,2],[68,1,68,2],[62,1,62,2],[2,1,2,2],[2,4,2,6],[6,4,6,5],[0,0,0,8],[1,1,1,8]]}
["Prueba de la resistencia a medicamentos de segunda línea con tubo indicador del crecimiento de micobacterias (MGIT): Se proponen dos métodos para calcular el número previsto de pruebas que se realizarán durante el período."]
[null,"Los valores en rojo deben introducirse o ajustarse de acuerdo con los datos y las prácticas reales del país, cuando sea posible."]
[null,"Método 1: Proyección basada en el consumo. El número previsto de pruebas se basa en el uso diario promedio de cada módulo.",null,null,"Método 2: Proyección basada en la morbilidad. El número estimado de pruebas se basa en datos epidemiológicos (casos notificados) y algoritmos planificados. La suma calculada es el objetivo que se debe alcanzar cuando se usan algoritmos de acuerdo con la cobertura y los supuestos indicados."]
[null,"Número promedio de pruebas de farmacorresistencia con tubo indicador del crecimiento de micobacterias (MGIT) realizadas por mes",0,null,"Población de pacientes","Cobertura de las pruebas (%)","Número de pruebas de farmacorresistencia con tubo indicador del crecimiento de micobacterias (MGIT) que se deben realizar durante el período"]
[null,"Número de pruebas de farmacorresistencia con tubo indicador del crecimiento de micobacterias (MGIT) que se deben realizar durante el período",{"$f":"C4*Months","v":0},null,"Número de casos de tuberculosis RR/MDR que se prevé que se detectarán durante el año",1,{"$f":"'Características epidemiológicas'!$B$14*F5","v":0}]
[null,null,null,null,"Personas con tuberculosis monorresistente a la isoniazida detectada (para detectar la resistencia a las fluoroquinolonas)",1,{"$f":"('Características epidemiológicas'!$E$7+'Características epidemiológicas'!$B$8)*F6*'Características epidemiológicas'!B16","v":0}]
[null,null,null,null,"Número total de muestras procesadas que deben procesarse para detectar la farmacorresistencia con tubo indicador del crecimiento de micobacterias (MGIT) durante el período",null,{"$f":"SUM(G5:G6)","v":0}]
[]
[]
[]
[]
[]
[null,"Fórmulas de medicamentos","Viales liofilizados"]
[null,"Número de cepas analizadas para detectar la resistencia a medicamentos de segunda línea durante el período (con el método de proyección 1 o 2 o un valor intermedio)",0]
[null,"Tasa de repetición prevista de las pruebas de la resistencia a medicamentos de segunda línea con MGIT",0]
[null,"Suministro actual",0]
[null,"Número total de pruebas que se realizarán durante el período",{"$f":"(ROUNDUP(C14*(1+C15),0))","v":0}]
[null,"Número total de pruebas que se deben encargar",{"$f":"(ROUNDUP(C14*(1+C15),0))-C16","v":0}]
[]
[null,null,null,null,null,null,null,null,null,null,null,null,null,null,null,null,null,null,null,"Viales liofilizados","Sustancias farmacéuticas puras"]
[null,null,null,null,"Indique aquí los materiales que necesite para cada prueba de acuerdo con el POE del laboratorio (se deben modificar los valores predeterminados)"]
["Código GDF","Artículo","Unidad","Número por paquete","Materiales necesarios por prueba","Número de paquetes","Costo por unidad (US$)","Detalles del cálculo"]
[106585,"Moxifloxacina, medicamento liofilizado para uso en laboratorio, paquete de 6 viales","paquete",1,0,{"$f":"IF(C13=T20,ROUNDUP((E23/D23)*$C$18,0),0)","v":0},90]
[106586,"Amikacina, medicamento liofilizado para uso en laboratorio, paquete de 6 viales","paquete",1,0,{"$f":"IF(C13=T20,ROUNDUP((E24/D24)*$C$18,0),0)","v":0},90]
[106584,"Kanamicina, medicamento liofilizado para uso en laboratorio, paquete de 6 viales","paquete",1,0,{"$f":"IF(C13=T20,ROUNDUP((E25/D25)*$C$18,0),0)","v":0},90]
[106587,"Capreomicina, medicamento liofilizado para uso en laboratorio, paquete de 6 viales","paquete",1,0,{"$f":"IF(C13=T20,ROUNDUP((E26/D26)*$C$18,0),0)","v":0},90]
[106582,"Suplemento enriquecedor de albúmina oleica dextrosa catalasa BD BBL Middlebrook OADC, 20 ml por tubo, tubo tamaño ''A'', suplemento enriquecedor BD BBL™ Middlebrook OADC, 20 ml por tubo, tubo tamaño ''A'' (10 muestras)","paquete/ml",200,0,{"$f":"IF(C13=T20,ROUNDUP((E27/D27)*$C$18,0),0)","v":0},65.8]
[106026,"Tubos BBL MGIT para usar en Bactec MGIT 960 (7ml), 100 tubos por paquete","tubos por caja",100,0,{"$f":"IF(C13=T20,ROUNDUP((E28/D28)*$C$18,0),0)","v":0},195]
[106412,"Puntas largas de 1 ml con filtro","piezas por caja",800,0,{"$f":"IF(C13=T20,ROUNDUP((E29/D29)*$C$18,0),0)","v":0},90]
[null,null,null,"Número total de pruebas de la resistencia a medicamentos de segunda línea requeridas",null,null,{"$f":"SUMPRODUCT(F23:F29,G23:G29)","v":0}]
[]
[]
[null,null,null,null,"Indique aquí los materiales que necesite para cada prueba de acuerdo con el POE del laboratorio (se deben modificar los valores predeterminados)"]
["Código GDF","Artículo","Unidad","Número por paquete","Materiales necesarios por prueba","Número de paquetes","Costo por unidad (US$)","Detalles del cálculo"]
[106315,"Protionamida (PTH), para uso en laboratorio","g",2,0,{"$f":"IF($C$13=$U$20,ROUNDUP((E35/D35)*$C$18,0),0)","v":0},165.9]
[106319,"Capreomicina (CM), para uso en laboratorio","g",1,0,0,274.60000000000002]
[106560,"Levofloxacina (LFX), para uso en laboratorio","g",1,0,0,43.75]
[106653,"Linezolida, para uso en laboratorio","mg",0,0,0,516.95000000000005]
[106654,"Clofazimina, para uso en laboratorio","g",0,0,0,111.3]
[null,"Bedaquilina, para uso en laboratorio","g",0,0,0,0]
[null,"Delamanida, para uso en laboratorio","g",0,0,0,0]
[106623,"Suplemento enriquecedor BBL MGIT OADC, 6 viales de 15 ml (90 ml)","paquete/ml",90,0,0,55]
[106026,"Tubos BBL MGIT para usar en Bactec MGIT 960 (7ml), 100 tubos por paquete","tubos por caja",100,0,0,195]
[106209,"Pipeta serológica, 5 ml","piezas por paquete",200,0,0,60.95]
[106550,"Pipeta serológica, 10 ml","piezas por paquete",200,0,0,62.1]
[106344,"Crioviales estériles, 2 ml","piezas por paquete",1000,0,0,295.89999999999998]
[106388,"Puntas de filtro para pipeta estériles, 5-100 μL","piezas por paquete",960,0,0,61]
[106352,"Jeringas desechables estériles","piezas por paquete",80,0,0,86.05]
[null,null,null,"Número total de pruebas de la resistencia a medicamentos de segunda línea requeridas",null,null,{"$f":"SUMPRODUCT(F35:F48,G35:G48)","v":0}]
[]
[]
[]
[]
[]
[]
[null,"Capacidad del instrumento BACTEC MGIT 960 que se necesita para hacer cultivos para pruebas de la resistencia a medicamentos de primera y segunda línea"]
[]
[null,"Número de pruebas realizadas",null,"Total de pruebas","Número máximo de días para la detección según el protocolo","Número de tubos por prueba según el protocolo","Período (en días)","Observaciones"]
[null,"Total de cultivos para pruebas (+ % de repeticiones + % de controles)",null,{"$f":"'Proces+cultivo (sól. y líq.)'!F21","v":0},42,1,{"$f":"365*(period/12)","v":{"$error":"#REF!"}}]
[null,"Total de pruebas con SIRE (+ % de repeticiones)",null,{"$f":"'Prueba de resistencia MGIT - 1ª'!C15","v":0},13,5,{"$f":"365*(period/12)","v":{"$error":"#REF!"}},"Portatubos AST Carrier para 5 tubos"]
[null,"Total de pruebas de PZA (+ % de repeticiones)",null,{"$f":"'Prueba de resistencia MGIT - 1ª'!C21","v":0},21,2,{"$f":"365*(period/12)","v":{"$error":"#REF!"}},"Portatubos AST Carrier para 2 tubos"]
[null,"Total de pruebas de medicamentos de segunda línea (+ % de repeticiones) con reactivos listos para usar",null,{"$f":"IF(C13=T20,C17,0)","v":0},13,8,{"$f":"365*(period/12)","v":{"$error":"#REF!"}},"Portatubos AST Carrier para 8 tubos"]
[null,"Total de pruebas de medicamentos de segunda línea (+ % de repeticiones) con reactivos en polvo",null,{"$f":"IF($C$13=$U$20,C17,0)","v":0},13,8,{"$f":"365*(period/12)","v":{"$error":"#REF!"}},"Portatubos AST Carrier para 8 tubos"]
[]
[null,"Capacidad utilizada (número de tubos)",null,"Número de tubos"]
[null,"Capacidad utilizada por los tubos para cultivos",null,{"$f":"((D59*F59)/G59)*E59","v":{"$error":"#REF!"}}]
[null,"Capacidad utilizada por los tubos SIRE",null,{"$f":"((D60*F60)/G60)*E60","v":{"$error":"#REF!"}}]
[null,"Capacidad utilizada por los tubos de pirazinamida",null,{"$f":"((D61*F61)/G61)*E61","v":{"$error":"#REF!"}}]
[null,"Capacidad utilizada por los tubos de medicamentos de segunda línea",null,{"$f":"(((D62*F62)/G62)*E62) + (((D63*F63)/G63)*E63)","v":{"$error":"#REF!"}}]
[null,"Capacidad total utilizada por las pruebas en el período",null,{"$f":"SUM(D66:D69)","v":{"$error":"#REF!"}}]
[]
[null,"Número de sistemas BACTEC 960 necesarios para la capacidad requerida:",null,{"$f":"D70*1/960","v":{"$error":"#REF!"}}]

{"sheet":"Limpieza y bioseguridad","index":22,"n_rows":45,"n_cols":12,"rows_kept":45,"cut":false,"hidden":false,"merged":[[0,0,0,8]]}
["Limpieza y bioseguridad"]
[]
[null,"Número de empleados del laboratorio",1]
[null,"Número de empleados en el laboratorio de bioseguridad de nivel 3",1]
[null,"Número de cámaras de bioseguridad",1]
[]
[null,"Limpieza"]
[]
[null,"Código GDF","Familia","Artículo","Número por paquete","Cantidad","Precio (US$)","Observaciones"]
[null,106376,"Material fungible","Algodón",1,{"$f":"ROUNDUP(Months/2/E10,0)","v":0},8.5500000000000007,"1 rollo cada 2 meses"]
[null,106444,"Material fungible","Bolsas de plástico para residuos de riesgo biológico, 30 litros",200,{"$f":"ROUNDUP(Months*110/E11,0)","v":0},98.6,"3 por día para vestuario + 1 por cámara de bioseguridad"]
[null,106348,"Material fungible","Bolsa de polipropileno transparente para residuos, 420 x 600 mm",1000,{"$f":"ROUNDUP(Months*22*3/E12,0)","v":0},107.05,"3 por día"]
[null,106755,"Material fungible","Toallas de papel, 200",1,{"$f":"ROUNDUP(Months/2/E13,0)","v":0},1.45,"1 por cada 2 meses"]
[null,106359,"Material fungible","Cinta indicadora estéril, autoclave",1,{"$f":"ROUNDUP(Months/3*2/E14,0)","v":0},2.15,"2 por trimestre"]
[null,106358,"Material fungible","Cinta indicadora estéril, horno de aire caliente",1,{"$f":"ROUNDUP(Months/3*2/E15,0)","v":0},14.25,"2 por trimestre"]
[null,106377,"Material fungible","Papel de laboratorio absorbente",50,{"$f":"ROUNDUP(Months*22*BSC/E16,0)","v":0},30.8,"2 por cámara de bioseguridad por día",null,null,null,{"$f":"Months","v":0}]
[null,106363,"Material fungible","Cepillo para tubos",5,{"$f":"ROUNDUP('Proces+cultivo (sól. y líq.)'!F21/500/E17,0)","v":0},8.9499999999999993,"Para cultivos, 1 por cada 500 cultivos"]
[null,106371,"Material fungible","Desinfectante para superficies de cámaras de bioseguridad",1,{"$f":"ROUNDUP(Months/3*BSC/E18,0)","v":0},35.200000000000003,"1 botella por trimestre por cámara de bioseguridad"]
[null,106294,"Material fungible","Desinfectante para instrumentos de limpieza",1,{"$f":"ROUNDUP(Months/3*BSC/E19,0)","v":0},46.55,"1 botella por trimestre por cámara de bioseguridad"]
[null,106370,"Material fungible","Desinfectante para suelos",1,{"$f":"ROUNDUP(Months/3/E20,0)","v":0},17,"1 por cada 2 meses"]
[null,106374,"Material fungible","Desinfectante para manos, 1 litro",1,{"$f":"ROUNDUP(Months/0.5/E21,0)","v":0},8.1999999999999993,"2 por mes"]
[null,106333,"Sustancias químicas","Etanol o isopropanol, 5 litros",1,{"$f":"ROUNDUP(Months/1.5/E22,0)","v":0},32.15,"2 botellas por trimestre por cámara de seguridad"]
[null,106331,"Sustancias químicas","Fenol, 1 kg",1,{"$f":"ROUNDUP(Months*22*0.025/E23,0)","v":0},63.2,"25 g por día"]
[null,106373,"Material fungible","Jabón líquido",1,{"$f":"ROUNDUP(Months/0.33/E24,0)","v":0},3.9,"3 por mes"]
[]
[null,"Bioseguridad",null,"Solo para el personal que trabaja en el laboratorio de bioseguridad de nivel 3"]
[null,106727,"Material fungible","Gorros",1000,{"$f":"ROUNDUP(staff3*Months*22/E27,0)","v":0},61.45,"1 por día por empleado"]
[null,106726,"Material fungible","Cubiertas para zapatos",2000,{"$f":"ROUNDUP(staff3*Months*22*4/E28,0)","v":0},213.25,"4 por día por empleado"]
[null,106725,"Material fungible","Bata de laboratorio, talla grande, desechable, estéril",60,{"$f":"ROUNDUP(staff3*Months*4.33*0.66/E29,0)","v":0},501.25,"0,66 por semana por empleado"]
[null,106724,"Material fungible","Bata de laboratorio, talla mediana, desechable, estéril",60,{"$f":"ROUNDUP(staff3*Months*4.33*1.32/E30,0)","v":0},501.25,"1.32 por empleado por semana"]
[null,106723,"Material fungible","Bata de laboratorio, talla pequeña, desechable, estéril",60,{"$f":"ROUNDUP(staff3*Months*4.33*0.33/E31,0)","v":0},501.25,"0,66 por semana por empleado"]
[null,106820,"Material fungible","Guantes de látex, grandes",100,{"$f":"ROUNDUP(staff3*Months*22*10*0.33/E32,0)","v":0},19.649999999999999,"10 por empleado por día"]
[null,106819,"Material fungible","Guantes de látex, medianos",100,{"$f":"ROUNDUP(staff3*Months*22*10*0.66/E33,0)","v":0},19.649999999999999,"10 por empleado por día"]
[null,106818,"Material fungible","Guantes de látex, pequeños",100,{"$f":"ROUNDUP(staff3*Months*22*10*0.33/E34,0)","v":0},19.649999999999999,"10 por empleado por día"]
[null,106829,"Material fungible","Mascarillas desechables de protección respiratoria FFP2",20,{"$f":"ROUNDUP(staff3*Months*4.33/E35,0)","v":0},40.1,"2 por empleado por semana"]
[null,106502,"Material fungible","Bata quirúrgica de algodón, grande",1,{"$f":"ROUNDUP(Months*4.33*BSC/E36,0)","v":0},18.899999999999999,"1 por cámara de bioseguridad por semana"]
[null,106501,"Material fungible","Bata quirúrgica de algodón, mediana",1,{"$f":"ROUNDUP(Months*4.33*BSC/E37,0)","v":0},18.899999999999999,"1 por cámara de bioseguridad por semana"]
[null,106500,"Material fungible","Bata quirúrgica de algodón, pequeñas",1,{"$f":"ROUNDUP(Months*4.33*BSC/E38,0)","v":0},18.899999999999999,"1 por cámara de bioseguridad por semana"]
[null,106094,"Material fungible","Botiquín de primeros auxilios para laboratorios científicos",1,0,248.85,"1 por cada 3 años"]
[]
[]
[null,null,null,"Resumen",null,null,"Costo (US$)"]
[null,null,null,"Costo de la limpieza",null,null,{"$f":"SUMPRODUCT(F10:F24,G10:G24)","v":0}]
[null,null,null,"Costo de la bioseguridad",null,null,{"$f":"SUMPRODUCT(F27:F39,G27:G39)","v":0}]
[null,null,null,"Costo total",null,null,{"$f":"G43+G44","v":0}]

{"sheet":"Mantenimiento y reparaciones","index":23,"n_rows":195,"n_cols":6,"rows_kept":195,"cut":false,"hidden":false,"merged":[[0,0,0,6]]}
["Mantenimiento y reparaciones"]
[null,null,"Tipo de cambio",1,0]
[]
[null,"Costos de los contratos de servicio y mantenimiento de equipos"]
[null,"Equipo","Número de unidades","Costo por unidad (US$)","Costos de servicio para 1 año (US$)","Observaciones y detalles"]
[null,"Cámaras de bioseguridad",0]
[null,"Contrato de servicio para 1 año",0,0,{"$f":"D7*C7","v":0}]
[null,"Piezas de repuesto",0,0,{"$f":"D8*C8","v":0}]
[null,"Viajes y alojamiento para técnicos",0,0,{"$f":"D9*C9","v":0}]
[null,"Subtotal",null,null,{"$f":"SUM(E7:E9)","v":0}]
[null,"TwinCubator (LPA)",0]
[null,"Contrato de servicio para 1 año",0,0,0]
[null,"Piezas de repuesto",0,0,{"$f":"D13*C13","v":0}]
[null,"Viajes y alojamiento para técnicos",0,0,{"$f":"D14*C14","v":0}]
[null,"Subtotal",null,null,{"$f":"SUM(E12:E14)","v":0}]
[]
[null,"Termociclador",0]
[null,"Contrato de servicio para 1 año",0,0,{"$f":"D18*C18","v":0}]
[null,"Piezas de repuesto",0,0,{"$f":"D19*C19","v":0}]
[null,"Viajes y alojamiento para técnicos",0,0,{"$f":"D20*C20","v":0}]
[null,"Subtotal",null,null,{"$f":"SUM(E18:E20)","v":0}]
[]
[null,"Flujo laminar (estación de trabajo de PCR)",0]
[null,"Contrato de servicio para 1 año",0,0,{"$f":"D24*C24","v":0}]
[null,"Piezas de repuesto",0,0,{"$f":"D25*C25","v":0}]
[null,"Viajes y alojamiento para técnicos",0,0,{"$f":"D26*C26","v":0}]
[null,"Subtotal",null,null,{"$f":"SUM(E24:E26)","v":0}]
[]
[null,"Autoclave",0]
[null,"Contrato de servicio para 1 año",0,0,{"$f":"D30*C30","v":0}]
[null,"Piezas de repuesto",0,0,{"$f":"D31*C31","v":0}]
[null,"Viajes y alojamiento para técnicos",0,0,{"$f":"D32*C32","v":0}]
[null,"Subtotal",null,null,{"$f":"SUM(E30:E32)","v":0}]
[]
[null,"Sistema BD BACTEC™ MGIT™ 960",0]
[null,"Contrato de servicio para 1 año",0,0,{"$f":"D36*C36","v":0},"1 visita por año calendario, 2 llamadas de emergencia"]
[null,"Viajes y alojamiento para técnicos",0,0,{"$f":"D37*C37","v":0},"Solo para visitas de emergencia (1 al año)"]
[null,"Filtros de aire BD BBL™, rectangulares, 2 paquetes (1 por año)",0,0,{"$f":"D38*C38","v":0}]
[null,"Kit calibrador BD BBL™ (para 1 cajón)",0,0,{"$f":"D39*C39","v":0}]
[null,"Subtotal",null,null,{"$f":"SUM(E36:E39)","v":0}]
[]
[]
[null,"BD MAX MDR-TB",0]
[null,null,0,0,{"$f":"D44*C44","v":0}]
[null,null,0,0,{"$f":"D45*C45","v":0}]
[null,"Subtotal",null,null,{"$f":"SUM(E44:E45)","v":0}]
[]
[null,"FluoroType MTBDR Ver 2.0",0]
[null,null,0,0,{"$f":"D49*C49","v":0}]
[null,null,0,0,{"$f":"D50*C50","v":0}]
[null,"Subtotal",null,null,{"$f":"SUM(E49:E50)","v":0}]
[]
[null,"MTB y MTB-RIF/INH de Cobas®",0]
[null,null,0,0,{"$f":"D54*C54","v":0}]
[null,null,0,0,{"$f":"D55*C55","v":0}]
[null,"Subtotal",null,null,{"$f":"SUM(E54:E55)","v":0}]
[]
[null,"RT MTB y MTB RIF/INH de Abbott",0]
[null,null,0,0,{"$f":"D59*C59","v":0}]
[null,null,0,0,{"$f":"D60*C60","v":0}]
[null,"Subtotal",null,null,{"$f":"SUM(E59:E60)","v":0}]
[]
["Código GDF","GeneXpert de 4 módulos",0,"Costo por unidad (US$)*: precios del catálogo GDF"]
["WX04RG12","Prórroga de un año de la garantía",0,2898,{"$f":"D64*C64","v":0},"La garantía incluye 1 kit Xpert Check para el año 1; por lo tanto, se debe encargar otro kit por separado para el año 2."]
["WX04RG36","Prórroga de tres años de la garantía",0,7902,{"$f":"D65*C65","v":0},"Esta garantía incluye kits Xpert Check para los años 1, 2, 3 y 4; por lo tanto, se debe encargar otro kit por separado para el año 5."]
["WX04UP36","Prórroga de tres años de la garantía, encargada con el sistema",0,6840,{"$f":"D66*C66","v":0},"Esta garantía incluye kits Xpert Check para los años 1, 2, 3 y 4; por lo tanto, se debe encargar otro kit por separado para el año 5."]
["XPERTCHECK-CE-5","Paquete de calibración XpertCheck para el sistema GeneXpert GX-IV de 4 módulos",0,450,0,"Se debe encargar un paquete de XpertCheck al encargar un nuevo sistema GeneXpert sin una prórroga de tres años de la garantía (WX04UP36). Los paquetes se habrán agotado al cabo del año 1, durante la garantía inicial gratuita de dos años."]
["700-4510","Filtro de polvo para el sistema GeneXpert",0,350,0,"Se necesita un filtro adicional para ambientes con mucho polvo. Producto vinculado a todos los sistemas Xpert."]
["Módulo GX-IV","Módulo GeneXpert adicional o de reemplazo",0,3360,0]
["GX-SWAP-1","1 módulo de reemplazo",0,900,0]
[null,"Actualización a un instrumento de 10 colores",0,0,{"$f":"D71*C71","v":0}]
[null,"Viajes y alojamiento del técnico",0,0,{"$f":"D72*C72","v":0}]
[null,"Subtotal",null,null,{"$f":"SUM(E64:E72)","v":0}]
[]
["Código GDF","GeneXpert de 2 módulos",0,"Costo por unidad (US$)*: precios del catálogo GDF"]
["WX02RG12","Prórroga de un año de la garantía",0,1896,{"$f":"D76*C76","v":0},"La garantía incluye 1 kit Xpert Check para el año 1; por lo tanto, se debe encargar otro kit por separado para el año 2."]
["WX02RG36","Prórroga de tres años de la garantía",0,5184,{"$f":"D77*C77","v":0},"Esta garantía incluye kits Xpert Check para los años 1, 2, 3 y 4; por lo tanto, se debe encargar otro kit por separado para el año 5."]
["WX02UP36","prórroga de tres años de la garantía, encargada con el sistema",0,4500,{"$f":"D78*C78","v":0},"Esta garantía incluye kits Xpert Check para los años 1, 2, 3 y 4; por lo tanto, se debe encargar otro kit por separado para el año 5."]
["XPERTCHECK-CE-5","Paquete de calibración XpertCheck para el sistema GeneXpert GX-IV de 4 módulos",0,450,0,"Se debe encargar un paquete de XpertCheck al encargar un nuevo sistema GeneXpert sin una prórroga de tres años de la garantía (WX04UP36). Los paquetes se habrán agotado al cabo del año 1, durante la garantía inicial gratuita de dos años."]
["700-4510","Filtro de polvo para el sistema GeneXpert",0,350,0,"Se necesita un filtro adicional para ambientes con mucho polvo. Producto vinculado a todos los sistemas Xpert."]
["Módulo GX-IV","Módulo GeneXpert adicional o de reemplazo",0,3360,0]
["GX-SWAP-1","1 módulo de reemplazo",0,900,0]
[null,"Actualización a un instrumento de 10 colores",0,0,{"$f":"D83*C83","v":0}]
[null,"Viajes y alojamiento del técnico",0,0,{"$f":"D84*C84","v":0}]
[null,"Subtotal",null,null,{"$f":"SUM(E76:E84)","v":0}]
[]
["Código GDF","GeneXpert de 16 módulos",0,"Costo por unidad (US$)*: precios del catálogo GDF",null,"La garantía incluye 1 kit Xpert Check para el año 1; por lo tanto, se debe encargar otro kit por separado para el año 2."]
["WV16RG12","Prórroga de un año de la garantía",0,7800,{"$f":"D88*C88","v":0},"Esta garantía incluye kits Xpert Check para los años 1, 2, 3 y 4; por lo tanto, se debe encargar otro kit por separado para el año 5."]
["WX16RG36","Prórroga de tres años de la garantía",0,20898,{"$f":"D89*C89","v":0},"Esta garantía incluye kits Xpert Check para los años 1, 2, 3 y 4; por lo tanto, se debe encargar otro kit por separado para el año 5."]
["WX16UP36","Prórroga de tres años de la garantía, encargada con el sistema",0,18504,{"$f":"D90*C90","v":0},"Se debe encargar un paquete de XpertCheck al encargar un nuevo sistema GeneXpert sin una prórroga de tres años de la garantía (WX04UP36). Los paquetes se habrán agotado al cabo del año 1, durante la garantía inicial gratuita de dos años."]
["XPERTCHECK-CE-5","Paquete de calibración XpertCheck para el sistema GeneXpert GX-IV de 4 módulos",0,450,0,"Se necesita un filtro adicional para ambientes con mucho polvo. Producto vinculado a todos los sistemas Xpert."]
["700-4510","Filtro de polvo para el sistema GeneXpert",0,350,0]
["Módulo GX-IV","Módulo GeneXpert adicional o de reemplazo",0,3360,0]
["GX-SWAP-1","1 módulo de reemplazo",0,900,0]
[null,"Actualización a un instrumento de 10 colores",0,0,0]
[null,"Viajes y alojamiento del técnico",0,0,{"$f":"D96*C96","v":0}]
[null,"Subtotal",null,null,{"$f":"SUM(E88:E96)","v":0}]
[]
["Código GDF","Prueba Truenat",0,"Costo por unidad (US$)*: precios del catálogo GDF",null,"El contrato de mantenimiento integral incluye 1) asistencia a distancia y visita del técnico si es necesario; 2) reparación y reemplazo de piezas. Si una máquina no se puede reparar in situ, se provee una máquina de reserva. Si hay que reemplazar la máquina, se proveerá una máquina de reemplazo gratis por cuenta de Molbio; 3) viajes en el país y mano de obra del agente local de la empresa."]
[106702,"Prórroga de un año de la garantía de Truelab y Trueprep",0,1220,{"$f":"D100*C100","v":0},"El contrato de mantenimiento integral incluye 1) asistencia a distancia y visita del técnico si es necesario; 2) reparación y reemplazo de piezas. Si una máquina no se puede reparar in situ, se provee una máquina de reserva. Si hay que reemplazar la máquina, se proveerá una máquina de reemplazo gratis por cuenta de Molbio; 3) viajes en el país y mano de obra del agente local de la empresa; 4) chips de calibración y materiales utilizados para el servicio y mantenimiento."]
[106703,"Prórroga de dos años de la garantía de Truelab y Trueprep",0,2240,{"$f":"D101*C101","v":0},"El contrato de mantenimiento integral incluye 1) asistencia a distancia y visita del técnico si es necesario; 2) reparación y reemplazo de piezas. Si una máquina no se puede reparar in situ, se provee una máquina de reserva. Si hay que reemplazar la máquina, se proveerá una máquina de reemplazo gratis por cuenta de Molbio; 3) viajes en el país y mano de obra del agente local de la empresa."]
[106704,"Prórroga de tres años de la garantía de Truelab y Trueprep",0,3360,0,"El contrato de mantenimiento integral incluye 1) asistencia a distancia y visita del técnico si es necesario; 2) reparación y reemplazo de piezas. Si una máquina no se puede reparar in situ, se provee una máquina de reserva. Si hay que reemplazar la máquina, se proveerá una máquina de reemplazo gratis por cuenta de Molbio; 3) viajes en el país y mano de obra del agente local de la empresa."]
[106705,"Prórroga de cuatro años de la garantía de Truelab y Trueprep",0,4480,0,"El contrato de mantenimiento integral incluye 1) asistencia a distancia y visita del técnico si es necesario; 2) reparación y reemplazo de piezas. Si una máquina no se puede reparar in situ, se provee una máquina de reserva. Si hay que reemplazar la máquina, se proveerá una máquina de reemplazo gratis por cuenta de Molbio; 3) viajes en el país y mano de obra del agente local de la empresa."]
[106706,"Prórroga de cinco años de la garantía de Truelab y Trueprep",0,5600,0]
[null,"Subtotal",null,null,{"$f":"SUM(E100:E104)","v":0}]
[]
["Código GDF","TB-LAMP",0,"Costo por unidad (US$)*: precios del catálogo GDF",null,"• Comprobación de las condiciones in situ durante 1 año • Limpieza exhaustiva del área de trabajo, la superficie del instrumento, los bloques de calefacción y la unidad de lectura de fluorescencia de acuerdo con la lista de verificación de mantenimiento • Inspección y validación del sistema de alimentación ininterrumpida y las tomas de corriente • Control de la temperatura y verificación de que el bloque de incubación y reacción alcance la temperatura objetivo de acuerdo con la lista de verificación de mantenimiento • Kit de pruebas de mantenimiento para asegurar que el instrumento funcione correctamente de acuerdo con la calificación de operación (OQ) • Equipo necesario y kit de pruebas para la calificación de operación • Emisión de certificado de calificación de operación"]
[106639,"Mantenimiento de TB-LAMP durante 1 año",0,1358.5,{"$f":"D108*C108","v":0},"• Prórroga de un año de la garantía (in situ) si el mantenimiento se realiza antes de la conclusión del primer período de garantía y se entrega a HUMAN una copia de la lista de verificación de mantenimiento completada. • Limpieza exhaustiva del área de trabajo, la superficie del instrumento, los bloques de calefacción y la unidad de lectura de fluorescencia de acuerdo con la lista de verificación de mantenimiento • Inspección y validación del sistema de alimentación ininterrumpida y las tomas de corriente • Control de la temperatura y verificación de que el bloque de incubación y reacción alcance la temperatura objetivo de acuerdo con la lista de verificación de mantenimiento • Kit de pruebas de mantenimiento para asegurar que el instrumento funcione correctamente de acuerdo con la calificación de operación (OQ) • Equipo necesario y kit de pruebas para la calificación de operación • Emisión de certificado de calificación de operación"]
[106640,"Mantenimiento con prórroga de la garantía para TB-LAMP",0,1842.5,{"$f":"D109*C109","v":0}]
[null,"Subtotal",null,null,{"$f":"SUM(E108:E109)","v":0}]
[]
[]
[null,"LIS",0]
[null,"Contrato de servicio para 1 año",0,0,{"$f":"D114*C114","v":0}]
[null,"Viajes y alojamiento del técnico",0,0,{"$f":"D115*C115","v":0}]
[null,"Subtotal",null,null,{"$f":"SUM(E93:E115)","v":0}]
[]
[]
[null,"Sistema de ventilación del laboratorio de cultivos y pruebas de sensibilidad a fármacos",0]
[null,"Contrato de servicio para 1 año",0,0,{"$f":"D120*C120","v":0}]
[null,"Piezas de repuesto",0,0,{"$f":"D121*C121","v":0}]
[null,"Viajes y alojamiento del técnico",0,0,{"$f":"D122*C122","v":0}]
[null,"Subtotal",null,null,{"$f":"SUM(E120:E122)","v":0}]
[]
[null,"Costo total del mantenimiento (US$)",null,null,{"$f":"E10+E27+E33+E40+E46+E51+E56+E61+E73+E85+E97+E105+E110+E116+E123+E15+E21","v":0}]
[]
[]
[]
[null,"Costos de reparación de equipos (con y sin contratos de servicio)",null,null,null,"Costos de reparación (10% del valor)"]
["Código GDF","Equipo","Número de unidades","Costo por unidad (US$)*: precios del catálogo GDF","Valor del equipo (US$)",{"$f":"E131*10%","v":0}]
[106535,"Microscopio binocular de campo iluminado, ZN",0,921.09,{"$f":"C131*D131","v":0},0]
[106629,"Espejo reflectante para microscopio de campo iluminado, ZN",0,12.82,0,0]
[106533,"Microscopio, unidad de suministro de batería",0,94.11,0,0]
[106531,"Microscopio LED (configuración básica)",0,1503.8,0,0]
[106532,"Microscopio LED, espejo de luz",0,24,0,0]
[106475,"Calentador de portaobjetos",0,1056.75,0,0]
[106709,"Sistema de alimentación ininterrumpida: 3000 VA - 2100 W con bloque de baterías",0,1933.5,0,0]
[106710,"Bloque de baterías para sistema de alimentación ininterrumpida de 3000 VA",0,2364.8000000000002,0,0]
[106016,"Impresora para BACTEC",0,532,null,0]
[106248,"Estante perforado de acero inoxidable",0,183,null,0]
[106451,"Densitómetro",0,699.05,0,0]
[106729,"Agitador orbital compacto (para cámara de bioseguridad)",0,853.6,0,0]
[106220,"Agitador superior con adaptador universal",0,1891.55,0,0]
[106048,"Centrífuga de microlitros",0,2034.75,0,0]
[106729,"Agitador orbital digital",0,853.6,0,0]
[106257,"Horno universal, 32 litros",0,1306.55,0,0]
[106224,"Centrífuga de sobremesa refrigerada",0,6060.3,0,0]
[106225,"Rotor oscilante de 4 plazas",0,948.7,0,0]
[106226,"Cucharones de rotor",0,589.25,0,0]
[106227,"Tapas herméticas para aerosoles, para cucharones de rotor",0,174.2,0,0]
[106228,"Adaptador reductor para tubos de 50 ml",0,327.14999999999998,0,0]
[106229,"Adaptador reductor para tubos de 15 o 12 ml",0,327.14999999999998,0,0]
[106732,"Termobloqueo y termocalentador",0,1489.45,0,{"$f":"E154*10%","v":0}]
[106064,"GT-Blot 48",0,{"$f":"14352*E2","v":0},{"$f":"C154*D154","v":0},0]
[106438,"Bandeja GT-Blot 48 para 96 tiras (negra)",0,{"$f":"2.9*E2","v":0},0,0]
[106613,"GTQ-Cycler 96",0,{"$f":"4595*E2","v":0},0,0]
[106707,"Sistema de alimentación ininterrumpida: 700 VA - 500 W con bloque de baterías",0,761.15,0,0]
[106708,"Bloque de baterías para sistema de alimentación ininterrumpida de 700 VA",0,1749.3,0,0]
[106595,"Estabilizador de tensión de 2000 W",0,255.95,0,0]
[106099,"Horno de laboratorio, 256 litros",0,3530.65,0,0]
[106100,"Estantes para horno de laboratorio, 256 litros",0,111,0,0]
[106101,"Lavadora-desinfectadora de laboratorio",0,7984.9,0,0]
[106102,"Lavadora-desinfectadora de medio inserto",0,2014.25,0,0]
[106103,"Medio inserto para cestas",0,432,0,0]
[106104,"Cesta superior e inyector para boquillas",0,1537,0,0]
[106105,"Inserto de un cuarto para tubos de ensayo, 160 x 16",0,393,0,0]
[106138,"Inspissator para la coagulación de medios de cultivo a base de huevo",0,4663.1499999999996,0,0]
[106127,"Destilador de agua totalmente automático",0,1914.45,0,0]
[106137,"Soporte de cristalería",0,48.35,0,0]
[106140,"Refrigerador de pie de laboratorio, 141 litros",0,1539.4,0,0]
[106424,"Congelador de laboratorio, 143 litros",0,1483.1,0,0]
[106142,"Cámara de ultracongelación de 70 litros, –50 °C a –85 °C",0,9940.1,0,0]
[106130,"Medidor de pH de sobremesa",0,458.25,0,0]
[106132,"Agitador magnético con placa calefactora",0,1224.55,0,0]
[106720,"Barras magnéticas, juego de 18",0,86.35,0,0]
[106733,"Licuadora de laboratorio",0,1270.95,0,0]
[106734,"Jarra para licuadora de laboratorio",0,189.95,0,0]
[106128,"Balanza analítica electrónica para pruebas de sensibilidad a fármacos",0,2007.8,0,0]
[106129,"Balanza electrónica de precisión",0,285.60000000000002,0,0]
[106142,"Cámara de ultracongelación de 70 litros, –40 °C a –86 °C",0,15422.4,0,0]
[106719,"Estante de acero inoxidable para cámara de ultracongelación",0,3764.25,0,0]
[106594,"Guantes criogénicos",0,143.4,0,0]
[106053,"Pipeta de 1 canal; varía de 1 a 10 μL",0,204.25,0,0]
[106054,"Pipeta de 1 canal, varía de 20 a 20 μL",0,204.25,0,0]
[106055,"Pipeta de 1 canal; varía de 10 a 100 μL",0,204.25,0,0]
[106056,"Pipeta de 1 canal, varía de 20 a 200 μL",0,204.25,0]
[]
[]
[]
[]
[]
[]
[]
[null,null,null,null,null,{"$f":"SUM(F130:F193)","v":0}]
[null,"Costo total del mantenimiento (US$)",null,null,{"$f":"SUM(E131:E194)","v":0}]

{"sheet":"Human resources","index":24,"n_rows":214,"n_cols":8,"rows_kept":214,"cut":false,"hidden":true,"merged":[]}
[null,null,"Human Resources"]
[]
[]
[null,null,"Salary and Incentives"]
[null,null,null,"No. of staff","Annual contract amount per staff /year (USD)","% contract","Annual incentives per staff (USD)","Total annual costs (USD)"]
[null,null,"Head of laboratory",0,0,0,0,{"$f":"(D6*E6*F6)+(G6*D6)","v":0}]
[null,null,"Laboratory doctors NRL",0,0,0,0,{"$f":"(D7*E7*F7)+(G7*D7)","v":0}]
[null,null,"Laboratory technicians  NRL",0,0,0,0,0]
[null,null,"Laboratory Clerk",0,0,0,0,0]
[null,null,"Nurse assistant/Cleaner",0,0,0,0,0]
[null,null,"Microscopy supervisor",0,0,0,0,0]
[null,null,"**Program officer (liason btw program & lab)",0,0,0,0,0]
[null,null,"Total Salary & Incentives",null,null,null,null,{"$f":"SUM(H6:H12)","v":0}]
[]
[]
[null,null,"Training 1: Refresher traning microscopy for ZN and LED"]
[null,null,"Number of sessions (per year)",0]
[null,null,"Length of session (average number of days per session) ",0]
[null,null,"Number of participants (per session)",0]
[null,null,"Number of participants requiring per diems (per session)",0]
[null,null,"Number of national facilitators (average per course)",0]
[null,null,"Number of international facilitators (average per course)",0]
[]
[null,null,"Costs for participants",null,"If no budget required for any of the mentioned activities, e.g. per diem for national facilitators, manualley enter \"0\""]
[null,null,"Total per diem",{"$f":"D17*D18*D20*#REF!","v":{"$error":"#REF!"}}]
[null,null,"Total cost of transportation",{"$f":"D19*D17*#REF!","v":{"$error":"#REF!"}}]
[null,null,"Total cost of hotel ",{"$f":"D20*D18*D17*#REF!","v":{"$error":"#REF!"}}]
[null,null,"Costs for national experts/facilitators"]
[null,null,"Total per diem ",{"$f":"D21*D17*D18*#REF!","v":{"$error":"#REF!"}}]
[null,null,"Total cost of transportation",{"$f":"D17*D21*#REF!","v":{"$error":"#REF!"}}]
[null,null,"Total cost of hotel ",{"$f":"D21*D18*D17*#REF!","v":{"$error":"#REF!"}}]
[null,null,"Costs for international experts/facilitators"]
[null,null,"Total per diems",{"$f":"D22*D17*D18*#REF!","v":{"$error":"#REF!"}}]
[null,null,"Total daily fee ",{"$f":"D22*D18*D17*#REF!","v":{"$error":"#REF!"}}]
[null,null,"Total travel costs ",{"$f":"D22*D17*#REF!","v":{"$error":"#REF!"}}]
[null,null,"Total transportation costs",{"$f":"D22*D17*#REF!","v":{"$error":"#REF!"}}]
[null,null,"Additional costs"]
[null,null,"Total cost of refresher and lunch ",{"$f":"(D19+D21+D22)*D18*D17*#REF!","v":{"$error":"#REF!"}}]
[null,null,"Total cost of room rental",0]
[null,null,"Total cost of stationary & training material (per sesssion)",{"$f":"D17*D19*#REF!","v":{"$error":"#REF!"}}]
[null,null,"Other costs <specify> (typical per session)",0]
[null,null,"Total Training 1",{"$f":"SUM(D25:D41)","v":{"$error":"#REF!"}}]
[]
[null,null,"Training 2: Training for GX user (refresher and for new people)"]
[null,null,"Number of sessions (per year)",0]
[null,null,"Length of session (average number of days per session) ",0]
[null,null,"Number of participants (per session)",0]
[null,null,"Number of participants requiring per diems (per session)",0]
[null,null,"Number of national facilitators (average per course)",0]
[null,null,"Number of international facilitators (average per course)",0]
[]
[null,null,"Costs for participants",null,"If no budget required for any of the mentioned activities, e.g. per diem for national facilitators, manualley enter \"0\""]
[null,null,"Total per diem",{"$f":"D48*D46*D45*#REF!","v":{"$error":"#REF!"}}]
[null,null,"Total cost of transportation",{"$f":"D47*D45*#REF!","v":{"$error":"#REF!"}}]
[null,null,"Total cost of hotel ",{"$f":"D48*D46*D45*#REF!","v":{"$error":"#REF!"}}]
[null,null,"Costs for national experts/facilitators"]
[null,null,"Total per diem ",{"$f":"D49*D45*D46*#REF!","v":{"$error":"#REF!"}}]
[null,null,"Total cost of transportation",{"$f":"D49*D45*#REF!","v":{"$error":"#REF!"}}]
[null,null,"Total cost of hotel ",{"$f":"D49*D46*D45*#REF!","v":{"$error":"#REF!"}}]
[null,null,"Costs for international experts/facilitators"]
[null,null,"Total per diems",{"$f":"D50*D45*D46*#REF!","v":{"$error":"#REF!"}}]
[null,null,"Total daily fee ",{"$f":"D50*D46*D45*#REF!","v":{"$error":"#REF!"}}]
[null,null,"Total travel costs ",{"$f":"D50*D45*#REF!","v":{"$error":"#REF!"}}]
[null,null,"Total transportation costs",{"$f":"D50*D45*#REF!","v":{"$error":"#REF!"}}]
[null,null,"Additional costs"]
[null,null,"Total cost of refresher and lunch ",{"$f":"(D47+D49+D50)*D46*D45*#REF!","v":{"$error":"#REF!"}}]
[null,null,"Total cost of room rental",0]
[null,null,"Total cost of stationary & training material (per sesssion)",{"$f":"D45*D47*#REF!","v":{"$error":"#REF!"}}]
[null,null,"Other costs <specify> (typical per session)",0]
[null,null,"Total Training 2",{"$f":"SUM(D53:D69)","v":{"$error":"#REF!"}}]
[]
[]
[null,null,"Training 3: TB-LAMP Training  (refresher and for new people)"]
[null,null,"Number of sessions (per year)",0]
[null,null,"Length of session (average number of days per session) ",0]
[null,null,"Number of participants (per session)",0]
[null,null,"Number of participants requiring per diems (per session)",0]
[null,null,"Number of national facilitators (average per course)",0]
[null,null,"Number of international facilitators (average per course)",0]
[]
[null,null,"Costs for participants",null,"If no budget required for any of the mentioned activities, e.g. per diem for national facilitators, manualley enter \"0\""]
[null,null,"Total per diem",{"$f":"D77*D75*D74*#REF!","v":{"$error":"#REF!"}}]
[null,null,"Total cost of transportation",{"$f":"D76*D74*#REF!","v":{"$error":"#REF!"}}]
[null,null,"Total cost of hotel ",{"$f":"D77*D75*D74*#REF!","v":{"$error":"#REF!"}}]
[null,null,"Costs for national experts/facilitators"]
[null,null,"Total per diem ",{"$f":"D78*D74*D75*#REF!","v":{"$error":"#REF!"}}]
[null,null,"Total cost of transportation",{"$f":"D78*D74*#REF!","v":{"$error":"#REF!"}}]
[null,null,"Total cost of hotel ",{"$f":"D78*D75*D74*#REF!","v":{"$error":"#REF!"}}]
[null,null,"Costs for international experts/facilitators"]
[null,null,"Total per diems",{"$f":"D79*D74*D75*#REF!","v":{"$error":"#REF!"}}]
[null,null,"Total daily fee ",{"$f":"D79*D75*D74*#REF!","v":{"$error":"#REF!"}}]
[null,null,"Total travel costs ",{"$f":"D79*D74*#REF!","v":{"$error":"#REF!"}}]
[null,null,"Total transportation costs",{"$f":"D79*D74*#REF!","v":{"$error":"#REF!"}}]
[null,null,"Additional costs"]
[null,null,"Total cost of refresher and lunch ",{"$f":"(D76+D78+D79)*D75*D74*#REF!","v":{"$error":"#REF!"}}]
[null,null,"Total cost of room rental",0]
[null,null,"Total cost of stationary & training material (per sesssion)",{"$f":"D74*D76*#REF!","v":{"$error":"#REF!"}}]
[null,null,"Other costs <specify> (typical per session)",0]
[null,null,"Total Training 3",{"$f":"SUM(D82:D98)","v":{"$error":"#REF!"}}]
[]
[]
[null,null,"Training 4: LAM Training  (refresher and for new people)"]
[null,null,"Number of sessions (per year)",0]
[null,null,"Length of session (average number of days per session) ",0]
[null,null,"Number of participants (per session)",0]
[null,null,"Number of participants requiring per diems (per session)",0]
[null,null,"Number of national facilitators (average per course)",0]
[null,null,"Number of international facilitators (average per course)",0]
[]
[null,null,"Costs for participants",null,"If no budget required for any of the mentioned activities, e.g. per diem for national facilitators, manualley enter \"0\""]
[null,null,"Total per diem",{"$f":"D106*D104*D103*#REF!","v":{"$error":"#REF!"}}]
[null,null,"Total cost of transportation",{"$f":"D105*D103*#REF!","v":{"$error":"#REF!"}}]
[null,null,"Total cost of hotel ",{"$f":"D106*D104*D103*#REF!","v":{"$error":"#REF!"}}]
[null,null,"Costs for national experts/facilitators"]
[null,null,"Total per diem ",{"$f":"D107*D103*D104*#REF!","v":{"$error":"#REF!"}}]
[null,null,"Total cost of transportation",{"$f":"D107*D103*#REF!","v":{"$error":"#REF!"}}]
[null,null,"Total cost of hotel ",{"$f":"D107*D104*D103*#REF!","v":{"$error":"#REF!"}}]
[null,null,"Costs for international experts/facilitators"]
[null,null,"Total per diems",{"$f":"D108*D103*D104*#REF!","v":{"$error":"#REF!"}}]
[null,null,"Total daily fee ",{"$f":"D108*D104*D103*#REF!","v":{"$error":"#REF!"}}]
[null,null,"Total travel costs ",{"$f":"D108*D103*#REF!","v":{"$error":"#REF!"}}]
[null,null,"Total transportation costs",{"$f":"D108*D103*#REF!","v":{"$error":"#REF!"}}]
[null,null,"Additional costs"]
[null,null,"Total cost of refresher and lunch ",{"$f":"(D105+D107+D108)*D104*D103*#REF!","v":{"$error":"#REF!"}}]
[null,null,"Total cost of room rental",0]
[null,null,"Total cost of stationary & training material (per sesssion)",{"$f":"D103*D105*#REF!","v":{"$error":"#REF!"}}]
[null,null,"Other costs <specify> (typical per session)",0]
[null,null,"Total Training 4",{"$f":"SUM(D111:D127)","v":{"$error":"#REF!"}}]
[]
[]
[null,null,"Training 5: LPA (1st and 2nd line drugs) Training  (refresher and for new people)"]
[null,null,"Number of sessions (per year)",0]
[null,null,"Length of session (average number of days per session) ",0]
[null,null,"Number of participants (per session)",0]
[null,null,"Number of participants requiring per diems (per session)",0]
[null,null,"Number of national facilitators (average per course)",0]
[null,null,"Number of international facilitators (average per course)",0]
[]
[null,null,"Costs for participants",null,"If no budget required for any of the mentioned activities, e.g. per diem for national facilitators, manualley enter \"0\""]
[null,null,"Total per diem",{"$f":"D135*D133*D132*#REF!","v":{"$error":"#REF!"}}]
[null,null,"Total cost of transportation",{"$f":"D134*D132*#REF!","v":{"$error":"#REF!"}}]
[null,null,"Total cost of hotel ",{"$f":"D135*D133*D132*#REF!","v":{"$error":"#REF!"}}]
[null,null,"Costs for national experts/facilitators"]
[null,null,"Total per diem ",{"$f":"D136*D132*D133*#REF!","v":{"$error":"#REF!"}}]
[null,null,"Total cost of transportation",{"$f":"D136*D132*#REF!","v":{"$error":"#REF!"}}]
[null,null,"Total cost of hotel ",{"$f":"D136*D133*D132*#REF!","v":{"$error":"#REF!"}}]
[null,null,"Costs for international experts/facilitators"]
[null,null,"Total per diems",{"$f":"D137*D132*D133*#REF!","v":{"$error":"#REF!"}}]
[null,null,"Total daily fee ",{"$f":"D137*D133*D132*#REF!","v":{"$error":"#REF!"}}]
[null,null,"Total travel costs ",{"$f":"D137*D132*#REF!","v":{"$error":"#REF!"}}]
[null,null,"Total transportation costs",{"$f":"D137*D132*#REF!","v":{"$error":"#REF!"}}]
[null,null,"Additional costs"]
[null,null,"Total cost of refresher and lunch ",{"$f":"(D134+D136+D137)*D133*D132*#REF!","v":{"$error":"#REF!"}}]
[null,null,"Total cost of room rental",0]
[null,null,"Total cost of stationary & training material (per sesssion)",{"$f":"D132*D134*#REF!","v":{"$error":"#REF!"}}]
[null,null,"Other costs <specify> (typical per session)",0]
[null,null,"Total Training 5",{"$f":"SUM(D140:D156)","v":{"$error":"#REF!"}}]
[]
[]
[null,null,"Training 6: Culture/DST Training  (refresher and for new people)"]
[null,null,"Number of sessions (per year)",0]
[null,null,"Length of session (average number of days per session) ",0]
[null,null,"Number of participants (per session)",0]
[null,null,"Number of participants requiring per diems (per session)",0]
[null,null,"Number of national facilitators (average per course)",0]
[null,null,"Number of international facilitators (average per course)",0]
[]
[null,null,"Costs for participants",null,"If no budget required for any of the mentioned activities, e.g. per diem for national facilitators, manualley enter \"0\""]
[null,null,"Total per diem",{"$f":"D164*D162*D161*#REF!","v":{"$error":"#REF!"}}]
[null,null,"Total cost of transportation",{"$f":"D163*D161*#REF!","v":{"$error":"#REF!"}}]
[null,null,"Total cost of hotel ",{"$f":"D164*D162*D161*#REF!","v":{"$error":"#REF!"}}]
[null,null,"Costs for national experts/facilitators"]
[null,null,"Total per diem ",{"$f":"D165*D161*D162*#REF!","v":{"$error":"#REF!"}}]
[null,null,"Total cost of transportation",{"$f":"D165*D161*#REF!","v":{"$error":"#REF!"}}]
[null,null,"Total cost of hotel ",{"$f":"D165*D162*D161*#REF!","v":{"$error":"#REF!"}}]
[null,null,"Costs for international experts/facilitators"]
[null,null,"Total per diems",{"$f":"D166*D161*D162*#REF!","v":{"$error":"#REF!"}}]
[null,null,"Total daily fee ",{"$f":"D166*D162*D161*#REF!","v":{"$error":"#REF!"}}]
[null,null,"Total travel costs ",{"$f":"D166*D161*#REF!","v":{"$error":"#REF!"}}]
[null,null,"Total transportation costs",{"$f":"D166*D161*#REF!","v":{"$error":"#REF!"}}]
[null,null,"Additional costs"]
[null,null,"Total cost of refresher and lunch ",{"$f":"(D163+D165+D166)*D162*D161*#REF!","v":{"$error":"#REF!"}}]
[null,null,"Total cost of room rental",0]
[null,null,"Total cost of stationary & training material (per sesssion)",{"$f":"D161*D163*#REF!","v":{"$error":"#REF!"}}]
[null,null,"Other costs <specify> (typical per session)",0]
[null,null,"Total Training 6",{"$f":"SUM(D169:D185)","v":{"$error":"#REF!"}}]
[]
[]
[]
[]
[null,null,"International Training <specify>"]
[null,null,"Number of sessions (per year)",0]
[null,null,"Length of session (average number of days per session) ",0]
[null,null,"Number of staff travelling for this training",0]
[]
[null,null,"Costs for participants"]
[null,null,"Total per diem",{"$f":"D194*D193*D192","v":0}]
[null,null,"Total cost of travel",{"$f":"D194*D192","v":0}]
[null,null,"Other costs <specify> registration costs",0]
[null,null,"Total costs international trainings",{"$f":"SUM(D197:D199)","v":0}]
[]
[]
[]
[]
[null,null,"Resumen","Costs (USD)"]
[null,null,{"$f":"C13","v":"Total Salary & Incentives"},{"$f":"H13","v":0}]
[null,null,{"$f":"C16","v":"Training 1: Refresher traning microscopy for ZN and LED"},{"$f":"D42","v":{"$error":"#REF!"}}]
[null,null,{"$f":"C44","v":"Training 2: Training for GX user (refresher and for new people)"},{"$f":"D186","v":{"$error":"#REF!"}}]
[null,null,"Training 3: TB-LAMP Training  (refresher and for new people)",{"$f":"D99","v":{"$error":"#REF!"}}]
[null,null,"Training 4: LAM Training  (refresher and for new people)",{"$f":"D128","v":{"$error":"#REF!"}}]
[null,null,"Training 5: LPA (1st and 2nd line drugs) Training  (refresher and for new people)",{"$f":"D157","v":{"$error":"#REF!"}}]
[null,null,{"$f":"C160","v":"Training 6: Culture/DST Training  (refresher and for new people)"},{"$f":"D186","v":{"$error":"#REF!"}}]
[null,null,{"$f":"C191","v":"International Training <specify>"},{"$f":"D200","v":0}]
[null,null,"Total HR Costs",{"$f":"SUM(D206:D213)","v":{"$error":"#REF!"}}]

{"sheet":"QA","index":25,"n_rows":126,"n_cols":4,"rows_kept":126,"cut":false,"hidden":true,"merged":[]}
[]
[null,null,"Quality Assurance: Supervision, rechecking & panel testing"]
[]
[]
[]
[null,null,"Supervision visits for AFB laboratories periphery"]
[null,null,"Number of supervision visits in one year per facility",0]
[null,null,"Number of facilities to be supervised",0]
[null,null,"Length of supervision visit (average number of days)",0]
[null,null,"Number of national expert/facilitators (per supervision visit)",0]
[null,null,"Number of support staff (e.g., driver) (per supervision visit)",0]
[null,null,"Cost for fuel and lubricants (typical per visit)",0]
[null,null,"Costs for Supervision"]
[null,null,"Total Cost for fuel and lubricants",{"$f":"D8*D7*D12","v":0}]
[null,null,"Total per diem national expert/facilitators",{"$f":"D7*D8*D9*D10*#REF!","v":{"$error":"#REF!"}}]
[null,null,"Total per diem for support staff ",{"$f":"D7*D8*D9*D11*#REF!","v":{"$error":"#REF!"}}]
[null,null,"Total cost of hotel charges for staff",{"$f":"(D11+D10)*D8*D7*D9*#REF!","v":{"$error":"#REF!"}}]
[null,null,"Other costs <specify> ",0]
[null,null,"Total costs for Supervision",{"$f":"SUM(D14:D18)","v":{"$error":"#REF!"}}]
[]
[null,null,"Supervision visits for AFB laboratories regional"]
[null,null,"Number of supervision visits in one year per facility",0]
[null,null,"Number of facilities to be supervised",0]
[null,null,"Length of supervision visit (average number of days)",0]
[null,null,"Number of national expert/facilitators (per supervision visit)",0]
[null,null,"Number of support staff (e.g., driver) (per supervision visit)",0]
[null,null,"Cost for fuel and lubricants (typical per visit)",0]
[null,null,"Costs for Supervision"]
[null,null,"Total Cost for fuel and lubricants",{"$f":"D23*D22*D27","v":0}]
[null,null,"Total per diem national expert/facilitators",{"$f":"D23*D22*D24*#REF!","v":{"$error":"#REF!"}}]
[null,null,"Total per diem for support staff ",{"$f":"D22*D23*D26*D24*#REF!","v":{"$error":"#REF!"}}]
[null,null,"Total cost of hotel charges for staff",{"$f":"(D26+D25)*D23*D22*D24*#REF!","v":{"$error":"#REF!"}}]
[null,null,"Other costs <specify> ",0]
[null,null,"Total costs for Supervision",{"$f":"SUM(D29:D33)","v":{"$error":"#REF!"}}]
[]
[]
[null,null,"Supervision visits for culture/DST laboratories by NRL"]
[null,null,"Number of supervision visits in one year per facility",0]
[null,null,"Number of facilities to be supervised",0]
[null,null,"Length of supervision visit (average number of days)",0]
[null,null,"Number of national expert/facilitators (per supervision visit)",0]
[null,null,"Number of support staff (e.g., driver) (per supervision visit)",0]
[null,null,"Cost for fuel and lubricants (typical per visit)",0]
[]
[null,null,"Costs for Supervision"]
[null,null,"Total Cost for fuel and lubricants",{"$f":"D39*D38*D43","v":0}]
[null,null,"Total per diem national expert/facilitators",{"$f":"D42*D40*D39*D41*#REF!","v":{"$error":"#REF!"}}]
[null,null,"Total per diem for support staff ",{"$f":"D43*D40*D39*D41*#REF!","v":{"$error":"#REF!"}}]
[null,null,"Total cost of hotel charges for staff",{"$f":"(D43+D42)*D40*D39*D41*#REF!","v":{"$error":"#REF!"}}]
[null,null,"Other costs <specify> ",0]
[null,null,"Total costs for supervision by NRL",{"$f":"SUM(D46:D50)","v":{"$error":"#REF!"}}]
[]
[]
[null,null,"Supervision visits for NRL(s) by SRL"]
[null,null,"Number of supervision visits in one year per facility",0]
[null,null,"Number of facilities to be supervised",0]
[null,null,"Length of supervision visit (average number of days of travel)",0]
[null,null,"Number of days for visit and preparation",0]
[null,null,"Number of national expert/facilitators (per supervision visit)",0]
[null,null,"Number of international experts/facilitators (per supervision visit)",0]
[]
[null,null,"Costs for national experts/facilitators"]
[null,null,"Total per diem ",0]
[null,null,"Total cost of transportation",0]
[null,null,"Total cost of hotel ",0]
[null,null,"Costs for international experts/facilitators"]
[null,null,"Total per diems",{"$f":"D60*D57*D56*D55*#REF!","v":{"$error":"#REF!"}}]
[null,null,"Total daily fee ",{"$f":"D60*D58*D56*D55*#REF!","v":{"$error":"#REF!"}}]
[null,null,"Total travel costs ",{"$f":"D60*D55*#REF!","v":{"$error":"#REF!"}}]
[null,null,"Total transportation costs",{"$f":"D60*D55*D56*#REF!","v":{"$error":"#REF!"}}]
[null,null,"Additional costs"]
[null,null,"Other costs: Visa",0]
[null,null,"Total costs for supervision by SRL",{"$f":"SUM(D63:D70)","v":{"$error":"#REF!"}}]
[]
[]
[null,null,"Re-checking samples (NRL --> SRL)"]
[null,null,"Costs of sending slides",0]
[null,null,"Cost of sending samples of sputum",0]
[null,null,"Cost of sending samples of culture",0]
[null,null,"Cost of sending isolates from NRL to SRL (shipment costs)",0]
[null,null,"Transport containers/triple packaging",0]
[null,null,"Other costs <specify> ",0]
[null,null,"Total costs for rechecking",{"$f":"SUM(D77:D82)","v":0}]
[]
[]
[null,null,"Panel testing for GX test (NRL --> GX laboratories)"]
[null,null,"Costs of sending PT panel",0]
[null,null,"Cost of sending samples of sputum",0]
[null,null,"Cost of sending samples of culture",0]
[null,null,"Cost of sending isolates from NRL to SRL (shipment costs)",0]
[null,null,"Transport containers/triple packaging",0]
[null,null,"Other costs <specify> ",0]
[null,null,"Total costs for rechecking",{"$f":"SUM(D87:D92)","v":0}]
[]
[]
[null,null,"Panel testing culture/DST laboratories (NRL --> Regional culture/DST laboratory)"]
[null,null,"Costs of sending PT panel",0]
[null,null,"Cost of sending samples of sputum",0]
[null,null,"Cost of sending samples of culture",0]
[null,null,"Cost of sending isolates from NRL to SRL (shipment costs)",0]
[null,null,"Transport containers/triple packaging",0]
[null,null,"Other costs <specify> ",0]
[null,null,"Total costs for rechecking",0]
[]
[null,null,"Panel testing (SRL --> NRL)"]
[null,null,"Costs of sending PT panel",0]
[null,null,"Cost of sending samples of sputum",0]
[null,null,"Cost of sending samples of culture",0]
[null,null,"Cost of sending isolates from SRL to NRL (shipment costs)",0]
[null,null,"Transport containers/triple packaging",0]
[null,null,"Other costs <specify> ",0]
[null,null,"Total costs for panel testing",{"$f":"SUM(D106:D111)","v":0}]
[]
[]
[]
[]
[null,null,"Resumen","Costs (USD)"]
[null,null,{"$f":"C6","v":"Supervision visits for AFB laboratories periphery"},{"$f":"D19","v":{"$error":"#REF!"}}]
[null,null,{"$f":"C21","v":"Supervision visits for AFB laboratories regional"},{"$f":"D34","v":{"$error":"#REF!"}}]
[null,null,{"$f":"C37","v":"Supervision visits for culture/DST laboratories by NRL"},{"$f":"D51","v":{"$error":"#REF!"}}]
[null,null,{"$f":"C54","v":"Supervision visits for NRL(s) by SRL"},{"$f":"D73","v":{"$error":"#REF!"}}]
[null,null,{"$f":"C76","v":"Re-checking samples (NRL --> SRL)"},{"$f":"D83","v":0}]
[null,null,{"$f":"C86","v":"Panel testing for GX test (NRL --> GX laboratories)"},{"$f":"D93","v":0}]
[null,null,{"$f":"C96","v":"Panel testing culture/DST laboratories (NRL --> Regional culture/DST laboratory)"},{"$f":"D103","v":0}]
[null,null,{"$f":"C105","v":"Panel testing (SRL --> NRL)"},{"$f":"D112","v":0}]
[null,null,"Total Quality Assurance Costs",{"$f":"SUM(D118:D125)","v":{"$error":"#REF!"}}]

{"sheet":"OPERATION","index":26,"n_rows":63,"n_cols":4,"rows_kept":63,"cut":false,"hidden":true,"merged":[]}
[]
[null,"OPERATIONAL COSTS"]
[]
[null,"Sample transportation for diagnosis"]
[]
[null,"Sample transportation for diagnosis (lower level lab --> superior lab)"]
[null,"Cost of sending samples of sputum to lower level lab --> superior lab",0]
[null,"Cost of sending isolates from NRL to SRL for testing (shipment)",0]
[null,"Transport containers/triple packaging",0]
[null,"Other costs <specify> ",0]
[null,"Total costs for sample transportation",{"$f":"SUM(C7:C10)","v":0}]
[]
[]
[null,"Shipment costs & import tax for international orders"]
[]
[null,"Import tax",0]
[null,"Custom clearance per order",0]
[null,"Number of orders / year",0]
[]
[null,"Import tax for international orders","Value of order (USD)","Import tax amount (USD)"]
[null,"Microscopy (LED, ZN)",0,{"$f":"C21*C16","v":0}]
[null,"TB-LAMP",0,{"$f":"C22*C16","v":0}]
[null,"LAM",0,{"$f":"C23*C16","v":0}]
[null,"Procesamiento",0,{"$f":"C24*C16","v":0}]
[null,"Solid culture and DST",0,{"$f":"C25*C16","v":0}]
[null,"LPA FL&SL",0,{"$f":"C26*C16","v":0}]
[null,"Xpert MTB/RIF",0,{"$f":"C27*C16","v":0}]
[null,"ID ",0,{"$f":"C28*C16","v":0}]
[null,"Liquid culture and DST",0,{"$f":"C29*C16","v":0}]
[null,"Biosaftey and cleaning",0,{"$f":"C30*C16","v":0}]
[null,"Maintenance (calibrators and spare parts)",0,{"$f":"C31*C16","v":0}]
[null,"Total (import tax)",null,{"$f":"SUM(D24:D31)","v":0}]
[null,"Total (custom clearance)",{"$f":"C17*C18","v":0}]
[]
[null,"Shipment costs for international orders","Costs USD"]
[null,"Microscopy (LED, ZN)",0]
[null,"TB-LAMP",0]
[null,"LAM",0]
[null,"Procesamiento",0]
[null,"Solid culture and DST",0]
[null,"LPA FL&SL",0]
[null,"Xpert MTB/RIF",0]
[null,"ID ",0]
[null,"Liquid culture and DST",0]
[null,"Biosaftey and cleaning",0]
[null,"Maintenance (calibrators and spare parts)",0]
[null,"Total ",{"$f":"SUM(C36:C46)","v":0}]
[]
[]
[null,"Other costs per 12 months"]
[]
[null,"Other operational costs","Costs USD"]
[null,"Fuel generator",0]
[null,"Electricity",0]
[null,"Request forms",0]
[null,"Registers",0]
[null,"Telephone & Internet",0]
[null,"Water",0]
[null,"Other",0]
[null,"Total ",{"$f":"SUM(C53:C59)","v":0}]
[]
[]
[null,"Sub total",{"$f":"C11+D32+C33+C47+C60","v":0}]

{"sheet":"RESUMEN DE PRESUPUESTO","index":27,"n_rows":59,"n_cols":8,"rows_kept":59,"cut":false,"hidden":false,"merged":[[0,0,1,6],[28,10,28,14]]}
["Resumen del presupuesto anual"]
[]
[]
[null,null,"Área",null,null,null,null,"Fuente del presupuesto"]
[null,null,"Reactivos y material fungible","Costo (US$)",null,"Número total de pruebas","Costo por prueba","anterior"]
[null,null,"Microscopía de Ziehl-Neelsen si el material fungible se compra en kit",{"$f":"IF('Introducción e instrucciones'!B10=\"Yes\",'Microscopía ZN'!C26,0)","v":0},null,{"$f":"'Microscopía ZN'!C8","v":0},{"$f":"IF(F6=0,0,D6/F6)","v":0},"CUIDADO DE LA TUBERCULOSIS I"]
[null,null,"Microscopía de Ziehl-Neelsen si el material fungible se compra por separado",{"$f":"IF('Introducción e instrucciones'!B10=\"Yes\",'Microscopía ZN'!C56,0)","v":0},null,{"$f":"'Microscopía ZN'!C8","v":0},{"$f":"IF(F7=0,0,D7/F7)","v":0}]
[null,null,"Microscopía LED si el material fungible se compra en kit",{"$f":"IF('Introducción e instrucciones'!B11=\"Yes\",'Baciloscopia LED'!C26,0)","v":0},null,{"$f":"'Baciloscopia LED'!C8","v":0},0]
[null,null,"Microscopía LED si el material fungible se compra por separado",{"$f":"IF('Introducción e instrucciones'!B11=\"Yes\",'Baciloscopia LED'!C55,0)","v":0},null,{"$f":"'Baciloscopia LED'!C8","v":0},0]
[null,null,"TB-LAMP",{"$f":"IF('Introducción e instrucciones'!B8=\"Yes\",'TB-LAMP'!C28,0)","v":0},null,{"$f":"'TB-LAMP'!C19","v":0},0]
[null,null,"Prueba Truenat",{"$f":"IF('Introducción e instrucciones'!B7=\"Yes\",Truenat!C31,0)","v":0},null,{"$f":"Truenat!C21","v":0},0]
[null,null,"Prueba Xpert MTB/RIF Ultra",{"$f":"IF('Introducción e instrucciones'!B9=\"Yes\",'Xpert MTB RIF Ultra'!C30,0)","v":0},null,{"$f":"'Xpert MTB RIF Ultra'!C21","v":0},0]
[null,null,"LAM",{"$f":"IF('Introducción e instrucciones'!B6=\"Yes\",LAM!C26,0)","v":0},null,{"$f":"LAM!C15","v":0},0]
[null,null,"LPA para medicamentos de primera línea",{"$f":"IF('Introducción e instrucciones'!B13=\"Yes\",'LPA 1.ª línea'!E56,0)","v":0},null,{"$f":"'LPA 1.ª línea'!C27","v":0},0]
[null,null,"LPA para medicamentos de segunda línea",{"$f":"IF('Introducción e instrucciones'!B14=\"Yes\",'LPA 2.ª línea'!E55,0)","v":0},null,{"$f":"'LPA 2.ª línea'!C27","v":0},0]
[null,null,"Prueba MAX MDR-TB",{"$f":"IF('Introducción e instrucciones'!B15=\"Yes\",'Prueba MAX MDR-TB'!E42,0)","v":0},null,{"$f":"'FluoroType MTBDR Ver 2.0'!total_test","v":0},0]
[null,null,"FluoroType MTBDR Ver 2.0",{"$f":"IF('Introducción e instrucciones'!B16=\"Yes\",'FluoroType MTBDR Ver 2.0'!E44,0)","v":0},null,{"$f":"'FluoroType MTBDR Ver 2.0'!total_test","v":0},0]
[null,null,"MTB y MTB-RIF/INH de Cobas®",{"$f":"IF('Introducción e instrucciones'!B17=\"Yes\",'MTB y MTB-RIF-INH de Cobas®'!E47,0)","v":0},null,{"$f":"'MTB y MTB-RIF-INH de Cobas®'!total_test","v":0},0]
[null,null,"RT MTB y MTB RIF/INH de Abbott",{"$f":"IF('Introducción e instrucciones'!B18=\"Yes\",'RT MTB y MTB RIF-INH de Abbott'!E47,0)","v":0},null,{"$f":"'RT MTB y MTB RIF-INH de Abbott'!total_test","v":0},0]
[null,null,"Procesamiento de muestras",{"$f":"IF('Introducción e instrucciones'!B19=\"Yes\",'Proces+cultivo (sól. y líq.)'!F83,0)","v":0},null,{"$f":"IF('Proces+cultivo (sól. y líq.)'!C23=0,'Proces+cultivo (sól. y líq.)'!F21,'Proces+cultivo (sól. y líq.)'!C23)","v":0},0]
[null,null,"Cultivo en medios sólidos",{"$f":"IF('Introducción e instrucciones'!B19=\"Yes\",'Proces+cultivo (sól. y líq.)'!F81,0)","v":0},null,{"$f":"'Proces+cultivo (sól. y líq.)'!C23","v":0},0]
[null,null,"Cultivo en medios líquidos",{"$f":"IF('Introducción e instrucciones'!B19=\"Yes\",'Proces+cultivo (sól. y líq.)'!F21,0)","v":0},null,{"$f":"'Proces+cultivo (sól. y líq.)'!F82","v":0},0,"FIND"]
[null,null,"Identificación de cultivos",{"$f":"IF('Introducción e instrucciones'!B20=\"Yes\",SUM('Identificación rápida'!E37,'Identificación rápida'!E24),0)","v":0},null,{"$f":"'Identificación rápida'!D13","v":0},0]
[null,null,"Prueba de LJ de la resistencia a medicamentos de primera línea",{"$f":"IF('Introducción e instrucciones'!B21=\"Yes\",'Prueba de resistencia LJ - 1.ª'!C34,0)","v":0},null,{"$f":"'Prueba de resistencia LJ - 1.ª'!C18","v":0},0,"FIND"]
[null,null,"Prueba de LJ de la resistencia a medicamentos de segunda línea",{"$f":"IF('Introducción e instrucciones'!B22=\"Yes\",'Prueba de resistencia LJ - 2.ª'!C34,0)","v":0},null,{"$f":"'Prueba de resistencia LJ - 2.ª'!C15","v":0},0,"FIND"]
[null,null,"Prueba de la resistencia a medicamentos de primera línea con tubo indicador del crecimiento de micobacterias (MGIT)",{"$f":"IF('Introducción e instrucciones'!B23=\"Yes\",'Prueba de resistencia MGIT - 1ª'!D44,0)","v":0},null,{"$f":"'Prueba de resistencia MGIT - 1ª'!C15","v":0},0,"CUIDADO DE LA TUBERCULOSIS I"]
[null,null,"Prueba de la resistencia a la pirazinamida con tubo indicador del crecimiento de micobacterias (MGIT)",{"$f":"IF('Introducción e instrucciones'!B23=\"Yes\",'Prueba de resistencia MGIT - 1ª'!D45,0)","v":0},null,{"$f":"'Prueba de resistencia MGIT - 1ª'!C21","v":0},0]
[null,null,"Prueba de la resistencia a medicamentos de segunda línea en medios líquidos con MGIT y reactivos liofilizados listos para usar",{"$f":"IF('Introducción e instrucciones'!B24=\"Yes\",'Prueba de resistencia MGIT - 2ª'!G30,0)","v":0},null,{"$f":"'Prueba de resistencia MGIT - 2ª'!C17","v":0},0]
[null,null,"Prueba de la resistencia a medicamentos de segunda línea en medios líquidos con MGIT y reactivos puros en polvo",{"$f":"IF('Introducción e instrucciones'!B24=\"Yes\",'Prueba de resistencia MGIT - 2ª'!G49,0)","v":0},null,{"$f":"'Prueba de resistencia MGIT - 2ª'!C17","v":0},0]
[null,null,"Subtotal",{"$f":"SUM(D6:D28)","v":0}]
[]
[null,null,"Limpieza y bioseguridad","Costo (US$)",null,null,null,"anterior"]
[null,null,"Bioseguridad",{"$f":"IF('Introducción e instrucciones'!B25=\"Yes\",'Limpieza y bioseguridad'!G44,0)","v":0},null,null,null,"FIND"]
[null,null,"Limpieza",{"$f":"IF('Introducción e instrucciones'!B25=\"Yes\",'Limpieza y bioseguridad'!G43,0)","v":0},null,null,null,"FIND"]
[null,null,"Subtotal",{"$f":"D33+D34","v":0}]
[]
[null,null,"Mantenimiento y reparaciones","Costo (US$)",null,null,null,"anterior"]
[null,null,{"$f":"'Mantenimiento y reparaciones'!B6","v":"Cámaras de bioseguridad"},{"$f":"IF('Introducción e instrucciones'!B26=\"Yes\",'Mantenimiento y reparaciones'!E10,0)","v":0}]
[null,null,{"$f":"'Mantenimiento y reparaciones'!B11","v":"TwinCubator (LPA)"},{"$f":"IF('Introducción e instrucciones'!B26=\"Yes\",'Mantenimiento y reparaciones'!E15,0)","v":0}]
[null,null,{"$f":"'Mantenimiento y reparaciones'!B17","v":"Termociclador"},{"$f":"IF('Introducción e instrucciones'!B26=\"Yes\",'Mantenimiento y reparaciones'!E21,0)","v":0}]
[null,null,{"$f":"'Mantenimiento y reparaciones'!B23","v":"Flujo laminar (estación de trabajo de PCR)"},{"$f":"IF('Introducción e instrucciones'!B26=\"Yes\",'Mantenimiento y reparaciones'!E27,0)","v":0}]
[null,null,{"$f":"'Mantenimiento y reparaciones'!B29","v":"Autoclave"},{"$f":"IF('Introducción e instrucciones'!B26=\"Yes\",'Mantenimiento y reparaciones'!E33,0)","v":0}]
[null,null,{"$f":"'Mantenimiento y reparaciones'!B35","v":"Sistema BD BACTEC™ MGIT™ 960"},{"$f":"IF('Introducción e instrucciones'!B26=\"Yes\",'Mantenimiento y reparaciones'!E40,0)","v":0}]
[null,null,"Prueba MAX MDR-TB",{"$f":"IF('Introducción e instrucciones'!B26=\"Yes\",'Mantenimiento y reparaciones'!E46,0)","v":0}]
[null,null,"FluoroType MTBDR Ver 2.0",{"$f":"IF('Introducción e instrucciones'!B26=\"Yes\",'Mantenimiento y reparaciones'!E51,0)","v":0}]
[null,null,"MTB y MTB-RIF/INH de Cobas®",{"$f":"IF('Introducción e instrucciones'!B26=\"Yes\",'Mantenimiento y reparaciones'!E56,0)","v":0}]
[null,null,"RT MTB y MTB RIF/INH de Abbott",{"$f":"IF('Introducción e instrucciones'!B26=\"Yes\",'Mantenimiento y reparaciones'!E61,0)","v":0}]
[null,null,{"$f":"'Mantenimiento y reparaciones'!B63","v":"GeneXpert de 4 módulos"},{"$f":"IF('Introducción e instrucciones'!B26=\"Yes\",'Mantenimiento y reparaciones'!E73,0)","v":0}]
[null,null,{"$f":"'Mantenimiento y reparaciones'!B75","v":"GeneXpert de 2 módulos"},{"$f":"IF('Introducción e instrucciones'!B26=\"Yes\",'Mantenimiento y reparaciones'!E85,0)","v":0}]
[null,null,{"$f":"'Mantenimiento y reparaciones'!B87","v":"GeneXpert de 16 módulos"},{"$f":"IF('Introducción e instrucciones'!B26=\"Yes\",'Mantenimiento y reparaciones'!E97,0)","v":0}]
[null,null,"Prueba Truenat",{"$f":"IF('Introducción e instrucciones'!B26=\"Yes\",'Mantenimiento y reparaciones'!E105,0)","v":0}]
[null,null,{"$f":"'Mantenimiento y reparaciones'!B107","v":"TB-LAMP"},{"$f":"IF('Introducción e instrucciones'!B26=\"Yes\",'Mantenimiento y reparaciones'!E110,0)","v":0}]
[null,null,{"$f":"'Mantenimiento y reparaciones'!B113","v":"LIS"},{"$f":"IF('Introducción e instrucciones'!B26=\"Yes\",'Mantenimiento y reparaciones'!E116,0)","v":0}]
[null,null,{"$f":"'Mantenimiento y reparaciones'!B119","v":"Sistema de ventilación del laboratorio de cultivos y pruebas de sensibilidad a fármacos"},{"$f":"IF('Introducción e instrucciones'!B26=\"Yes\",'Mantenimiento y reparaciones'!E123,0)","v":0}]
[null,null,"Reparaciones y otros equipos",{"$f":"IF('Introducción e instrucciones'!B26=\"Yes\",'Mantenimiento y reparaciones'!F194,0)","v":0},null,null,null,"PFH"]
[null,null,"Subtotal",{"$f":"SUM(D38:D55)","v":0}]
[]
[]
[null,null,"Presupuesto anual total",{"$f":"SUM(D30,D35,D56)","v":0}]

{"sheet":"RESUMEN DE ARTÍCULOS","index":28,"n_rows":284,"n_cols":6,"rows_kept":284,"cut":false,"hidden":false,"merged":[[161,1,161,3],[0,0,1,4],[5,1,5,3],[21,1,21,3],[36,1,36,3],[40,1,40,3],[43,1,43,3],[47,1,47,3],[51,1,51,3],[76,1,76,3],[100,1,100,3],[112,1,112,3],[125,1,125,3],[143,1,143,3],[268,1,268,3],[192,1,192,3],[211,1,211,3],[242,1,242,3],[170,1,170,3],[183,1,183,3],[254,1,254,3]]}
["Resumen de los artículos de laboratorio"]
[]
[]
[null,null,"Área",null,null,"Fuente del presupuesto"]
[null,"Código GDF","Reactivos y material fungible","Cantidad",null,"anterior"]
[null,"Microscopía ZN",null,null,null,"CUIDADO DE LA TUBERCULOSIS I"]
[null,{"$f":"'Microscopía ZN'!A22","v":106522},"Kit para microscopía ZN",{"$f":"'Microscopía ZN'!F22","v":0}]
[null,{"$f":"'Microscopía ZN'!A32","v":106601},{"$f":"'Microscopía ZN'!B32","v":"Fucsina básica, 100 g (frasco)"},{"$f":"'Microscopía ZN'!D32","v":0}]
[null,{"$f":"'Microscopía ZN'!A33","v":106602},{"$f":"'Microscopía ZN'!B33","v":"Azul de metileno, 10 x 10 g (frascos)"},{"$f":"'Microscopía ZN'!D33","v":0}]
[null,{"$f":"'Microscopía ZN'!A34","v":106599},{"$f":"'Microscopía ZN'!B34","v":"Cristales de fenol, incoloros, 500 g"},{"$f":"'Microscopía ZN'!D34","v":0}]
[null,{"$f":"'Microscopía ZN'!A35","v":106597},{"$f":"'Microscopía ZN'!B35","v":"Etanol, 99%, 1 litro (botella), para soluciones para tinción"},{"$f":"'Microscopía ZN'!D35","v":0}]
[null,{"$f":"'Microscopía ZN'!A36","v":106597},{"$f":"'Microscopía ZN'!B36","v":"Etanol, 99%, 1 litro (botella), para decolorante"},{"$f":"'Microscopía ZN'!D36","v":0}]
[null,{"$f":"'Microscopía ZN'!A37","v":106603},{"$f":"'Microscopía ZN'!B37","v":"Ácido clorhídrico, 1 litro (botella)"},{"$f":"'Microscopía ZN'!D37","v":0}]
[null,{"$f":"'Microscopía ZN'!A43","v":106655},{"$f":"'Microscopía ZN'!B43","v":"Aplicadores de madera, 150 mm"},{"$f":"'Microscopía ZN'!D43","v":0}]
[null,{"$f":"'Microscopía ZN'!A44","v":106609},{"$f":"'Microscopía ZN'!B44","v":"Portaobjetos para microscopio, vidrio sódico-cálcico, paquete de 1000"},{"$f":"'Microscopía ZN'!D44","v":0}]
[null,{"$f":"'Microscopía ZN'!A45","v":106627},{"$f":"'Microscopía ZN'!B45","v":"Aceite de inmersión, 100 ml"},{"$f":"'Microscopía ZN'!D45","v":0}]
[null,{"$f":"'Microscopía ZN'!A46","v":106656},{"$f":"'Microscopía ZN'!B46","v":"Papel para limpiar lentes"},{"$f":"'Microscopía ZN'!D46","v":0}]
[null,{"$f":"'Microscopía ZN'!A47","v":106354},{"$f":"'Microscopía ZN'!B47","v":"Papel de filtro redondo, 150 mm"},{"$f":"'Microscopía ZN'!D47","v":0}]
[null,{"$f":"'Microscopía ZN'!A48","v":106597},{"$f":"'Microscopía ZN'!B48","v":"Etanol, 99%, 1 litro (botella), para quemadores de alcohol"},{"$f":"'Microscopía ZN'!D48","v":0}]
[null,{"$f":"'Microscopía ZN'!A49","v":106355},{"$f":"'Microscopía ZN'!B49","v":"Rotulador (resistente al agua)"},{"$f":"'Microscopía ZN'!D49","v":0}]
[null,{"$f":"'Microscopía ZN'!A50","v":106525},{"$f":"'Microscopía ZN'!B50","v":"Recipientes de esputo, paquete de 1000"},{"$f":"'Microscopía ZN'!D50","v":0}]
[null,"Microscopía LED si el material fungible se compra en kit"]
[null,{"$f":"'Baciloscopia LED'!A22","v":106523},"Kit para microscopía LED",{"$f":"'Baciloscopia LED'!F22","v":0}]
[null,{"$f":"'Baciloscopia LED'!A32","v":106602},{"$f":"'Baciloscopia LED'!B32","v":"Azul de metileno, 10 x 10 g (frascos)"},{"$f":"'Baciloscopia LED'!D32","v":0}]
[null,{"$f":"'Baciloscopia LED'!A33","v":106599},{"$f":"'Baciloscopia LED'!B33","v":"Cristales de fenol, incoloros, 500 g"},{"$f":"'Baciloscopia LED'!D33","v":0}]
[null,{"$f":"'Baciloscopia LED'!A34","v":106276},{"$f":"'Baciloscopia LED'!B34","v":"Auramine O, polvo, 25 g"},{"$f":"'Baciloscopia LED'!D34","v":0}]
[null,{"$f":"'Baciloscopia LED'!A35","v":106597},{"$f":"'Baciloscopia LED'!B35","v":"Etanol, 99%, 1 litro (botella), para decolorante"},{"$f":"'Baciloscopia LED'!D35","v":0}]
[null,{"$f":"'Baciloscopia LED'!A36","v":106603},{"$f":"'Baciloscopia LED'!B36","v":"Ácido clorhídrico, 1 litro (botella)"},{"$f":"'Baciloscopia LED'!D36","v":0}]
[null,{"$f":"'Baciloscopia LED'!A42","v":106655},{"$f":"'Baciloscopia LED'!B42","v":"Aplicadores de madera, 150 mm"},{"$f":"'Baciloscopia LED'!D42","v":0}]
[null,{"$f":"'Baciloscopia LED'!A43","v":106609},{"$f":"'Baciloscopia LED'!B43","v":"Portaobjetos para microscopio, vidrio sódico-cálcico, paquete de 1000"},{"$f":"'Baciloscopia LED'!D43","v":0}]
[null,{"$f":"'Baciloscopia LED'!A44","v":106627},{"$f":"'Baciloscopia LED'!B44","v":"Aceite de inmersión, 100 ml"},{"$f":"'Baciloscopia LED'!D44","v":0}]
[null,{"$f":"'Baciloscopia LED'!A45","v":106656},{"$f":"'Baciloscopia LED'!B45","v":"Papel para limpiar lentes"},{"$f":"'Baciloscopia LED'!D45","v":0}]
[null,{"$f":"'Baciloscopia LED'!A46","v":106354},{"$f":"'Baciloscopia LED'!B46","v":"Papel de filtro redondo, 150 mm"},{"$f":"'Baciloscopia LED'!D46","v":0}]
[null,{"$f":"'Baciloscopia LED'!A47","v":106597},{"$f":"'Baciloscopia LED'!B47","v":"Etanol, 99%, 1 litro (botella), para quemadores de alcohol"},{"$f":"'Baciloscopia LED'!D47","v":0}]
[null,{"$f":"'Baciloscopia LED'!A48","v":106355},{"$f":"'Baciloscopia LED'!B48","v":"Rotulador (resistente al agua)"},{"$f":"'Baciloscopia LED'!D48","v":0}]
[null,{"$f":"'Baciloscopia LED'!A49","v":106525},{"$f":"'Baciloscopia LED'!B49","v":"Recipientes de esputo, paquete de 1000"},{"$f":"'Baciloscopia LED'!D49","v":0}]
[null,"TB-LAMP"]
[null,{"$f":"'TB-LAMP'!A23","v":106634},{"$f":"'TB-LAMP'!B23","v":"Kits de detección Loopamp MTBC (2 x 48 pruebas)"},{"$f":"'TB-LAMP'!E23","v":0}]
[null,{"$f":"'TB-LAMP'!A24","v":106635},{"$f":"'TB-LAMP'!B24","v":"Kit de extracción de ADN Loopamp PURE (90 pruebas)"},{"$f":"'TB-LAMP'!E24","v":0}]
[null,{"$f":"'TB-LAMP'!A25","v":106643},{"$f":"'TB-LAMP'!B25","v":"Pipette-60 Set para TB-LAMP (4 x 96 pruebas)"},{"$f":"'TB-LAMP'!E25","v":0}]
[null,"Prueba Truenat"]
[null,{"$f":"Truenat!A27","v":106697},{"$f":"Truenat!B27","v":"Truenat MTB Plus"},{"$f":"Truenat!D27","v":0}]
[null,{"$f":"Truenat!A28","v":106700},{"$f":"Truenat!B28","v":"Truenat MTB Rif"},{"$f":"Truenat!D28","v":0}]
[null,"Prueba Xpert MTB/RIF Ultra"]
[null,{"$f":"'Xpert MTB RIF Ultra'!A25","v":"CGXMTB-RIF-50"},{"$f":"'Xpert MTB RIF Ultra'!B25","v":"Cartuchos Xpert MTB/RIF"},{"$f":"'Xpert MTB RIF Ultra'!D25","v":0}]
[null,{"$f":"'Xpert MTB RIF Ultra'!A26","v":106340},{"$f":"'Xpert MTB RIF Ultra'!B26","v":"Tubos de plástico estéril para centrífuga, 50 ml"},{"$f":"'Xpert MTB RIF Ultra'!D26","v":0}]
[null,{"$f":"'Xpert MTB RIF Ultra'!A27","v":106525},{"$f":"'Xpert MTB RIF Ultra'!B27","v":"Recipientes de esputo, paquete de 1000"},{"$f":"'Xpert MTB RIF Ultra'!D27","v":0}]
[null,"LAM"]
[null,{"$f":"LAM!A21","v":106749},{"$f":"LAM!B21","v":"Pruebas de determinación del antígeno LAM"},{"$f":"LAM!E21","v":0}]
[null,{"$f":"LAM!A22","v":106525},{"$f":"LAM!B22","v":"Recipientes de esputo"},{"$f":"LAM!E22","v":0}]
[null,{"$f":"LAM!A23","v":106388},{"$f":"LAM!B23","v":"Puntas de filtro para pipeta estériles, 5-100 μL"},{"$f":"LAM!E23","v":0}]
[null,"LPA para medicamentos de primera línea"]
[null,{"$f":"'LPA 1.ª línea'!B30","v":106682},{"$f":"'LPA 1.ª línea'!C30","v":"Genoscholar NTM+MDRTB II"},{"$f":"'LPA 1.ª línea'!E30","v":0}]
[null,{"$f":"'LPA 1.ª línea'!B31","v":106512},{"$f":"'LPA 1.ª línea'!C31","v":"GenoType MTBDRplus (kit para 96 pruebas), Versión 2.0 (30496A)"},{"$f":"'LPA 1.ª línea'!E31","v":0}]
[null,{"$f":"'LPA 1.ª línea'!B32","v":106477},{"$f":"'LPA 1.ª línea'!C32","v":"GenoLyse (96 pruebas), Versión 1.0 (51610)"},{"$f":"'LPA 1.ª línea'!E32","v":0}]
[null,{"$f":"'LPA 1.ª línea'!B33","v":106254},{"$f":"'LPA 1.ª línea'!C33","v":"Agua de grado molecular, 10 x 1,7 ml"},{"$f":"'LPA 1.ª línea'!E33","v":0}]
[null,{"$f":"'LPA 1.ª línea'!B34","v":106385},{"$f":"'LPA 1.ª línea'!C34","v":"Tubos para PCR, 0,2 ml, con tapa fija, estériles, libres de ADNasa y ARNasa, 1000 por paquete"},{"$f":"'LPA 1.ª línea'!E34","v":0}]
[null,{"$f":"'LPA 1.ª línea'!B35","v":106422},{"$f":"'LPA 1.ª línea'!C35","v":"Tubos para microcentrífuga, 2 ml"},{"$f":"'LPA 1.ª línea'!E35","v":0}]
[null,{"$f":"'LPA 1.ª línea'!B36","v":106421},{"$f":"'LPA 1.ª línea'!C36","v":"Tubos para microcentrífuga, 1,5 ml"},{"$f":"'LPA 1.ª línea'!E36","v":0}]
[null,{"$f":"'LPA 1.ª línea'!B37","v":106383},{"$f":"'LPA 1.ª línea'!C37","v":"Crioviales estériles, 2 ml; se pueden abrir y cerrar con una sola mano"},{"$f":"'LPA 1.ª línea'!E37","v":0}]
[null,{"$f":"'LPA 1.ª línea'!B38","v":106554},{"$f":"'LPA 1.ª línea'!C38","v":"Puntas de filtro estériles, 0,1-10 μl"},{"$f":"'LPA 1.ª línea'!E38","v":0}]
[null,{"$f":"'LPA 1.ª línea'!B39","v":106389},{"$f":"'LPA 1.ª línea'!C39","v":"Puntas de filtro estériles, 20-200 μl"},{"$f":"'LPA 1.ª línea'!E39","v":0}]
[null,{"$f":"'LPA 1.ª línea'!B40","v":106390},{"$f":"'LPA 1.ª línea'!C40","v":"Puntas de filtro estériles, 100-1000 μl"},{"$f":"'LPA 1.ª línea'!E40","v":0}]
[null,{"$f":"'LPA 1.ª línea'!B41","v":106412},{"$f":"'LPA 1.ª línea'!C41","v":"Puntas largas de 1 ml con filtro"},{"$f":"'LPA 1.ª línea'!E41","v":0}]
[null,{"$f":"'LPA 1.ª línea'!B42","v":106398},{"$f":"'LPA 1.ª línea'!C42","v":"Puntas dispensadoras, 12,5 ml"},{"$f":"'LPA 1.ª línea'!E42","v":0}]
[null,{"$f":"'LPA 1.ª línea'!B43","v":106434},{"$f":"'LPA 1.ª línea'!C43","v":"Pipetas Pasteur no estériles, 3 ml"},{"$f":"'LPA 1.ª línea'!E43","v":0}]
[null,{"$f":"'LPA 1.ª línea'!B44","v":106556},{"$f":"'LPA 1.ª línea'!C44","v":"Pinzas de plástico estéril para laboratorio"},{"$f":"'LPA 1.ª línea'!E44","v":0}]
[null,{"$f":"'LPA 1.ª línea'!B45","v":106355},{"$f":"'LPA 1.ª línea'!C45","v":"Rotulador indeleble"},{"$f":"'LPA 1.ª línea'!E45","v":0}]
[null,{"$f":"'LPA 1.ª línea'!B46","v":106384},{"$f":"'LPA 1.ª línea'!C46","v":"Tubos de plástico estéril para centrífuga, 15 ml"},{"$f":"'LPA 1.ª línea'!E46","v":0}]
[null,{"$f":"'LPA 1.ª línea'!B47","v":106340},{"$f":"'LPA 1.ª línea'!C47","v":"Tubos de plástico estéril para centrífuga, 50 ml"},{"$f":"'LPA 1.ª línea'!E47","v":0}]
[null,{"$f":"'LPA 1.ª línea'!B48","v":106444},{"$f":"'LPA 1.ª línea'!C48","v":"Bolsas de plástico de 30 litros"},{"$f":"'LPA 1.ª línea'!E48","v":0}]
[null,{"$f":"'LPA 1.ª línea'!B49","v":106415},{"$f":"'LPA 1.ª línea'!C49","v":"Papel de filtro cuadrado, 580 mm"},{"$f":"'LPA 1.ª línea'!E49","v":0}]
[null,{"$f":"'LPA 1.ª línea'!B50","v":106439},{"$f":"'LPA 1.ª línea'!C50","v":"Juego de reactivos GT-Blot 48"},{"$f":"'LPA 1.ª línea'!E50","v":0}]
[null,{"$f":"'LPA 1.ª línea'!B51","v":106438},{"$f":"'LPA 1.ª línea'!C51","v":"Bandeja GT-Blot 48 para 96 tiras (negra)"},{"$f":"'LPA 1.ª línea'!E51","v":0}]
[null,{"$f":"'LPA 1.ª línea'!B52","v":106755},{"$f":"'LPA 1.ª línea'!C52","v":"Toallas de papel"},{"$f":"'LPA 1.ª línea'!E52","v":53}]
[null,{"$f":"'LPA 1.ª línea'!B53","v":106333},{"$f":"'LPA 1.ª línea'!C53","v":"Etanol o isopropanol, 5 litros"},{"$f":"'LPA 1.ª línea'!E53","v":0}]
[null,"LPA para medicamentos de segunda línea"]
[null,{"$f":"'LPA 2.ª línea'!B30","v":106513},{"$f":"'LPA 2.ª línea'!C30","v":"GenoType MTBDRsl (kit para 96 pruebas), Versión 2.0 (30496A)"},{"$f":"'LPA 2.ª línea'!kit_ordered","v":0}]
[null,{"$f":"'LPA 2.ª línea'!B31","v":106477},{"$f":"'LPA 2.ª línea'!C31","v":"GenoLyse (96 pruebas), Versión 1.0 (51610)"},{"$f":"'LPA 2.ª línea'!kit_ordered","v":0}]
[null,{"$f":"'LPA 2.ª línea'!B32","v":106254},{"$f":"'LPA 2.ª línea'!C32","v":"Agua de grado molecular, 10 x 1,7 ml"},{"$f":"'LPA 2.ª línea'!kit_ordered","v":0}]
[null,{"$f":"'LPA 2.ª línea'!B33","v":106385},{"$f":"'LPA 2.ª línea'!C33","v":"Tubos para PCR, 0,2 ml, con tapa fija, estériles, libres de ADNasa y ARNasa, 1000 por paquete"},{"$f":"'LPA 2.ª línea'!kit_ordered","v":0}]
[null,{"$f":"'LPA 2.ª línea'!B34","v":106422},{"$f":"'LPA 2.ª línea'!C34","v":"Tubos para microcentrífuga, 2 ml"},{"$f":"'LPA 2.ª línea'!kit_ordered","v":0}]
[null,{"$f":"'LPA 2.ª línea'!B35","v":106421},{"$f":"'LPA 2.ª línea'!C35","v":"Tubos para microcentrífuga, 1,5 ml"},{"$f":"'LPA 2.ª línea'!kit_ordered","v":0}]
[null,{"$f":"'LPA 2.ª línea'!B36","v":106383},{"$f":"'LPA 2.ª línea'!C36","v":"Crioviales estériles, 2 ml; se pueden abrir y cerrar con una sola mano"},{"$f":"'LPA 2.ª línea'!kit_ordered","v":0}]
[null,{"$f":"'LPA 2.ª línea'!B37","v":106554},{"$f":"'LPA 2.ª línea'!C37","v":"Puntas de filtro estériles, 0,1-10 μl"},{"$f":"'LPA 2.ª línea'!kit_ordered","v":0}]
[null,{"$f":"'LPA 2.ª línea'!B38","v":106389},{"$f":"'LPA 2.ª línea'!C38","v":"Puntas de filtro estériles, 20-200 μl"},{"$f":"'LPA 2.ª línea'!kit_ordered","v":0}]
[null,{"$f":"'LPA 2.ª línea'!B39","v":106390},{"$f":"'LPA 2.ª línea'!C39","v":"Puntas de filtro estériles, 100-1000 μl"},{"$f":"'LPA 2.ª línea'!kit_ordered","v":0}]
[null,{"$f":"'LPA 2.ª línea'!B40","v":106412},{"$f":"'LPA 2.ª línea'!C40","v":"Puntas largas de 1 ml con filtro"},{"$f":"'LPA 2.ª línea'!kit_ordered","v":0}]
[null,{"$f":"'LPA 2.ª línea'!B41","v":106398},{"$f":"'LPA 2.ª línea'!C41","v":"Puntas dispensadoras, 12,5 ml"},{"$f":"'LPA 2.ª línea'!kit_ordered","v":0}]
[null,{"$f":"'LPA 2.ª línea'!B42","v":106434},{"$f":"'LPA 2.ª línea'!C42","v":"Pipetas Pasteur no estériles, 3 ml"},{"$f":"'LPA 2.ª línea'!kit_ordered","v":0}]
[null,{"$f":"'LPA 2.ª línea'!B43","v":106556},{"$f":"'LPA 2.ª línea'!C43","v":"Pinzas de plástico estéril para laboratorio"},{"$f":"'LPA 2.ª línea'!kit_ordered","v":0}]
[null,{"$f":"'LPA 2.ª línea'!B44","v":106355},{"$f":"'LPA 2.ª línea'!C44","v":"Rotulador indeleble"},{"$f":"'LPA 2.ª línea'!kit_ordered","v":0}]
[null,{"$f":"'LPA 2.ª línea'!B45","v":106384},{"$f":"'LPA 2.ª línea'!C45","v":"Tubos de plástico estéril para centrífuga, 15 ml"},{"$f":"'LPA 2.ª línea'!kit_ordered","v":0}]
[null,{"$f":"'LPA 2.ª línea'!B46","v":106340},{"$f":"'LPA 2.ª línea'!C46","v":"Tubos de plástico estéril para centrífuga, 50 ml"},{"$f":"'LPA 2.ª línea'!kit_ordered","v":0}]
[null,{"$f":"'LPA 2.ª línea'!B47","v":106444},{"$f":"'LPA 2.ª línea'!C47","v":"Bolsas de plástico de 30 litros"},{"$f":"'LPA 2.ª línea'!kit_ordered","v":0}]
[null,{"$f":"'LPA 2.ª línea'!B48","v":106415},{"$f":"'LPA 2.ª línea'!C48","v":"Papel de filtro cuadrado, 580 mm"},{"$f":"'LPA 2.ª línea'!kit_ordered","v":0}]
[null,{"$f":"'LPA 2.ª línea'!B49","v":106439},{"$f":"'LPA 2.ª línea'!C49","v":"Juego de reactivos GT-Blot 48"},{"$f":"'LPA 2.ª línea'!kit_ordered","v":0}]
[null,{"$f":"'LPA 2.ª línea'!B50","v":106438},{"$f":"'LPA 2.ª línea'!C50","v":"Bandeja GT-Blot 48 para 96 tiras (negra)"},{"$f":"'LPA 2.ª línea'!kit_ordered","v":0}]
[null,{"$f":"'LPA 2.ª línea'!B51","v":106755},{"$f":"'LPA 2.ª línea'!C51","v":"Toallas de papel"},{"$f":"'LPA 2.ª línea'!kit_ordered","v":0}]
[null,{"$f":"'LPA 2.ª línea'!B52","v":106333},{"$f":"'LPA 2.ª línea'!C52","v":"Etanol o isopropanol, 5 litros"},{"$f":"'LPA 2.ª línea'!kit_ordered","v":0}]
[null,"Prueba MAX MDR-TB"]
[null,{"$f":"'Prueba MAX MDR-TB'!B28","v":0},{"$f":"'Prueba MAX MDR-TB'!C28","v":"Kit BD MAX MDR-TB"},{"$f":"'Prueba MAX MDR-TB'!kit_ordered","v":0}]
[null,{"$f":"'Prueba MAX MDR-TB'!B29","v":0},{"$f":"'Prueba MAX MDR-TB'!C29","v":"Kit BD MAX STR"},{"$f":"'Prueba MAX MDR-TB'!kit_ordered","v":0}]
[null,{"$f":"'Prueba MAX MDR-TB'!B30","v":106384},{"$f":"'Prueba MAX MDR-TB'!C30","v":"Tubos de plástico estéril para centrífuga, 15 ml"},{"$f":"'Prueba MAX MDR-TB'!kit_ordered","v":0}]
[null,{"$f":"'Prueba MAX MDR-TB'!B31","v":106422},{"$f":"'Prueba MAX MDR-TB'!C31","v":"Tubos para microcentrífuga, 2 ml"},{"$f":"'Prueba MAX MDR-TB'!kit_ordered","v":0}]
[null,{"$f":"'Prueba MAX MDR-TB'!B32","v":106554},{"$f":"'Prueba MAX MDR-TB'!C32","v":"Puntas de filtro estériles, 0,1-10 μl"},{"$f":"'Prueba MAX MDR-TB'!kit_ordered","v":0}]
[null,{"$f":"'Prueba MAX MDR-TB'!B33","v":106389},{"$f":"'Prueba MAX MDR-TB'!C33","v":"Puntas de filtro estériles, 20-200 μl"},{"$f":"'Prueba MAX MDR-TB'!kit_ordered","v":0}]
[null,{"$f":"'Prueba MAX MDR-TB'!B34","v":106390},{"$f":"'Prueba MAX MDR-TB'!C34","v":"Puntas de filtro estériles, 100-1000 μl"},{"$f":"'Prueba MAX MDR-TB'!kit_ordered","v":0}]
[null,{"$f":"'Prueba MAX MDR-TB'!B35","v":106444},{"$f":"'Prueba MAX MDR-TB'!C35","v":"Bolsas de plástico de 30 litros"},{"$f":"'Prueba MAX MDR-TB'!kit_ordered","v":0}]
[null,{"$f":"'Prueba MAX MDR-TB'!B36","v":106415},{"$f":"'Prueba MAX MDR-TB'!C36","v":"Papel de filtro cuadrado, 580 mm"},{"$f":"'Prueba MAX MDR-TB'!kit_ordered","v":0}]
[null,{"$f":"'Prueba MAX MDR-TB'!B37","v":106755},{"$f":"'Prueba MAX MDR-TB'!C37","v":"Toallas de papel"},{"$f":"'Prueba MAX MDR-TB'!kit_ordered","v":0}]
[null,{"$f":"'Prueba MAX MDR-TB'!B38","v":106333},{"$f":"'Prueba MAX MDR-TB'!C38","v":"Etanol o isopropanol, 5 litros"},{"$f":"'Prueba MAX MDR-TB'!kit_ordered","v":0}]
[null,"FluoroType MTBDR Ver 2.0"]
[null,{"$f":"'FluoroType MTBDR Ver 2.0'!B30","v":0},{"$f":"'FluoroType MTBDR Ver 2.0'!C30","v":"Prueba FluoroType MTBDR"},{"$f":"'FluoroType MTBDR Ver 2.0'!kit_ordered","v":0}]
[null,{"$f":"'FluoroType MTBDR Ver 2.0'!B31","v":0},{"$f":"'FluoroType MTBDR Ver 2.0'!C31","v":"Kit GXT para la extracción de ADN y ARN"},{"$f":"'FluoroType MTBDR Ver 2.0'!kit_ordered","v":0}]
[null,{"$f":"'FluoroType MTBDR Ver 2.0'!B32","v":0},{"$f":"'FluoroType MTBDR Ver 2.0'!C32","v":"Kit de extracción FluoroLyse"},{"$f":"'FluoroType MTBDR Ver 2.0'!kit_ordered","v":0}]
[null,{"$f":"'FluoroType MTBDR Ver 2.0'!B33","v":106384},{"$f":"'FluoroType MTBDR Ver 2.0'!C33","v":"Tubos de plástico estéril para centrífuga, 15 ml"},{"$f":"'FluoroType MTBDR Ver 2.0'!kit_ordered","v":0}]
[null,{"$f":"'FluoroType MTBDR Ver 2.0'!B34","v":106422},{"$f":"'FluoroType MTBDR Ver 2.0'!C34","v":"Tubos para microcentrífuga, 2 ml"},{"$f":"'FluoroType MTBDR Ver 2.0'!kit_ordered","v":0}]
[null,{"$f":"'FluoroType MTBDR Ver 2.0'!B35","v":106554},{"$f":"'FluoroType MTBDR Ver 2.0'!C35","v":"Puntas de filtro estériles, 0,1-10 μl"},{"$f":"'FluoroType MTBDR Ver 2.0'!kit_ordered","v":0}]
[null,{"$f":"'FluoroType MTBDR Ver 2.0'!B36","v":106389},{"$f":"'FluoroType MTBDR Ver 2.0'!C36","v":"Puntas de filtro estériles, 20-200 μl"},{"$f":"'FluoroType MTBDR Ver 2.0'!kit_ordered","v":0}]
[null,{"$f":"'FluoroType MTBDR Ver 2.0'!B37","v":106390},{"$f":"'FluoroType MTBDR Ver 2.0'!C37","v":"Puntas de filtro estériles, 100-1000 μl"},{"$f":"'FluoroType MTBDR Ver 2.0'!kit_ordered","v":0}]
[null,{"$f":"'FluoroType MTBDR Ver 2.0'!B38","v":106444},{"$f":"'FluoroType MTBDR Ver 2.0'!C38","v":"Bolsas de plástico de 30 litros"},{"$f":"'FluoroType MTBDR Ver 2.0'!kit_ordered","v":0}]
[null,{"$f":"'FluoroType MTBDR Ver 2.0'!B39","v":106415},{"$f":"'FluoroType MTBDR Ver 2.0'!C39","v":"Papel de filtro cuadrado, 580 mm"},{"$f":"'FluoroType MTBDR Ver 2.0'!kit_ordered","v":0}]
[null,{"$f":"'FluoroType MTBDR Ver 2.0'!B40","v":106755},{"$f":"'FluoroType MTBDR Ver 2.0'!C40","v":"Toallas de papel"},{"$f":"'FluoroType MTBDR Ver 2.0'!kit_ordered","v":0}]
[null,{"$f":"'FluoroType MTBDR Ver 2.0'!B41","v":106333},{"$f":"'FluoroType MTBDR Ver 2.0'!C41","v":"Etanol o isopropanol, 5 litros"},{"$f":"'FluoroType MTBDR Ver 2.0'!kit_ordered","v":0}]
[null,"MTB y MTB-RIF/INH de Cobas®"]
[null,{"$f":"'MTB y MTB-RIF-INH de Cobas®'!B28","v":0},{"$f":"'MTB y MTB-RIF-INH de Cobas®'!C28","v":"MTB de Cobas®"},{"$f":"'MTB y MTB-RIF-INH de Cobas®'!kit_ordered","v":0}]
[null,{"$f":"'MTB y MTB-RIF-INH de Cobas®'!B29","v":0},{"$f":"'MTB y MTB-RIF-INH de Cobas®'!C29","v":"Kit de controles positivos de MTB de Cobas®"},{"$f":"'MTB y MTB-RIF-INH de Cobas®'!kit_ordered","v":0}]
[null,{"$f":"'MTB y MTB-RIF-INH de Cobas®'!B30","v":0},{"$f":"'MTB y MTB-RIF-INH de Cobas®'!C30","v":"Kit de amortiguador para controles negativos 6800/8800 de Cobas®"},{"$f":"'MTB y MTB-RIF-INH de Cobas®'!kit_ordered","v":0}]
[null,{"$f":"'MTB y MTB-RIF-INH de Cobas®'!B31","v":0},{"$f":"'MTB y MTB-RIF-INH de Cobas®'!C31","v":"Solución de inactivación microbiana de Cobas®"},{"$f":"'MTB y MTB-RIF-INH de Cobas®'!kit_ordered","v":0}]
[null,{"$f":"'MTB y MTB-RIF-INH de Cobas®'!B32","v":0},{"$f":"'MTB y MTB-RIF-INH de Cobas®'!C32","v":"MTB-RIF/INH de Cobas®"},{"$f":"'MTB y MTB-RIF-INH de Cobas®'!kit_ordered","v":0}]
[null,{"$f":"'MTB y MTB-RIF-INH de Cobas®'!B33","v":0},{"$f":"'MTB y MTB-RIF-INH de Cobas®'!C33","v":"Kit de controles positivos de MTB-RIF/INH de Cobas®"},{"$f":"'MTB y MTB-RIF-INH de Cobas®'!kit_ordered","v":0}]
[null,{"$f":"'MTB y MTB-RIF-INH de Cobas®'!B34","v":0},{"$f":"'MTB y MTB-RIF-INH de Cobas®'!C34","v":"Kit de amortiguador para controles negativos 6800/8800 de Cobas®"},{"$f":"'MTB y MTB-RIF-INH de Cobas®'!kit_ordered","v":0}]
[null,{"$f":"'MTB y MTB-RIF-INH de Cobas®'!B35","v":0},{"$f":"'MTB y MTB-RIF-INH de Cobas®'!C35","v":"Solución de inactivación microbiana de Cobas®"},{"$f":"'MTB y MTB-RIF-INH de Cobas®'!kit_ordered","v":0}]
[null,{"$f":"'MTB y MTB-RIF-INH de Cobas®'!B36","v":106384},{"$f":"'MTB y MTB-RIF-INH de Cobas®'!C36","v":"Tubos de plástico estéril para centrífuga, 15 ml"},{"$f":"'MTB y MTB-RIF-INH de Cobas®'!kit_ordered","v":0}]
[null,{"$f":"'MTB y MTB-RIF-INH de Cobas®'!B37","v":106422},{"$f":"'MTB y MTB-RIF-INH de Cobas®'!C37","v":"Tubos para microcentrífuga, 2 ml"},{"$f":"'MTB y MTB-RIF-INH de Cobas®'!kit_ordered","v":0}]
[null,{"$f":"'MTB y MTB-RIF-INH de Cobas®'!B38","v":106554},{"$f":"'MTB y MTB-RIF-INH de Cobas®'!C38","v":"Puntas de filtro estériles, 0,1-10 μl"},{"$f":"'MTB y MTB-RIF-INH de Cobas®'!kit_ordered","v":0}]
[null,{"$f":"'MTB y MTB-RIF-INH de Cobas®'!B39","v":106389},{"$f":"'MTB y MTB-RIF-INH de Cobas®'!C39","v":"Puntas de filtro estériles, 20-200 μl"},{"$f":"'MTB y MTB-RIF-INH de Cobas®'!kit_ordered","v":0}]
[null,{"$f":"'MTB y MTB-RIF-INH de Cobas®'!B40","v":106390},{"$f":"'MTB y MTB-RIF-INH de Cobas®'!C40","v":"Puntas de filtro estériles, 100-1000 μl"},{"$f":"'MTB y MTB-RIF-INH de Cobas®'!kit_ordered","v":0}]
[null,{"$f":"'MTB y MTB-RIF-INH de Cobas®'!B41","v":106444},{"$f":"'MTB y MTB-RIF-INH de Cobas®'!C41","v":"Bolsas de plástico de 30 litros"},{"$f":"'MTB y MTB-RIF-INH de Cobas®'!kit_ordered","v":0}]
[null,{"$f":"'MTB y MTB-RIF-INH de Cobas®'!B42","v":106415},{"$f":"'MTB y MTB-RIF-INH de Cobas®'!C42","v":"Papel de filtro cuadrado, 580 mm"},{"$f":"'MTB y MTB-RIF-INH de Cobas®'!kit_ordered","v":0}]
[null,{"$f":"'MTB y MTB-RIF-INH de Cobas®'!B43","v":106755},{"$f":"'MTB y MTB-RIF-INH de Cobas®'!C43","v":"Toallas de papel"},{"$f":"'MTB y MTB-RIF-INH de Cobas®'!kit_ordered","v":0}]
[null,{"$f":"'MTB y MTB-RIF-INH de Cobas®'!B44","v":106333},{"$f":"'MTB y MTB-RIF-INH de Cobas®'!C44","v":"Etanol o isopropanol, 5 litros"},{"$f":"'MTB y MTB-RIF-INH de Cobas®'!kit_ordered","v":0}]
[null,"RT MTB y MTB RIF/INH de Abbott"]
[null,{"$f":"'RT MTB y MTB RIF-INH de Abbott'!B28","v":0},{"$f":"'RT MTB y MTB RIF-INH de Abbott'!C28","v":"Reactivo de inactivación"},{"$f":"'RT MTB y MTB RIF-INH de Abbott'!E28","v":0}]
[null,{"$f":"'RT MTB y MTB RIF-INH de Abbott'!B29","v":0},{"$f":"'RT MTB y MTB RIF-INH de Abbott'!C29","v":"Kit de ADN del sistema de preparación de muestras de Abbott"},{"$f":"'RT MTB y MTB RIF-INH de Abbott'!E29","v":0}]
[null,{"$f":"'RT MTB y MTB RIF-INH de Abbott'!B30","v":0},{"$f":"'RT MTB y MTB RIF-INH de Abbott'!C30","v":"Kit de reactivos de Abbott para la amplificación de M. tuberculosis en tiempo real"},{"$f":"'RT MTB y MTB RIF-INH de Abbott'!E30","v":0}]
[null,{"$f":"'RT MTB y MTB RIF-INH de Abbott'!B31","v":0},{"$f":"'RT MTB y MTB RIF-INH de Abbott'!C31","v":"Kit de controles de M. tuberculosis en tiempo real de Abbot"},{"$f":"'RT MTB y MTB RIF-INH de Abbott'!E31","v":0}]
[null,{"$f":"'RT MTB y MTB RIF-INH de Abbott'!B32","v":0},{"$f":"'RT MTB y MTB RIF-INH de Abbott'!C32","v":"Kit de reactivos de Abbott para la amplificación en tiempo real de la resistencia de M. tuberculosis a la rifampicina y la isoniazida"},{"$f":"'RT MTB y MTB RIF-INH de Abbott'!E32","v":0}]
[null,{"$f":"'RT MTB y MTB RIF-INH de Abbott'!B33","v":0},{"$f":"'RT MTB y MTB RIF-INH de Abbott'!C33","v":"Kit de controles en tiempo real de Abbot de la resistencia de M. tuberculosis a la rifampicina y la isoniazida"},{"$f":"'RT MTB y MTB RIF-INH de Abbott'!E33","v":0}]
[null,{"$f":"'RT MTB y MTB RIF-INH de Abbott'!B34","v":0},{"$f":"'RT MTB y MTB RIF-INH de Abbott'!C34","v":"Placas de reacción óptica de 96 pocillos de Abbott"},{"$f":"'RT MTB y MTB RIF-INH de Abbott'!E34","v":0}]
[null,{"$f":"'RT MTB y MTB RIF-INH de Abbott'!B35","v":0},{"$f":"'RT MTB y MTB RIF-INH de Abbott'!C35","v":"Placas de 96 pocillos y soporte de placas de Abbott"},{"$f":"'RT MTB y MTB RIF-INH de Abbott'!E35","v":0}]
[null,{"$f":"'RT MTB y MTB RIF-INH de Abbott'!B36","v":106384},{"$f":"'RT MTB y MTB RIF-INH de Abbott'!C36","v":"Tubos de plástico estéril para centrífuga, 15 ml"},{"$f":"'RT MTB y MTB RIF-INH de Abbott'!E36","v":0}]
[null,{"$f":"'RT MTB y MTB RIF-INH de Abbott'!B37","v":106422},{"$f":"'RT MTB y MTB RIF-INH de Abbott'!C37","v":"Tubos para microcentrífuga, 2 ml"},{"$f":"'RT MTB y MTB RIF-INH de Abbott'!E37","v":0}]
[null,{"$f":"'RT MTB y MTB RIF-INH de Abbott'!B38","v":106554},{"$f":"'RT MTB y MTB RIF-INH de Abbott'!C38","v":"Puntas de filtro estériles, 0,1-10 μl"},{"$f":"'RT MTB y MTB RIF-INH de Abbott'!E38","v":0}]
[null,{"$f":"'RT MTB y MTB RIF-INH de Abbott'!B39","v":106389},{"$f":"'RT MTB y MTB RIF-INH de Abbott'!C39","v":"Puntas de filtro estériles, 20-200 μl"},{"$f":"'RT MTB y MTB RIF-INH de Abbott'!E39","v":0}]
[null,{"$f":"'RT MTB y MTB RIF-INH de Abbott'!B40","v":106390},{"$f":"'RT MTB y MTB RIF-INH de Abbott'!C40","v":"Puntas de filtro estériles, 100-1000 μl"},{"$f":"'RT MTB y MTB RIF-INH de Abbott'!E40","v":0}]
[null,{"$f":"'RT MTB y MTB RIF-INH de Abbott'!B41","v":106444},{"$f":"'RT MTB y MTB RIF-INH de Abbott'!C41","v":"Bolsas de plástico de 30 litros"},{"$f":"'RT MTB y MTB RIF-INH de Abbott'!E41","v":0}]
[null,{"$f":"'RT MTB y MTB RIF-INH de Abbott'!B42","v":106415},{"$f":"'RT MTB y MTB RIF-INH de Abbott'!C42","v":"Papel de filtro cuadrado, 580 mm"},{"$f":"'RT MTB y MTB RIF-INH de Abbott'!E42","v":0}]
[null,{"$f":"'RT MTB y MTB RIF-INH de Abbott'!B43","v":106755},{"$f":"'RT MTB y MTB RIF-INH de Abbott'!C43","v":"Toallas de papel"},{"$f":"'RT MTB y MTB RIF-INH de Abbott'!E43","v":53}]
[null,{"$f":"'RT MTB y MTB RIF-INH de Abbott'!B44","v":106333},{"$f":"'RT MTB y MTB RIF-INH de Abbott'!C44","v":"Etanol o isopropanol, 5 litros"},{"$f":"'RT MTB y MTB RIF-INH de Abbott'!E44","v":0}]
[null,"Cultivo en medios sólidos"]
[null,{"$f":"'Proces+cultivo (sól. y líq.)'!C36","v":106259},{"$f":"'Proces+cultivo (sól. y líq.)'!D36","v":"Medio de LJ para TB, 500 g"},{"$f":"'Proces+cultivo (sól. y líq.)'!E36","v":1}]
[null,{"$f":"'Proces+cultivo (sól. y líq.)'!C37","v":106268},{"$f":"'Proces+cultivo (sól. y líq.)'!D37","v":"Glicerol 99,5, 1 litro"},{"$f":"'Proces+cultivo (sól. y líq.)'!E37","v":1}]
[null,{"$f":"'Proces+cultivo (sól. y líq.)'!C39","v":106263},{"$f":"'Proces+cultivo (sól. y líq.)'!D39","v":"Fosfato de dihidrógeno potásico, peso medio: 136,09, 1 kg"},{"$f":"'Proces+cultivo (sól. y líq.)'!E39","v":1}]
[null,{"$f":"'Proces+cultivo (sól. y líq.)'!C40","v":106264},{"$f":"'Proces+cultivo (sól. y líq.)'!D40","v":"Sulfato de magnesio heptahidratado • 7H2O, peso medio: 246,48. 500 g"},{"$f":"'Proces+cultivo (sól. y líq.)'!E40","v":0.5}]
[null,{"$f":"'Proces+cultivo (sól. y líq.)'!C41","v":106265},{"$f":"'Proces+cultivo (sól. y líq.)'!D41","v":"Monihidrato de L-asparagina • H2O, peso medio 150,13, 250 g"},{"$f":"'Proces+cultivo (sól. y líq.)'!E41","v":0.1}]
[null,{"$f":"'Proces+cultivo (sól. y líq.)'!C42","v":106266},{"$f":"'Proces+cultivo (sól. y líq.)'!D42","v":"Tricitrato de magnesio nonahidratado • 9 H2O, 500 g"},{"$f":"'Proces+cultivo (sól. y líq.)'!E42","v":0.1}]
[null,{"$f":"'Proces+cultivo (sól. y líq.)'!C43","v":106267},{"$f":"'Proces+cultivo (sól. y líq.)'!D43","v":"Oxalato verde de malaquita, 100 g"},{"$f":"'Proces+cultivo (sól. y líq.)'!E43","v":0.1}]
[null,{"$f":"'Proces+cultivo (sól. y líq.)'!C44","v":106268},{"$f":"'Proces+cultivo (sól. y líq.)'!D44","v":"Glicerol 99,5, 1 litro"},{"$f":"'Proces+cultivo (sól. y líq.)'!E44","v":1}]
[null,"Cultivo en medios líquidos"]
[null,{"$f":"'Proces+cultivo (sól. y líq.)'!C49","v":106026},{"$f":"'Proces+cultivo (sól. y líq.)'!D49","v":"Tubos BBL MGIT para usar en Bactec MGIT 960 (7ml), 100 tubos por paquete"},{"$f":"'Proces+cultivo (sól. y líq.)'!F49","v":0}]
[null,{"$f":"'Proces+cultivo (sól. y líq.)'!C50","v":106027},{"$f":"'Proces+cultivo (sól. y líq.)'!D50","v":"Kit de suplementos para BACTEC MGIT 960 (100 pruebas, PANTA y OADC combinadas)"},{"$f":"'Proces+cultivo (sól. y líq.)'!F50","v":0}]
[null,{"$f":"'Proces+cultivo (sól. y líq.)'!C51","v":106098},{"$f":"'Proces+cultivo (sól. y líq.)'!D51","v":"Tubos de cultivo de vidrio sódico-cálcido, 12 ml, tapones de rosca"},{"$f":"'Proces+cultivo (sól. y líq.)'!F51","v":0}]
[null,{"$f":"'Proces+cultivo (sól. y líq.)'!C52","v":106340},{"$f":"'Proces+cultivo (sól. y líq.)'!D52","v":"Tubos de plástico estéril para centrífuga, 50 ml"},{"$f":"'Proces+cultivo (sól. y líq.)'!F52","v":0}]
[null,{"$f":"'Proces+cultivo (sól. y líq.)'!C53","v":106394},{"$f":"'Proces+cultivo (sól. y líq.)'!D53","v":"Pipetas Pasteur de plástico desechables, estériles, envasadas individualmente"},{"$f":"'Proces+cultivo (sól. y líq.)'!F53","v":0}]
[null,{"$f":"'Proces+cultivo (sól. y líq.)'!C54","v":106714},{"$f":"'Proces+cultivo (sól. y líq.)'!D54","v":"Bucles desechables, 10 μL"},{"$f":"'Proces+cultivo (sól. y líq.)'!F54","v":0}]
[null,{"$f":"'Proces+cultivo (sól. y líq.)'!C55","v":106344},{"$f":"'Proces+cultivo (sól. y líq.)'!D55","v":"Crioviales estériles, 2 ml"},{"$f":"'Proces+cultivo (sól. y líq.)'!F55","v":0}]
[null,{"$f":"'Proces+cultivo (sól. y líq.)'!C56","v":106052},{"$f":"'Proces+cultivo (sól. y líq.)'!D56","v":"Caja de cartón para crioviales estériles, 2 ml"},{"$f":"'Proces+cultivo (sól. y líq.)'!F56","v":0}]
[null,{"$f":"'Proces+cultivo (sól. y líq.)'!C57","v":106823},{"$f":"'Proces+cultivo (sól. y líq.)'!D57","v":"Placas de Petri de plástico"},{"$f":"'Proces+cultivo (sól. y líq.)'!F57","v":0}]
[null,{"$f":"'Proces+cultivo (sól. y líq.)'!C58","v":"106390/106398"},{"$f":"'Proces+cultivo (sól. y líq.)'!D58","v":"Puntas estériles, libres de ADNasa y ARNasa, 100-1000 μl"},{"$f":"'Proces+cultivo (sól. y líq.)'!F58","v":0}]
[null,{"$f":"'Proces+cultivo (sól. y líq.)'!C59","v":106407},{"$f":"'Proces+cultivo (sól. y líq.)'!D59","v":"Agar de infusión de cerebro y corazón"},{"$f":"'Proces+cultivo (sól. y líq.)'!F59","v":0}]
[null,{"$f":"'Proces+cultivo (sól. y líq.)'!C60","v":106362},{"$f":"'Proces+cultivo (sól. y líq.)'!D60","v":"Lámina de plástico"},{"$f":"'Proces+cultivo (sól. y líq.)'!F60","v":0}]
[null,"Procesamiento de muestras"]
[null,{"$f":"'Proces+cultivo (sól. y líq.)'!C65","v":106278},{"$f":"'Proces+cultivo (sól. y líq.)'!D65","v":"Fosfato de hidrógeno disódico anhidro, peso medio 141,96, 1 kg"},{"$f":"'Proces+cultivo (sól. y líq.)'!F65","v":0}]
[null,{"$f":"'Proces+cultivo (sól. y líq.)'!C66","v":106263},{"$f":"'Proces+cultivo (sól. y líq.)'!D66","v":"Fosfato de dihidrógeno potásico, peso medio: 136,09, 1 kg"},{"$f":"'Proces+cultivo (sól. y líq.)'!F66","v":0}]
[null,{"$f":"'Proces+cultivo (sól. y líq.)'!C68","v":106281},{"$f":"'Proces+cultivo (sól. y líq.)'!D68","v":"Hidróxido de sodio, peso medio: 40,00, pureza ≥ 98%, gránulos, 1 kg"},{"$f":"'Proces+cultivo (sól. y líq.)'!F68","v":0}]
[null,{"$f":"'Proces+cultivo (sól. y líq.)'!C70","v":106283},{"$f":"'Proces+cultivo (sól. y líq.)'!D70","v":"N-acetil-L-cisteína, peso medio: 163,19, pureza ≥ 99%, 100 g"},{"$f":"'Proces+cultivo (sól. y líq.)'!F70","v":0}]
[null,{"$f":"'Proces+cultivo (sól. y líq.)'!C71","v":106284},{"$f":"'Proces+cultivo (sól. y líq.)'!D71","v":"Citrato trisódico dihidratado · 2H2O, peso medio: 294,10, 1 kg"},{"$f":"'Proces+cultivo (sól. y líq.)'!F71","v":0}]
[null,{"$f":"'Proces+cultivo (sól. y líq.)'!C72","v":106281},{"$f":"'Proces+cultivo (sól. y líq.)'!D72","v":"Hidróxido de sodio, peso medio: 40,00, pureza ≥ 98%, gránulos, 1 kg"},{"$f":"'Proces+cultivo (sól. y líq.)'!F72","v":0}]
[null,{"$f":"'Proces+cultivo (sól. y líq.)'!C74","v":106340},{"$f":"'Proces+cultivo (sól. y líq.)'!D74","v":"Tubos de plástico estéril para centrífuga, 50 ml"},{"$f":"'Proces+cultivo (sól. y líq.)'!F74","v":0}]
[null,{"$f":"'Proces+cultivo (sól. y líq.)'!C75","v":106434},{"$f":"'Proces+cultivo (sól. y líq.)'!D75","v":"Pipetas Pasteur desechables, graduadas, no estériles, 155 mm"},{"$f":"'Proces+cultivo (sól. y líq.)'!F75","v":0}]
[null,"Prueba de LJ de sensibilidad a los fármacos"]
[null,{"$f":"'Prueba de resistencia LJ - 1.ª'!A23","v":106268},{"$f":"'Prueba de resistencia LJ - 1.ª'!B23","v":"Glicerol 99,5"},{"$f":"'Prueba de resistencia LJ - 1.ª'!F23","v":0}]
[null,{"$f":"'Prueba de resistencia LJ - 1.ª'!A24","v":106259},{"$f":"'Prueba de resistencia LJ - 1.ª'!B24","v":"Medio de LJ para TB, 500 g"},{"$f":"'Prueba de resistencia LJ - 1.ª'!F24","v":0}]
[null,{"$f":"'Prueba de resistencia LJ - 1.ª'!A25","v":106308},{"$f":"'Prueba de resistencia LJ - 1.ª'!B25","v":"Isoniazida (INH), para uso en laboratorio"},{"$f":"'Prueba de resistencia LJ - 1.ª'!F25","v":0}]
[null,{"$f":"'Prueba de resistencia LJ - 1.ª'!A26","v":106309},{"$f":"'Prueba de resistencia LJ - 1.ª'!B26","v":"Rifampicina (RMP), para uso en laboratorio"},{"$f":"'Prueba de resistencia LJ - 1.ª'!F26","v":0}]
[null,{"$f":"'Prueba de resistencia LJ - 1.ª'!A27","v":106311},{"$f":"'Prueba de resistencia LJ - 1.ª'!B27","v":"Dihidroestreptomicina (DHSM), para uso en laboratorio"},{"$f":"'Prueba de resistencia LJ - 1.ª'!F27","v":0}]
[null,{"$f":"'Prueba de resistencia LJ - 1.ª'!A28","v":106310},{"$f":"'Prueba de resistencia LJ - 1.ª'!B28","v":"Etambutol, para uso en laboratorio"},{"$f":"'Prueba de resistencia LJ - 1.ª'!F28","v":0}]
[null,{"$f":"'Prueba de resistencia LJ - 1.ª'!A29","v":106394},{"$f":"'Prueba de resistencia LJ - 1.ª'!B29","v":"Pipetas Pasteur de plástico desechables, estériles, envasadas individualmente"},{"$f":"'Prueba de resistencia LJ - 1.ª'!F29","v":0}]
[null,{"$f":"'Prueba de resistencia LJ - 1.ª'!A30","v":106344},{"$f":"'Prueba de resistencia LJ - 1.ª'!B30","v":"Crioviales estériles, 2 ml"},{"$f":"'Prueba de resistencia LJ - 1.ª'!F30","v":0}]
[null,{"$f":"'Prueba de resistencia LJ - 2.ª'!A21","v":106268},{"$f":"'Prueba de resistencia LJ - 2.ª'!B21","v":"Glicerol 99,5"},{"$f":"'Prueba de resistencia LJ - 2.ª'!F21","v":0}]
[null,{"$f":"'Prueba de resistencia LJ - 2.ª'!A22","v":106259},{"$f":"'Prueba de resistencia LJ - 2.ª'!B22","v":"Medio de LJ para TB, 500 g"},{"$f":"'Prueba de resistencia LJ - 2.ª'!F22","v":0},null,"FIND"]
[null,{"$f":"'Prueba de resistencia LJ - 2.ª'!A23","v":106560},{"$f":"'Prueba de resistencia LJ - 2.ª'!B23","v":"Levofloxacina (LFX), para uso en laboratorio"},{"$f":"'Prueba de resistencia LJ - 2.ª'!F23","v":0}]
[null,{"$f":"'Prueba de resistencia LJ - 2.ª'!A24","v":106316},{"$f":"'Prueba de resistencia LJ - 2.ª'!B24","v":"Etionamida (ETH), para uso en laboratorio"},{"$f":"'Prueba de resistencia LJ - 2.ª'!F24","v":0}]
[null,{"$f":"'Prueba de resistencia LJ - 2.ª'!A25","v":106317},{"$f":"'Prueba de resistencia LJ - 2.ª'!B25","v":"Kanamicina (KAN), para uso en laboratorio"},{"$f":"'Prueba de resistencia LJ - 2.ª'!F25","v":0}]
[null,{"$f":"'Prueba de resistencia LJ - 2.ª'!A26","v":106318},{"$f":"'Prueba de resistencia LJ - 2.ª'!B26","v":"Amikacina (AMI), para uso en laboratorio"},{"$f":"'Prueba de resistencia LJ - 2.ª'!F26","v":0}]
[null,{"$f":"'Prueba de resistencia LJ - 2.ª'!A27","v":106319},{"$f":"'Prueba de resistencia LJ - 2.ª'!B27","v":"Capreomicina (CM), para uso en laboratorio"},{"$f":"'Prueba de resistencia LJ - 2.ª'!F27","v":0}]
[null,{"$f":"'Prueba de resistencia LJ - 2.ª'!A28","v":106396},{"$f":"'Prueba de resistencia LJ - 2.ª'!B28","v":"Puntas dispensadoras, 5 ml"},{"$f":"'Prueba de resistencia LJ - 2.ª'!F28","v":0}]
[null,{"$f":"'Prueba de resistencia LJ - 2.ª'!A29","v":106394},{"$f":"'Prueba de resistencia LJ - 2.ª'!B29","v":"Pipetas Pasteur de plástico desechables, estériles, envasadas individualmente"},{"$f":"'Prueba de resistencia LJ - 2.ª'!F29","v":0}]
[null,{"$f":"'Prueba de resistencia LJ - 2.ª'!A30","v":106344},{"$f":"'Prueba de resistencia LJ - 2.ª'!B30","v":"Crioviales estériles, 2 ml"},{"$f":"'Prueba de resistencia LJ - 2.ª'!F30","v":0}]
[null,"Prueba de sensibilidad a los fármacos en medios líquidos"]
[null,{"$f":"'Prueba de resistencia MGIT - 1ª'!B26","v":106028},{"$f":"'Prueba de resistencia MGIT - 1ª'!C26","v":"Kit BACTEC™ MGIT™ 960 SIRE. Un kit es suficiente para 40 pruebas."},{"$f":"'Prueba de resistencia MGIT - 1ª'!E26","v":0}]
[null,{"$f":"'Prueba de resistencia MGIT - 1ª'!B27","v":106026},{"$f":"'Prueba de resistencia MGIT - 1ª'!C27","v":"Tubos BBL MGIT para usar en Bactec MGIT 960 (7ml), 100 tubos por paquete"},{"$f":"'Prueba de resistencia MGIT - 1ª'!E27","v":0}]
[null,{"$f":"'Prueba de resistencia MGIT - 1ª'!B28","v":106389},{"$f":"'Prueba de resistencia MGIT - 1ª'!C28","v":"Puntas de filtro estériles, 20-200 μl"},{"$f":"'Prueba de resistencia MGIT - 1ª'!E28","v":0}]
[null,{"$f":"'Prueba de resistencia MGIT - 1ª'!B29","v":106390},{"$f":"'Prueba de resistencia MGIT - 1ª'!C29","v":"Puntas de filtro estériles, 100-1000 μl"},{"$f":"'Prueba de resistencia MGIT - 1ª'!E29","v":0}]
[null,{"$f":"'Prueba de resistencia MGIT - 1ª'!B30","v":106181},{"$f":"'Prueba de resistencia MGIT - 1ª'!C30","v":"Puntas estériles para dispensador, 10 ml"},{"$f":"'Prueba de resistencia MGIT - 1ª'!E30","v":0}]
[null,{"$f":"'Prueba de resistencia MGIT - 1ª'!B34","v":106033},{"$f":"'Prueba de resistencia MGIT - 1ª'!C34","v":"Kit BACTEC™ MGIT™ PZA"},{"$f":"'Prueba de resistencia MGIT - 1ª'!E34","v":0}]
[null,{"$f":"'Prueba de resistencia MGIT - 1ª'!B35","v":106036},{"$f":"'Prueba de resistencia MGIT - 1ª'!C35","v":"Tubos para BACTEC™ MGIT™ PZA, 25"},{"$f":"'Prueba de resistencia MGIT - 1ª'!E35","v":0}]
[null,{"$f":"'Prueba de resistencia MGIT - 1ª'!B36","v":106389},{"$f":"'Prueba de resistencia MGIT - 1ª'!C36","v":"Puntas de filtro para pipeta estériles, 1-200 μL"},{"$f":"'Prueba de resistencia MGIT - 1ª'!E36","v":0}]
[null,{"$f":"'Prueba de resistencia MGIT - 1ª'!B37","v":106390},{"$f":"'Prueba de resistencia MGIT - 1ª'!C37","v":"Puntas de filtro estériles, 100-1000 μl"},{"$f":"'Prueba de resistencia MGIT - 1ª'!E37","v":0}]
[null,{"$f":"'Prueba de resistencia MGIT - 2ª'!A23","v":106585},{"$f":"'Prueba de resistencia MGIT - 2ª'!B23","v":"Moxifloxacina, medicamento liofilizado para uso en laboratorio, paquete de 6 viales"},{"$f":"'Prueba de resistencia MGIT - 2ª'!F23","v":0}]
[null,{"$f":"'Prueba de resistencia MGIT - 2ª'!A24","v":106586},{"$f":"'Prueba de resistencia MGIT - 2ª'!B24","v":"Amikacina, medicamento liofilizado para uso en laboratorio, paquete de 6 viales"},{"$f":"'Prueba de resistencia MGIT - 2ª'!F24","v":0}]
[null,{"$f":"'Prueba de resistencia MGIT - 2ª'!A25","v":106584},{"$f":"'Prueba de resistencia MGIT - 2ª'!B25","v":"Kanamicina, medicamento liofilizado para uso en laboratorio, paquete de 6 viales"},{"$f":"'Prueba de resistencia MGIT - 2ª'!F25","v":0}]
[null,{"$f":"'Prueba de resistencia MGIT - 2ª'!A26","v":106587},{"$f":"'Prueba de resistencia MGIT - 2ª'!B26","v":"Capreomicina, medicamento liofilizado para uso en laboratorio, paquete de 6 viales"},{"$f":"'Prueba de resistencia MGIT - 2ª'!F26","v":0}]
[null,{"$f":"'Prueba de resistencia MGIT - 2ª'!A27","v":106582},{"$f":"'Prueba de resistencia MGIT - 2ª'!B27","v":"Suplemento enriquecedor de albúmina oleica dextrosa catalasa BD BBL Middlebrook OADC, 20 ml por tubo, tubo tamaño ''A'', suplemento enriquecedor BD BBL™ Middlebrook OADC, 20 ml por tubo, tubo tamaño ''A'' (10 muestras)"},{"$f":"'Prueba de resistencia MGIT - 2ª'!F27","v":0}]
[null,{"$f":"'Prueba de resistencia MGIT - 2ª'!A28","v":106026},{"$f":"'Prueba de resistencia MGIT - 2ª'!B28","v":"Tubos BBL MGIT para usar en Bactec MGIT 960 (7ml), 100 tubos por paquete"},{"$f":"'Prueba de resistencia MGIT - 2ª'!F28","v":0}]
[null,{"$f":"'Prueba de resistencia MGIT - 2ª'!A29","v":106412},{"$f":"'Prueba de resistencia MGIT - 2ª'!B29","v":"Puntas largas de 1 ml con filtro"},{"$f":"'Prueba de resistencia MGIT - 2ª'!F29","v":0}]
[null,{"$f":"'Prueba de resistencia MGIT - 2ª'!A35","v":106315},{"$f":"'Prueba de resistencia MGIT - 2ª'!B35","v":"Protionamida (PTH), para uso en laboratorio"},{"$f":"'Prueba de resistencia MGIT - 2ª'!F35","v":0}]
[null,{"$f":"'Prueba de resistencia MGIT - 2ª'!A36","v":106319},{"$f":"'Prueba de resistencia MGIT - 2ª'!B36","v":"Capreomicina (CM), para uso en laboratorio"},{"$f":"'Prueba de resistencia MGIT - 2ª'!F36","v":0}]
[null,{"$f":"'Prueba de resistencia MGIT - 2ª'!A37","v":106560},{"$f":"'Prueba de resistencia MGIT - 2ª'!B37","v":"Levofloxacina (LFX), para uso en laboratorio"},{"$f":"'Prueba de resistencia MGIT - 2ª'!F37","v":0}]
[null,{"$f":"'Prueba de resistencia MGIT - 2ª'!A38","v":106653},{"$f":"'Prueba de resistencia MGIT - 2ª'!B38","v":"Linezolida, para uso en laboratorio"},{"$f":"'Prueba de resistencia MGIT - 2ª'!F38","v":0}]
[null,{"$f":"'Prueba de resistencia MGIT - 2ª'!A39","v":106654},{"$f":"'Prueba de resistencia MGIT - 2ª'!B39","v":"Clofazimina, para uso en laboratorio"},{"$f":"'Prueba de resistencia MGIT - 2ª'!F39","v":0}]
[null,{"$f":"'Prueba de resistencia MGIT - 2ª'!A40","v":0},{"$f":"'Prueba de resistencia MGIT - 2ª'!B40","v":"Bedaquilina, para uso en laboratorio"},{"$f":"'Prueba de resistencia MGIT - 2ª'!F40","v":0}]
[null,{"$f":"'Prueba de resistencia MGIT - 2ª'!A41","v":0},{"$f":"'Prueba de resistencia MGIT - 2ª'!B41","v":"Delamanida, para uso en laboratorio"},{"$f":"'Prueba de resistencia MGIT - 2ª'!F41","v":0}]
[null,{"$f":"'Prueba de resistencia MGIT - 2ª'!A42","v":106623},{"$f":"'Prueba de resistencia MGIT - 2ª'!B42","v":"Suplemento enriquecedor BBL MGIT OADC, 6 viales de 15 ml (90 ml)"},{"$f":"'Prueba de resistencia MGIT - 2ª'!F42","v":0}]
[null,{"$f":"'Prueba de resistencia MGIT - 2ª'!A43","v":106026},{"$f":"'Prueba de resistencia MGIT - 2ª'!B43","v":"Tubos BBL MGIT para usar en Bactec MGIT 960 (7ml), 100 tubos por paquete"},{"$f":"'Prueba de resistencia MGIT - 2ª'!F43","v":0}]
[null,{"$f":"'Prueba de resistencia MGIT - 2ª'!A44","v":106209},{"$f":"'Prueba de resistencia MGIT - 2ª'!B44","v":"Pipeta serológica, 5 ml"},{"$f":"'Prueba de resistencia MGIT - 2ª'!F44","v":0}]
[null,{"$f":"'Prueba de resistencia MGIT - 2ª'!A45","v":106550},{"$f":"'Prueba de resistencia MGIT - 2ª'!B45","v":"Pipeta serológica, 10 ml"},{"$f":"'Prueba de resistencia MGIT - 2ª'!F45","v":0}]
[null,{"$f":"'Prueba de resistencia MGIT - 2ª'!A46","v":106344},{"$f":"'Prueba de resistencia MGIT - 2ª'!B46","v":"Crioviales estériles, 2 ml"},{"$f":"'Prueba de resistencia MGIT - 2ª'!F46","v":0}]
[null,{"$f":"'Prueba de resistencia MGIT - 2ª'!A47","v":106388},{"$f":"'Prueba de resistencia MGIT - 2ª'!B47","v":"Puntas de filtro para pipeta estériles, 5-100 μL"},{"$f":"'Prueba de resistencia MGIT - 2ª'!F47","v":0}]
[null,{"$f":"'Prueba de resistencia MGIT - 2ª'!A48","v":106352},{"$f":"'Prueba de resistencia MGIT - 2ª'!B48","v":"Jeringas desechables estériles"},{"$f":"'Prueba de resistencia MGIT - 2ª'!F48","v":0}]
[null,"Identificación de cultivos"]
[null,{"$f":"'Identificación rápida'!B18","v":106414},{"$f":"'Identificación rápida'!C18","v":"Prueba rápida SD Bioline TB Ag MPT64 para la detección del antígeno MPT 64"},{"$f":"'Identificación rápida'!E18","v":0}]
[null,{"$f":"'Identificación rápida'!B19","v":106394},{"$f":"'Identificación rápida'!C19","v":"Pipetas Pasteur de plástico desechables, estériles, envasadas individualmente"},{"$f":"'Identificación rápida'!E19","v":0}]
[null,{"$f":"'Identificación rápida'!B20","v":106714},{"$f":"'Identificación rápida'!C20","v":"Bucles desechables, 10 μL"},{"$f":"'Identificación rápida'!E20","v":0}]
[null,{"$f":"'Identificación rápida'!B21","v":106344},{"$f":"'Identificación rápida'!C21","v":"Crioviales estériles, 2 ml"},{"$f":"'Identificación rápida'!E21","v":0}]
[null,{"$f":"'Identificación rápida'!B30","v":106611},{"$f":"'Identificación rápida'!C30","v":"Prueba rápida Capilia TB-Neo para la detección del antígeno MPT 64"},{"$f":"'Identificación rápida'!E22","v":0}]
[null,{"$f":"'Identificación rápida'!B31","v":106612},{"$f":"'Identificación rápida'!C31","v":"Amortiguador de extracción Capilia TB-Neo (1 x 20 ml)"},{"$f":"'Identificación rápida'!E30","v":0}]
[null,{"$f":"'Identificación rápida'!B32","v":106394},{"$f":"'Identificación rápida'!C32","v":"Pipetas Pasteur estériles, 3 ml"},{"$f":"'Identificación rápida'!E31","v":0}]
[null,{"$f":"'Identificación rápida'!B33","v":106714},{"$f":"'Identificación rápida'!C33","v":"Bucles desechables, 10 μL"},{"$f":"'Identificación rápida'!E32","v":0}]
[null,{"$f":"'Identificación rápida'!B34","v":106344},{"$f":"'Identificación rápida'!C34","v":"Crioviales estériles, 2 ml"},{"$f":"'Identificación rápida'!E33","v":0}]
[]
[null,"Código GDF","Bioseguridad y limpieza","Cantidad",null,"anterior"]
[null,"Bioseguridad",null,null,null,"FIND"]
[null,{"$f":"'Limpieza y bioseguridad'!B27","v":106727},{"$f":"'Limpieza y bioseguridad'!D27","v":"Gorros"},{"$f":"'Limpieza y bioseguridad'!F27","v":0}]
[null,{"$f":"'Limpieza y bioseguridad'!B28","v":106726},{"$f":"'Limpieza y bioseguridad'!D28","v":"Cubiertas para zapatos"},{"$f":"'Limpieza y bioseguridad'!F28","v":0}]
[null,{"$f":"'Limpieza y bioseguridad'!B29","v":106725},{"$f":"'Limpieza y bioseguridad'!D29","v":"Bata de laboratorio, talla grande, desechable, estéril"},{"$f":"'Limpieza y bioseguridad'!F29","v":0}]
[null,{"$f":"'Limpieza y bioseguridad'!B30","v":106724},{"$f":"'Limpieza y bioseguridad'!D30","v":"Bata de laboratorio, talla mediana, desechable, estéril"},{"$f":"'Limpieza y bioseguridad'!F30","v":0}]
[null,{"$f":"'Limpieza y bioseguridad'!B31","v":106723},{"$f":"'Limpieza y bioseguridad'!D31","v":"Bata de laboratorio, talla pequeña, desechable, estéril"},{"$f":"'Limpieza y bioseguridad'!F31","v":0}]
[null,{"$f":"'Limpieza y bioseguridad'!B32","v":106820},{"$f":"'Limpieza y bioseguridad'!D32","v":"Guantes de látex, grandes"},{"$f":"'Limpieza y bioseguridad'!F32","v":0}]
[null,{"$f":"'Limpieza y bioseguridad'!B33","v":106819},{"$f":"'Limpieza y bioseguridad'!D33","v":"Guantes de látex, medianos"},{"$f":"'Limpieza y bioseguridad'!F33","v":0}]
[null,{"$f":"'Limpieza y bioseguridad'!B34","v":106818},{"$f":"'Limpieza y bioseguridad'!D34","v":"Guantes de látex, pequeños"},{"$f":"'Limpieza y bioseguridad'!F34","v":0}]
[null,{"$f":"'Limpieza y bioseguridad'!B35","v":106829},{"$f":"'Limpieza y bioseguridad'!D35","v":"Mascarillas desechables de protección respiratoria FFP2"},{"$f":"'Limpieza y bioseguridad'!F35","v":0}]
[null,{"$f":"'Limpieza y bioseguridad'!B36","v":106502},{"$f":"'Limpieza y bioseguridad'!D36","v":"Bata quirúrgica de algodón, grande"},{"$f":"'Limpieza y bioseguridad'!F36","v":0}]
[null,{"$f":"'Limpieza y bioseguridad'!B37","v":106501},{"$f":"'Limpieza y bioseguridad'!D37","v":"Bata quirúrgica de algodón, mediana"},{"$f":"'Limpieza y bioseguridad'!F37","v":0}]
[null,{"$f":"'Limpieza y bioseguridad'!B38","v":106500},{"$f":"'Limpieza y bioseguridad'!D38","v":"Bata quirúrgica de algodón, pequeñas"},{"$f":"'Limpieza y bioseguridad'!F38","v":0}]
[null,{"$f":"'Limpieza y bioseguridad'!B39","v":106094},{"$f":"'Limpieza y bioseguridad'!D39","v":"Botiquín de primeros auxilios para laboratorios científicos"},{"$f":"'Limpieza y bioseguridad'!F39","v":0}]
[null,"Limpieza",null,null,null,"FIND"]
[null,{"$f":"'Limpieza y bioseguridad'!B10","v":106376},{"$f":"'Limpieza y bioseguridad'!D10","v":"Algodón"},{"$f":"'Limpieza y bioseguridad'!F10","v":0}]
[null,{"$f":"'Limpieza y bioseguridad'!B11","v":106444},{"$f":"'Limpieza y bioseguridad'!D11","v":"Bolsas de plástico para residuos de riesgo biológico, 30 litros"},{"$f":"'Limpieza y bioseguridad'!F11","v":0}]
[null,{"$f":"'Limpieza y bioseguridad'!B12","v":106348},{"$f":"'Limpieza y bioseguridad'!D12","v":"Bolsa de polipropileno transparente para residuos, 420 x 600 mm"},{"$f":"'Limpieza y bioseguridad'!F12","v":0}]
[null,{"$f":"'Limpieza y bioseguridad'!B13","v":106755},{"$f":"'Limpieza y bioseguridad'!D13","v":"Toallas de papel, 200"},{"$f":"'Limpieza y bioseguridad'!F13","v":0}]
[null,{"$f":"'Limpieza y bioseguridad'!B14","v":106359},{"$f":"'Limpieza y bioseguridad'!D14","v":"Cinta indicadora estéril, autoclave"},{"$f":"'Limpieza y bioseguridad'!F14","v":0}]
[null,{"$f":"'Limpieza y bioseguridad'!B15","v":106358},{"$f":"'Limpieza y bioseguridad'!D15","v":"Cinta indicadora estéril, horno de aire caliente"},{"$f":"'Limpieza y bioseguridad'!F15","v":0}]
[null,{"$f":"'Limpieza y bioseguridad'!B16","v":106377},{"$f":"'Limpieza y bioseguridad'!D16","v":"Papel de laboratorio absorbente"},{"$f":"'Limpieza y bioseguridad'!F16","v":0}]
[null,{"$f":"'Limpieza y bioseguridad'!B17","v":106363},{"$f":"'Limpieza y bioseguridad'!D17","v":"Cepillo para tubos"},{"$f":"'Limpieza y bioseguridad'!F17","v":0}]
[null,{"$f":"'Limpieza y bioseguridad'!B18","v":106371},{"$f":"'Limpieza y bioseguridad'!D18","v":"Desinfectante para superficies de cámaras de bioseguridad"},{"$f":"'Limpieza y bioseguridad'!F18","v":0}]
[null,{"$f":"'Limpieza y bioseguridad'!B19","v":106294},{"$f":"'Limpieza y bioseguridad'!D19","v":"Desinfectante para instrumentos de limpieza"},{"$f":"'Limpieza y bioseguridad'!F19","v":0}]
[null,{"$f":"'Limpieza y bioseguridad'!B20","v":106370},{"$f":"'Limpieza y bioseguridad'!D20","v":"Desinfectante para suelos"},{"$f":"'Limpieza y bioseguridad'!F20","v":0}]
[null,{"$f":"'Limpieza y bioseguridad'!B21","v":106374},{"$f":"'Limpieza y bioseguridad'!D21","v":"Desinfectante para manos, 1 litro"},{"$f":"'Limpieza y bioseguridad'!F21","v":0}]
[null,{"$f":"'Limpieza y bioseguridad'!B22","v":106333},{"$f":"'Limpieza y bioseguridad'!D22","v":"Etanol o isopropanol, 5 litros"},{"$f":"'Limpieza y bioseguridad'!F22","v":0}]
[null,{"$f":"'Limpieza y bioseguridad'!B23","v":106331},{"$f":"'Limpieza y bioseguridad'!D23","v":"Fenol, 1 kg"},{"$f":"'Limpieza y bioseguridad'!F23","v":0}]
[null,{"$f":"'Limpieza y bioseguridad'!B24","v":106373},{"$f":"'Limpieza y bioseguridad'!D24","v":"Jabón líquido"},{"$f":"'Limpieza y bioseguridad'!F24","v":0}]

{"sheet":"Contraportada","index":29,"n_rows":0,"n_cols":0,"rows_kept":0,"cut":false,"hidden":false,"merged":[]}

{"sheet":"LPA and Tips","index":30,"n_rows":39,"n_cols":11,"rows_kept":39,"cut":false,"hidden":true,"merged":[[16,10,27,10],[14,2,21,2],[22,2,27,2]]}
[]
[]
[null,null,null,null,"P10","P20","P200","P1000","P1000 Long","Pasteur pipette"]
[null,null,null,"DNA Extraction"]
[null,null,"A1","500μl decontaminated specimen",null,null,null,null,"1 per sample for adding and one per sample for discard supernatent"]
[null,null,"A2","A-LYS - 100μl lysis buffer",null,null,"1 per sample"]
[null,null,"A4","Add A-NB - 100μl neutralisation buffer",null,null,"1 per sample"]
[null,null,"A5","5μl Supernatent for PCR tube","1 per sample"]
[null,null,null,"AMPLIFICATION"]
[null,null,null,"Master mix - Reagent A (AM-A)",null,null,"1 per batch"]
[null,null,null,"Mastemix - Reagent AM-B",null,null,null,"1 per batch"]
[null,null,null,"To aliquote into PCR tubes",null,null,"1 per batch"]
[null,null,"PCR ROOM"," n x 5 μl DNA","1 per sample"]
[null,null,null,"HYBRIDISATION"]
[null,null,"To add","DEN",null,null,"1 per batch"]
[null,null,null,"DNA/amplicon",null,null,"1 per sample"]
[null,null,null,"HYBRIDISATION",null,null,null,null,"1 per sample",null,"Not needed for GT Blot 48 ?"]
[null,null,null,"STR",null,null,null,null,"1 per sample"]
[null,null,null,"RINS",null,null,null,null,"3 per batch"]
[null,null,null,"WATER",null,null,null,null,"3 per batch"]
[null,null,null,"SUB (dilution / Fill)",null,null,"1 per batch",null,"1 per batch"]
[null,null,null,"CONJ (Dilution / Fill)",null,null,"1 per batch",null,"1 per batch"]
[null,null,"to remove","HYBRIDISATION",null,null,null,null,null,"1 per sample"]
[null,null,null,"STR",null,null,null,null,null,"1 per batch"]
[null,null,null,"RINS",null,null,null,null,null,"2 por lote"]
[null,null,null,"WATER",null,null,null,null,null,"1 per batch"]
[null,null,null,"SUB",null,null,null,null,null,"1 per batch"]
[null,null,null,"CONJ",null,null,null,null,null,"1 per batch"]
[]
[null,null,null,"Sample",2,null,3,null,4,1]
[null,null,null,"Batch",null,null,5,1,8,6]
[]
[]
[]
[]
[]
[]
[]
[null,null,null,"Injectible water for LPA DST from specimen coming from liquid culture 0.1 ml / solid culture 0.3 ml"]

{"sheet":"Lab items list","index":31,"n_rows":421,"n_cols":8,"rows_kept":421,"cut":false,"hidden":true,"merged":[[16,6,16,11],[132,6,132,11],[152,6,152,11],[315,1,316,4]]}
["List of laboratories items",null,"Back to Lab"]
[]
["Equipo",null,"Sustancias químicas",null,"Material fungible"]
[null,"Microscopy laboratory","Microscopy laboratory",null,"MIcroscopy laboratory"]
[null,"Culture laboratory","Culture laboratory",null,"Culture laboratory"]
[null,"DST laboratory","DST laboratory",null,"DST laboratory"]
[null,"Molecular tests","Molecular tests",null,"Molecular tests"]
[]
[null,null,"Number ","Costo por unidad (US$)","Possible alternatives"]
[null,"All prices indicated below are \"free on board\" (FOB) i.e. do not include shipping, insurance, import duties, local distributor margin for service and support, installation and maintenance.",null,null,"This column provides alternatives of equipment. If you wish to include them in your cost please copy the cells into the previous columns (B to D), so that the inputs (quantities and prices) are taken into account in the cost of the lab package."]
["EQUIPMENT"]
[]
["Ù Home"]
[]
[]
["Culture laboratory"]
[null,"Indicated quantities are based on experience and estimated for a laboratory performing approximately 12,000 cultures. Quantities should be adjusted according to the actual workload and methods used. "]
[]
[null,"ITEMS (solid media)","Number ","Costo por unidad (US$)","Possible alternatives","Number","Costo por unidad (US$)"]
[null,"Base Support for Laminar Air Flow Cabinet",2,1024.7249999999999]
[null,"BSC, class I or II",2,17761.900000000001]
[null,"UPS for BSC ",2,1639.56]
[null,"Minishaker or Vortex",3,478.20499999999998]
[null,"Optional : overhead stirrer, for at least 10 tubes (50 ml)",2,1639.56]
[null,"Test tube rack 18/8 stainless steel, diameter 16 mm ",5,38.256399999999999]
[null,"Test tube rack 18/8 stainless steel, diameter 35 mm",5,31.424900000000001]
[null,"Safety gas burner with glass chimney, footswitch for temporary ignition ",2,573.846," Electric micro incinerator for loops",1,245.93400000000003]
[null,"Safety gas tubing with safety clamps on both ends, inner diameter 9mm",2,40.989000000000004]
[null,"Inoculation loops, Platinum/Iridium wire, closed, 10 µl",6,122.96700000000001,"Disposable loops,100 x 10 pieces per pack",15,81.978000000000009]
[null,"Loop holder",12,9.5640999999999998]
[null,"Racks for loop holder",4,16.395600000000002]
[null,"Stainless steel bucket with lid, capacity 10L",5,150.29300000000001]
[null,"Discard bottle, stainless steel or thick walled glass with screw cap",5,4.0989000000000004]
[null,"Funnel, stainless steel 18/8,  top diameter 120 mm",3,18.445050000000002]
[null,"Safety box, PP, approx 3 L, for all sharps ",25,4.2355300000000007]
[null,"Laboratory chair, disinfectable, 5 wheels, no arm rests",2,245.93400000000003]
[null,"Incubator",2,9290.84]
[null,"Centrifuge",1,8880.9500000000007]
[null,"Centrifuge rotor",1,1229.67]
[null,"Centrifuge rotor buckets ",4,409.89]
[null,"Tapas herméticas para aerosoles, para cucharones de rotor",4,136.63]
[null,"Reducing adapter for 50 ml centrifuge tubes ",4,109.304]
[null,"Reducing adapter for 15 ml/12 ml centrifuge tubes ",4,109.304]
[null,"Autoclave",2,15029.3]
[null,"Autoclave control unit for fully automated process control",2,3005.86]
[null,"Exhaust air filtration system for autoclave",1,3552.38]
[null,"Autoclave control unit for sterilization of liquids, including temperature probe",1,3361.098]
[null,"Autoclave recooling system to shorten the time of liquid sterilization",1,3415.75]
[null,"Wire baskets or stainless steel buckets for autoclave ",2,245.93400000000003]
[null,"Wire baskets with drip tray for autoclave ",2,478.20499999999998]
[null,"Hot-air oven",1,3825.64]
[null,"Optional Ion exchanger cartridge, flow rate approx. 950 L/h",2,1093.04]
[null,"Conductivity measuring device for laboratory grade water, digital",2,437.21600000000001]
[null,"Ion exchanger resin for laboratory grade water, pack of 5x10 L resin",5,81.978000000000009]
[null,"Water distiller",1,1776.19]
[null,"Balloon high-density poyethylene (HDPE) with discharge cock, 30 liters",1,81.978000000000009]
[null,"Balloon high-density poyethylene (HDPE) with discharge cock, 10 liters",4,54.652000000000001]
[null,"Stop cock, winding for HDPE balloon",10,4.4404750000000002]
[null,"Racks for test tubes, PP, autoclavable,  60 positions",12,10.930400000000001,"Racks for 28 ml universal vials, PP, autoclavable, 48 positions",150,10.930400000000001]
[null,"Alarm clock / digital timer, 4 digits",1,27.326000000000001]
[null,"Safety-Pipetting Ball, standard",10,3.4157500000000001]
[null,"Automated pipetting aid, battery capacity for 8 h work, 200 g weight",2,478.20499999999998,"Set of mechanical pipetting aids: up to 0.2 ml; up to 2 ml and up to 10 ml",2,68.314999999999998]
[null,"Pipette washer  ",1,170.78749999999999]
[null,"Transport boxes for specimens meeting WHO requirements of P650 package",10,20.494500000000002]
[null,"Electronic maxima-minima-thermometers, two channels, thin cable with sensor, battery, measuring range -50°C/+60°C",10,27.326000000000001]
[null,"Electronic maxima-minima-thermometers, two channels, battery, measuring range -10°C/+50°C ",10,27.326000000000001]
[null,"Dispenser for 1000 ml bottle for liquid soap, for wall mounting, 1 per sink",2,68.314999999999998]
[null,"Dispenser for hand towels, for wall mounting, 1 per sink",2,47.820500000000003]
[null,"Goggles, according to EN 166 and EN 170, frame adjustable, integrated side and top protection, total weight <40 g ",5,8.1978000000000009]
[null,"Emergency spill-kit",1,34.157499999999999]
[null,"First aid kit",1,327.91200000000003]
[null,"Anemometer",1,2049.4499999999998]
[null,"Analytical balance",1,4782.05]
[null,"pH meter",1,819.78]
[null,"Bunsen burner with fine tuning",1,143.4615]
[null,"Tripod stand",1,16.395600000000002]
[null,"Water bath, capacity approximately 20 L ",1,1502.93]
[null,"Magnetic stirrer",1,580.67750000000001]
[null,"Magnetic stirring bars, round-shaped, polytetrafluorethylen (PTFE) coated. Set of 10: 1x 15 mm, 2X 20 mm, 2x 25 mm, 1x 30 mm, 2x 40 mm, 2x 50 mm length. ",1,68.314999999999998]
[null,"Sterile filling station of culture media, consisting of 1000 ml Squibb sedimentation funnels or cylindric dropping funnels, with tube for pressure exchange, stopcocks made of glass and Teflon stopper, outlet diameter 4 mm ",3,68.314999999999998]
[null,"Stative for Squibb sedimentation funnels consisting of plate, rod and clamp",3,136.63]
[null,"Inspissator para la coagulación de medios de cultivo a base de huevo",1,8197.7999999999993]
[null,"Refrigerator with freezing department ",1,819.78]
[null,"Refrigerator ",2,409.89]
[null,"Stainless steel funnel, short wide stem with air drain, diameter 150 mm on top",5,13.663]
[null,"Swan neck bottles (PE flask, narrow neck with screw cap and water dispenser) set of one each 250, 500, 1000ml",5,16.395600000000002]
[null,"Bowl, plastic, 500 x 350 mm",5,2.7326000000000001]
[null,"Erlenmeyer flasks, borosilicate 3.3, wide neck, graduated, autoclavable, 2000 ml",2,34.157499999999999]
[null,"Erlenmeyer flasks, borosilicate 3.3, wide neck, graduated, autoclavable, 1000 ml",10,163.95600000000002]
[null,"Erlenmeyer flasks, borosilicate 3.3, wide neck, autoclavable, 500 ml",10,81.978000000000009]
[null,"Erlenmeyer flasks, borosilicate 3.3, wide neck, graduated, autoclavable, 250 ml",10,61.483500000000006]
[null,"Erlenmeyer flasks, borosilicate 3.3, wide neck, graduated, 100 ml, pack. unit 10",20,54.652000000000001]
[null,"Erlenmeyer flasks, borosilicate 3.3, wide neck, graduated, autoclavable, 50 ml",20,54.652000000000001]
[null,"Measuring cylinder, class A; TPX, autoclavable, 1000 ml, graduated 10.0 ml",5,22.270690000000002]
[null,"Measuring cylinder, class A; TPX, autoclavable, 500 ml, graduated 5.0 ml",5,14.346150000000002]
[null,"Measuring cylinder, class A; TPX, autoclavable,  250 ml, graduated 2.0 ml",5,9.4957850000000015]
[null,"Measuring cylinder, class A; TPX, autoclavable, 100 ml, graduated 1.0 ml",5,6.1483500000000006]
[null,"Measuring cylinder, class A; TPX, autoclavable, 50 ml, graduated 1.0 ml",5,4.6454200000000005]
[null,"Thick-walled glass flask for preparation of culture medium; with flanged rim; 2500 ml ",6,58.750900000000001]
[null,"Thick walled bottles, borosilicate 3.3, graduated, transparent, PP ring and cap, 2000 ml",3,24.593400000000003]
[null,"Thick walled bottles, borosilicate 3.3, graduated, transparent, PP ring and cap, 1000 ml ",10,14.346150000000002]
[null,"Thick walled bottles, borosilicate 3.3, graduated, transparent, PP ring and cap, 500 ml;    ",5,9.2908400000000011]
[null,"Thick walled bottles, borosilicate 3.3, graduated, amber, PP ring and cap, 11000 ml",3,16.395600000000002]
[null,"Thick walled bottles, borosilicate 3.3, graduated, amber, PP ring and cap, 1, 2000 ml",2,27.326000000000001]
[null,"Screw caps with weld in PFTE membrane, 0.2 µm pore size, autoclavable to 140 °C",10,3.0058600000000002]
[null,"Laboratory beaker, EFTE, low form with graduation and spout, 2000 ml",3,136.63]
[null,"Laboratory beaker, EFTE, low form with graduation and spout, 1000 ml     ",3,68.314999999999998]
[null,"Laboratory beaker, EFTE, low form with graduation and spout, 600 ml",10,54.652000000000001]
[null,"Laboratory beaker, EFTE, low form with graduation and spout, 250 ml",10,24.593400000000003]
[null,"Laboratory beaker, EFTE, low form with graduation and spout, 100 ml",10,15.029300000000001]
[null,"Laboratory glassware drying rack, wall mounted; polystyrene; minimum 24 pegs ",1,184.45050000000001]
[null,"Funnel, soda lime glass, plain, short stem, d =   75 mm",5,6.8315000000000001]
[null,"Funnel, soda lime glass, plain, short stem, d = 125 mm",5,10.930400000000001]
[null,"Powder funnel , diameter 100mm",5,10.930400000000001]
[null,"Glass beads, massive glass, 5 mm diameter",2,34.157499999999999]
[null,"Glass beads, massive glass, 3 mm diameter",1,34.157499999999999]
[null,"Thick walled Pyrex tubes with ISO winding and autoclavable screw cap with tight gasket, 16x100 mm; package of 100",10,109.304]
[null,"Strainer, stainless steel, 1 grip, 2 eyes, diameter 20 cm",1,21.860800000000001]
[null,"Forceps; pointed; straight; 18/8 stainless steel, polished",5,9.3864809999999999]
[null,"Optional: Laboratory washer-disinfector for laboratory glass, 2 baskets",1,5055.3100000000004]
[null,"Separate water supply for deionised water with conductivity measure R 3/4\" with digital display and hose-set for in-and outflow ",1,929.08400000000006]
[null,"Aqua purificator cabinet for two de-mineralising cartridges",1,409.89]
[null,"Cost of equipment for culture laboratories (solid media)",null,{"$f":"SUMPRODUCT(C20:C122,D20:D122)","v":177698.3820300001}]
[]
[null,"Additional equipment for liquid culture and/or DST"]
[null,"ARTÍCULOS","Number ","Costo por unidad (US$)","Possible alternatives","Number","Costo por unidad (US$)","Notes"]
[null,"Automated analyser for liquid culture media with growth detection based on a fluorescent signal, 960 vials",2,79655.289999999994,"Automated analyser for liquid culture media with growth detection based on a fluorescent signal, 120 vials",12,36535]
[null,"Automated analyser for liquid culture media with growth detection based on a fluorescent signal, 960 vials",2,38950,null,null,null,"This is a FIND negotiated price for, please find the countries that can access to this special price in:  http://www.finddiagnostics.org/about/what_we_do/successes/find-negotiated-prices/bactec-mgit.html"]
[null,"Cost of additional equipment for culture and DST laboratories (liquid media)",null,{"$f":"SUMPRODUCT(D127:D128)","v":118605.29}]
[]
[]
["Drug-susceptibility testing (DST)"]
[null,"Indicated quantities are based on experience and estimated for a laboratory performing 1000 first-line DST (and possibly 100 second-line DST) in addition to cultures. Quantities should be adjusted according to the actual workload and strategy used."]
[]
[null,"ITEMS (solid media)","Number ","Costo por unidad (US$)"]
[null,"Desiccator, borosilicate glass, inner diameter 150-200 mm, lid with thread GL 32",2,273.26]
[null,"Membrane vacuum pump for desiccator, pressure endpoint < 20 mbar",1,1093.04]
[null,"Woulff flask consisting of borosilicate glass, 1000 ml with thread GL 45 screw cap",1,47.820500000000003]
[null,"Vacuum tube, 3m",1,27.326000000000001]
[null,"Precision balance",1,1366.3]
[null,"Sterile filling station of culture media, consisting of 250 ml Squibb sedimentation funnels or cylindric dropping funnels, with tube for pressure exchange, stopcocks made of glass and Teflon stopper, outlet diameter 4 mm ",7,40.989000000000004]
[null,"Refrigerator with freezing department ",1,819.78]
[null,"Refrigerator ",1,409.89]
[null,"Optional: Chest freezer, 70 litres, temperature range: -18 °C to - 28 °C, complete with cassettes and racks",1,1366.3]
[null,"Pipettes 1 ml, glass, graduated 0,01 ml, conformity certified, pack of 10 pieces",3,27.326000000000001]
[null,"Pipettes 2 ml, glass, graduated 0,02 ml, conformity certified, pack of 10 pieces",3,28.692300000000003]
[null,"Pipettes 10 ml, glass, graduated 0,05 ml, conformity certified, pack of 10 pieces",3,30.058600000000002]
[null,"Pipettes 5 ml, glass, graduated 0,1 ml, conformity certified, pack of 10 pieces",3,31.424900000000001]
[null,"Pipette box aluminium with lid, autoclavable, suitable for 35 cm long pipettes  ",10,136.63]
[null,"Cost of equipment for DST (solid media)",null,{"$f":"SUMPRODUCT(C136:C149,D136:D149)","v":7682.7049000000006}]
[]
[]
["Molecular laboratory "]
["Line-Probe Assays"]
[null,"Indicated quantities are based on experience and estimated for a laboratory performing approximately 1000 line-probe assays. Quantities should be adjusted according to the actual workload and strategy used."]
[]
[null,"ARTÍCULOS","Number ","Costo por unidad (US$)","Possible alternatives","Number","Costo por unidad (US$)"]
[null,"PCR-Workstation UV",1,3142.49]
[null,"Termociclador",1,4782.05]
[null,"Ultrasonic bath",1,1639.56]
[null,"Thermoshaker for hybridization",1,3005.86,"Automate for hybridization, for 48 strips",1,19674.72]
[null,"Optional 8-channel pipette, 5 - 50 µl",1,587.50900000000001]
[null,"Optional 8-channel pipette, 50 - 300 µl",1,587.50900000000001]
[null,"Optional Electrophoresis, horizontal mini gel system ",1,409.89]
[null,"Optional Power supply for electrophoresis",1,478.20499999999998]
[null,"Optional UV-light illuminator at least 200 x 200 mm window",1,1639.56]
[null,"Optional Microwave oven, approx. 900 W, inner volume minimum 20 litres",1,819.78]
[null,"Racks, for tubes 1.5 - 2 ml, 10 mm diameter, at least 20 positions",10,6.8315000000000001]
[null,"Centrifuge for standard reaction tubes",1,2459.34]
[null,"Floating rack for 20 seats, diameter 10 mm, 2ml, for ultrasonic bath",2,9.5640999999999998]
[null,"Deep freeze storage box with lid for 2 ml cryovials , autoclavable PP",10,10.930400000000001]
[null,"Deep freeze storage box with lid for 0.2ml PCR tubes, autoclavable PP. ",10,11.067030000000001]
[null,"1-channel pipette, variable from 0.5 - 10 µl, ",3,273.26]
[null,"1-channel pipette, variable from 10 - 100 µl",4,273.26]
[null,"1-channel pipette, variable from 100 - 1000 µl,",4,273.26]
[null,"Racks suitable for pipettes offered, at least 4 positions",4,109.304]
[null,"Refrigerator with freezing department",1,409.89]
[null,"Freezer",1,546.52]
[null,"Stand for multichannel pipettes",1,122.96700000000001]
[null,"Hand-dispenser pipette, 5 dosage steps, suited for combitips",2,218.608]
[null,"Tripod stand for waste bags of 2 litres",5,10.247250000000001]
[null,"Cost of equipment for Molecular tests",null,{"$f":"SUMPRODUCT(C158:C181,D158:D181)","v":24870.075750000004}]
[]
["Xpert"]
[null,"ARTÍCULOS","Number ","Costo por unidad (US$)"]
[null,"Cost of one GeneXpert 4-module unit with laptop",1,17500]
[null,"Shipment, per machine",null,1000]
[null,"Uninterruptible power source",null,500]
[]
[null,"Printer",1,200]
[null,null,null,{"$f":"+SUM(D186:D190)","v":19200}]
[]
[null,"Cartridge and maintenance for XPERT","Number ","Costo por unidad (US$)"]
[null,"The average number of tests per machine per day is 15. So, the maximum number of cartridges per year is 3750 (=15*250 working days). Add 10% more due to losses because of damage or incorrect use."]
[null,"Cartridge, cost per one cartridge",null,16.86]
[null,"Cost of equipment maintenance per GeneXpert machine per year (range US$ 500-1800)",null,1800]
[]
[null,"For further information on Xpert please look at:"]
[null,"http://whqlibdoc.who.int/hq/2011/WHO_HTM_TB_2011.12_eng.pdf"]
[]
[]
["CHEMICALS"]
[]
[]
["Culture laboratory, chemicals"]
[null,"According to the SoP, prepare a batch of 1600 ml and adjust according to the workload"]
[]
[null,"ARTÍCULOS","Number ","Costo por unidad (US$)","Possible alternatives","Number","Costo por unidad (US$)"]
[null,"Loewenstein-Jensen medium**",null,null,"Lowenstein-Jensen medium from components"]
[null,"Ready-to-use mix, 500g",7,134,"Potassium dihydrogen phosphate, KH2PO4, MW: 136,09, 1 kg ",1,44]
[null,"Fresh eggs fed without growth factors (antibiotics), 25 per 1600 ml medium final volume ",2000,"local cost","Magnesium sulfate-heptahydrate,  MgSO4 • 7H2O, MW: 246,48. 500g ",1,21]
[null,"Glycerol >99% purity, 1 litre",2,38,"L-Asparagine-momohydrate, C4H8N2O3 • H2O, MW: 150.13, 250g",2,86]
[null,null,null,null,"tri-Magnesium di-citrate nonahydrate, Mg3(C6H5O7)2 • 9 H2O,  500g ",1,36]
[null,"** Prepare a batch of 1600 ml according to the SoP, to be dispensed in 6–8 ml volumes into sterile McCartney bottles or 16 x 125 mm screw-capped tubes. Estimate the number of tubes per batch (+/-260 tubes). ",null,null,"Oxalato verde de malaquita, 100 g",1,21]
[null,null,null,null,"glycerol >99% purity, 1 litre",2,38]
[null,null,null,null,"fresh eggs fed without growth factors (antibiotics), 25 per 1600 ml medium final volume",2000,"local cost"]
[]
[null,"ARTÍCULOS","Number ","Costo por unidad (US$)"]
[null,"Modified Ogawa medium"]
[null,"Sodium-L-Glutamate-monohydrate, C5H8NNaO4 · H2O,  1 kg ",1,45]
[null,"Potassium dihydrogen phosphate, KH2PO4, MW: 136,09, 1 kg ",1,44]
[null,"Oxalato verde de malaquita, 100 g",1,21]
[null,"Magnesium sulfate-heptahydrate,  MgSO4 • 7H2O, MW: 246,48. 500g ",1,21]
[null,"Glycerol >99% purity, 1 litre",2,38]
[null,"Fresh eggs fed without growth factors (antibiotics), 25 per 1600 ml medium final volume",2000,"local cost"]
[]
[null,"Phosphate buffer according to Soerensen, 1/15 M, pH 6.8 or adjustable between pH 5 to 8.2"]
[null,"ARTÍCULOS","Number ","Costo por unidad (US$)","Possible alternatives","Number","Costo por unidad (US$)"]
[null,"di-Sodium hydrogen phosphate anhydrous, Na2HPO4, MW: 141.96, 1 kg ",2,49,"di-Sodium hydrogen phosphate dodecahydrate Na2HPO4 12 H2O , MW: 358,14, 1 kg  ",2,48]
[null,"Potassium dihydrogen phosphate, KH2PO4, MW: 136,09, 1 kg ",2,44]
[]
[null,"Método de descontaminación de Petroff"]
[null,"ARTÍCULOS","Number ","Costo por unidad (US$)"]
[null,"Sodium hydroxide, NaOH, MW 40.00, purum ≥ 98%, pellets, 1kg",2,16]
[]
[null,"Tri-sodium phosphate decontamination method"]
[null,"ARTÍCULOS","Number ","Costo por unidad (US$)"]
[null,"tri-sodium phosphate dodecahydrate, Na3PO4 · 12H2O, MW: 380.12, 2.5 kg",4,48]
[]
[null,"NALC decontamionation method"]
[null,"ARTÍCULOS","Number ","Costo por unidad (US$)"]
[null,"N-acetyl-L-cysteine (NALC), C5H9NO3S, MW: 163.19,puriss. ≥ 99%, 250g",1,205]
[null,"tri-Sodium citrate dihydrate, C6H5Na3O7 · 2H2O, MW: 294.10, 1 kg",1,56]
[null,"Sodium hydroxide, NaOH, MW 40.00, purum ≥ 98%, pellets, 1kg",1,16]
[]
[null,"Cetylpyridinum chloride for specimen transportation"]
[null,"ARTÍCULOS","Number ","Costo por unidad (US$)"]
[null,"Cetylpyridinium chloride monohydrate, C21H38ClN · H2O, MW: 358.01, purity ≥ 98% for biochemistry, 500g",1,61]
[null,"Sodium chloride, NaCl, MW: 58.44, ≥ 99%, 1kg",1,14]
[]
[null,"Pre-treatment for urine"]
[null,"ARTÍCULOS","Number ","Costo por unidad (US$)"]
[null,"5-Sulfosalicylic acid dihydrate, C6H7NO3S· 2H2O, MW: 254,22, ≥ 99%, 100g "]
[]
[null,"Neutralization of gastric washings"]
[null,"ARTÍCULOS","Number ","Costo por unidad (US$)"]
[null,"sodium bicarbonate, NaHCO3, MW 84,  ≥ 99%, 500g ",1]
[]
[null,"Reagents for biochemical identification"]
[null,"ARTÍCULOS","Number ","Costo por unidad (US$)"]
[null,"Para-nitrobenzoic acid, (PNB), C7H5O4, MW: 167,12, purum ≥ 98%, 250g",1,15]
[null,"Thiophene-2-carboxylic acid hydrazide, (TCH), C5H6ON2S, MW: 142.21, ≥ 97%; 5g",2,107]
[null,"Niacin strips, 50 per pack",1000,102]
[null,"Tween® 80, (Polyoxyethlene-80-sorbitan monooleate), 1kg",1,52]
[null,"Hydrogen peroxide, H2O2, MW: 34.01, 30%, 250 ml",1,19]
[null,"Potassium dihydrogen phosphate, KH2PO4, MW: 136,09, 1 kg",1,44]
[null,"di-Sodium hydrogen phosphate anhydrous, Na2HPO4, MW: 141.96, 1 kg ",1,49]
[null,"Sodium nitrate, NaNO3, MW:84.99, p.a. ≥ 99.5%, 500g ",1,23]
[null,"Sulphanilamide, C6H8N2O2S, MW: 172.21, p.a. ≥ 98%,100g",1,55]
[null,"N-(1-Naphthyl)-ethylendiamine dihydrochloride, C12H14N2 · 2HCl, MW: 259.18, p.a.≥ 98%, 25g",1,82]
[null,"Zinc dust, 250g bottle",1,53]
[null,"Hydrochloric acid, HCl, purum, ≥ 35%, 1 L",1,27]
[]
[]
[null,"reagent for long-term storage of mycobacterial culture: "]
[null,"ARTÍCULOS","Number ","Costo por unidad (US$)"]
[null,"Skim milk powder, 500g",1,29]
[]
[null,"McFarland standard"]
[null,"ARTÍCULOS","Number ","Costo por unidad (US$)"]
[null,"Bariumchlorid dihydrate, BaCl2 · 2H2O, MW: 244.26, p.a.≥ 99%, 250 g",1,15]
[null,"Sulphuric acid, 100 ml",1,27]
[]
[]
["DST laboratory, chemicals"]
[null,"Indicated quantities are based on experience and estimated for a laboratory performing approximately 1,000 FL-DST (and possibly 100 SL-DST). Quantities should be adjusted according to the workload and methods used.  "]
[]
[null,"First line drugs"]
[null,"ARTÍCULOS","Number ","Costo por unidad (US$)","Possible alternatives","Number","Costo por unidad (US$)"]
[null,"5g Isoniazid ",1,23]
[null,"1g Rifampicin",1,82]
[null,"25 g Ethambutol",1,96]
[null,"5g Dihydro-streptomycin",1,25]
[]
[null,"Second Line Drugs"]
[null,"Ofloxacin/Ciprofloxacin, 2 g",1,30,"Moxifloxacin, 2 g",1]
[null,"Protionamid, 2 g",1,null,"Ethionamid, 2 g",1]
[null,"Kanamycin, 2 g",1,42,"Amikacin, 2 g",1,61]
[null,"capreomycin, 2 g",1,158]
[]
[null,"Dimethyl sulfoxide, 99,8%, p. a., 500 ml",1,27]
[]
[]
["Molecular tests, chemicals"]
[null,"Indicated quantities are based on experience and estimated for a laboratory performing approximately 1,000 line-probe assays. Quantities should be adjusted according to the workload and methods used."]
[]
[null,"ARTÍCULOS","Number ","Costo por unidad (US$)"]
[null,"Taq Polymerase, 250 units/vial; one vial per 200 amplifications",5,178]
[]
[]
[]
["CONSUMABLES"]
[]
[]
["Culture laboratory, consumables"]
[null,"Indicated quantities are based on experience and estimated for a laboratory performing approximately 12,000 cultures. Quantities should be adjusted to the actual workload and methods used.  "]
[]
[null,"ITEMS (solid media)","Number ","Costo por unidad (US$)","Possible alternatives","Number","Costo por unidad (US$)"]
[null,"Culture tubes, diameter 16 mm, pack of 100",260,40.989000000000004,"Universal glass bottle 28 ml, pack of 100",260,102.4725]
[null,"PP-tubes for centrifuge, 50 ml; 500 pieces/pack",60,163.95600000000002]
[null,"PP-tubes for centrifuge, 15 ml; 500 pieces/pack",4,163.95600000000002]
[null,"Loop, disposable 10 m, 10pieces/pack",1500,81.978000000000009]
[null,"Plastic Pasteur pipettes, 1.5 ml, 500 pieces/pack",30,54.652000000000001]
[null,"Cryo-vial, sterile with cap, 2 ml",1,199.47980000000001]
[null,"Deep freeze storage box with lid for 2 ml cryovials , autoclavable PP",10,10.930400000000001]
[null,"Gloves, vinyl or nitrile, powder free, disposable, size S, 100/pack",60,16.395600000000002]
[null,"Gloves, vinyl or nitrile, powder free, disposable, size M, 100/pack",90,16.395600000000002]
[null,"Gloves, vinyl or nitrile, powder free, disposable, size L, 100/pack",30,16.395600000000002]
[null,"Plastic bags for waste bins, 1000 pieces per pack",1,30.058600000000002]
[null,"Stands for small plastic bags (2 litres)",5,10.930400000000001]
[null,"Autoclavable bags at 134°C, 410 x 620 mm, 100 pieces per pack",10,54.652000000000001]
[null,"Filter paper round, diameter 185, packs of 100",3,10.930400000000001]
[null,"Filter paper round, diameter 150, packs of 100",6,9.5640999999999998]
[null,"Marker pen, water resistant",3,6.8315000000000001]
[null,"Adhesive labels, pack of 4800 labels",2,62.849800000000002]
[null,"Cryo-tags sized to fit for use on cryo-tubes, rolls of 1000",5,57.384600000000006]
[null,"Sterilindicator tape (rolls), 55 m long, for hot air sterilizer (green/brown)",5,30.058600000000002]
[null,"Sterilindicator tape (rolls), 55 m long,  for autoclave (beige/dark brown)",5,17.761900000000001]
[null,"Aluminium foil, 100 m long",3,157.12450000000001]
[null,"Parafilm, 100 mm width with dispenser",3,31.424900000000001]
[null,"Plastic-foil rolls, 30 cm",5,10.930400000000001]
[null,"Tube brush 280 mm long",20,2.7326000000000001]
[null,"Brush for glassware 120 mm long",10,6.8315000000000001]
[null,"Laboratory coat, size L",10,47.820500000000003]
[null,"Laboratory coat, size M",20,47.820500000000003]
[null,"Laboratory coat, size S",10,47.820500000000003]
[null,"FFP2 or FFP3 respirators, individually packed, packs of 10",1,102.4725]
[null,"Disinfectant for floors, container 10 litres ",6,72.413899999999998]
[null,"Disinfectant, ethanol-based, container 5 litres",8,64.216099999999997]
[null,"Spray hand for bottle with disinfectant of 1 litre",6,6.8315000000000001]
[null,"Liquid soap, pH neutral, bottle of 1 litre",12,9.5640999999999998]
[null,"Disinfectant for hands, alcohol-based,  1 litre bottle",15,10.930400000000001]
[null,"Paper towels, single-use, box. 150 towels/pack, 30 packs/ carton",5,58.750900000000001]
[null,"Cotton wool, 1 kg",10,2.7326000000000001]
[null,"Tissue pulp, absorbent sheets, approx. 550 x 350 mm",30,6.8315000000000001]
[null,"Detergent/washing powder for laboratory dish washer, 10 kg/pack",36,81.978000000000009]
[null,"Salt for dish washer, 10 kg/pack",10,20.494500000000002]
[null,"Rinse aid for dish washer, 1 litre",10,16.395600000000002]
[null,"Cost of consumables for culture laboratory (estimate of 12,000 cultures) (solid media)",null,{"$f":"SUMPRODUCT(C319:C358,D319:D358)","v":158283.12240000005}]
[]
[null,"Additional consumables for liquid culture methodology"]
[null,"ITEMS (liquid media)","Number ","Costo por unidad (US$)","Possible alternatives","Number","Costo por unidad (US$)","Notes"]
[null,"Tube and growth supplement for liquid cultures, growth detection based on fluorescence signal, per test",12000,13.663,"Tube and growth supplement for liquid cultures, growth detection based on pH colour change, per test",12000,12.296700000000001]
[null,"Tube and growth supplement for liquid cultures, growth detection based on fluorescence signal, per test",12000,2.76,null,null,null,"This is a FIND negotiated price for the HBCs (except Brazil and Russian Federation) plus Azerbaidjan, Bostwana, Cote d'Ivoire, Djibouti, Georgia, Kyrgyzstan, Lesotho, Malawi, Namibia, Nepal, Moldova, Rwanda, Sierra Leone, Somalia, Swaziland, Taijikistan, "]
[null,"Petri-dishes, disposables, sterile; 20 per bag, 15 bags per package",10,109.304]
[null,"Droppers, disposable, 1.5 ml, 20 per bag and 25 bags per package",30,81.978000000000009]
[null,"Cost of consumables for culture laboratory (estimate of 12,000 cultures) (liquid media)",null,{"$f":"SUMPRODUCT(C363:C366,D363:D366)","v":200628.38}]
[]
[]
["DST laboratory, consumables"]
[null,"Indicated quantities are based on experience and estimated for a laboratory performing 1,000 FL-DST (and possibly 100 SL-DST) in addition to cultures. Quantities should be adjusted to the actual workload and methods used.  "]
[]
[null,"ITEMS (solid media)","Number ","Costo por unidad (US$)","Possible alternatives","Number","Costo por unidad (US$)","Notes"]
[null,"Syringes, single use, 20 ml, 100 pieces per pack",1,88.8095]
[null,"Syringe filters, 100 pieces per pack",1,409.89]
[null,"Silica gel for desiccator, 0.5 kg",1,40.989000000000004]
[null,"Immunochromatographic tests for the rapid identification of Mycobacterium tuberculosis, per test",1000,29]
[null,"Immunochromatographic tests for the rapid identification of Mycobacterium tuberculosis, per test",1000,1.6,null,null,null,"FIND negotiated price for the 22 HBC"]
[null,"Cost of consumables for FL-DST laboratory (1000 FL, plus possibly 100 SL), solid media",null,{"$f":"SUMPRODUCT(C374:C378,D374:D378)","v":31139.6885}]
[]
[null,"Additional consumables for liquid  DST methodology"]
[null,"ARTÍCULOS","Number ","Costo por unidad (US$)","Possible alternatives","Number","Costo por unidad (US$)","Notes"]
[null,"Tube and growth supplement for liquid cultures, growth detection based on fluorescence signal, per test",6000,13.663,"Tube and growth supplement for liquid cultures, growth detection based on pH colour change, per test",6000,12.296700000000001]
[null,"Tube and growth supplement for liquid cultures, growth detection based on fluorescence signal, per test",6000,2.76,null,null,null,"This is a FIND negotiated price for, please find the countries that can access to this special price in:  http://www.finddiagnostics.org/about/what_we_do/successes/find-negotiated-prices/bactec-mgit.html"]
[null,"Cost of consumables for FL-DST laboratory (1000 FL, plus possibly 100 SL), liquid media",null,{"$f":"SUMPRODUCT(C383:C384,D383:D384)","v":98538}]
[]
[]
[]
[]
["Molecular Biology, consumables"]
[null,"Indicated quantities are based on experience and estimated for a laboratory performing approximately 1,000 line-probe assays. Quantities should be adjusted according to the workload and strategy used."]
[]
[null,"ARTÍCULOS","Number ","Costo por unidad (US$)","Possible alternatives","Number","Costo por unidad (US$)","Notes"]
[null,"Standard reaction tubes with O-ring,  1.5 ml, 1000 per pack",10,177.619]
[null,"Standard reaction tubes with O-ring,  2 ml, 1000 per pack",10,177.619]
[null,"Cryo-vial, sterile with cap, 2 ml, with outer winding; pack of 1000",3,245.93400000000003]
[null,"Cryo-tags, sized to fit for use on cryo-tubes, rolls of 1000",3,57.384600000000006]
[null,"PCR tubes, 0.2 ml with attached caps, sterile, DNAse- RNAse-free, 1000 per pack",10,116.13550000000001]
[null,"DNAse-/RNAse-free TIPS, for pipettes  0.1 - 10 µl, 10 boxes at 96 per pack",10,88.8095]
[null,"DNAse-/RNAse-free TIPS, for pipettes 1 - 20 µl, 10 boxes at 96 per pack",40,88.8095]
[null,"DNAse-/RNAse-free TIPS, for pipettes 10 - 100 µl, 10 boxes at 96 per pack",20,88.8095]
[null,"DNAse-/RNAse-free TIPS, for pipettes 20 - 200 µl, 10 boxes at 96 per pack",10,81.978000000000009]
[null,"TIPS, PE, for pipettes 0.5 -  10 µl, 1000 per pack",10,19.1282]
[null,"TIPS, PE, for pipettes 1 -  200 µl, 1000 per pack ",5,21.860800000000001]
[null,"TIPS, PE, for pipettes 100 -  1000 µl , 1000 per pack",5,19.1282]
[null,"Pasteur-pipettes, plastic, sterile, 1.5ml, 500 per pack",30,54.652000000000001]
[null,"Combitips for Multipette 5 ml,  100 pieces/pack ",3,109.304]
[null,"Combitips for Multipette 10 ml,  100 pieces/pack ",3,109.304]
[null,"Plastic bags, disposable PP, 100 pieces per pack",5,13.663]
[null,"Gloves, vinyl, powder free, disposable, size S, 100 per pack",60,16.395600000000002]
[null,"Gloves, vinyl, powder free, disposable, size M, 100 per pack",90,16.395600000000002]
[null,"Gloves,  vinyl, powder free, disposable, size L, 100 per pack",30,16.395600000000002]
[null,"Forceps plastic",3,15.029300000000001]
[null,"Bottles, plastic",3,30.058600000000002]
[null,"Marker pen, water resistant ",3,6.8315000000000001]
[null,"Gloves, nitril,  powder free, disposable, size 6-7, 100 per pack",10,19.1282]
[null,"Gloves, nitril,  powder free, disposable, size 7-8, 100 per pack",5,20.494500000000002]
[null,"Gloves, nitril,  powder free, disposable, size 8-9, 100 per pack",2,21.860800000000001]
[null,"Strips for the rapid detection of resistance to isoniazid and rifampicin, per strip ",1000,24.593400000000003,"Strips for the rapid detection of resistance to rifampicin, per strip ",1000,62.849800000000002]
[null,"Strips for the rapid detection of resistance to isoniazid and rifampicin, per strip ",1000,3.5,null,null,null,"This is a FIND negotiated price for, please find the countries that can access to this special price in:  http://www.finddiagnostics.org/about/what_we_do/successes/find-negotiated-prices/bactec-mgit.html"]
[null,"Cost of consumables for molecular tests (1000 LPAs)",null,{"$f":"SUMPRODUCT(C394:C420,D394:D420)","v":46957.9041}]